Department family,Entity,Date of payment,Expense type,Expense area,Supplier,Transaction number,Amount in Sterling,Supplier VAT Registration Number
Department of Health,Guys and St Thomas NHS Foundation Trust,13/05/2022,(81900) Lab Equipment Purchase,(id:5517419) Pathology,VIAPATH SERVICES LLP,id:15221318 ,   516630.71
Department of Health,Guys and St Thomas NHS Foundation Trust,13/05/2022,(81900) Lab Equipment Purchase,(id:5457419) Pathology,VIAPATH SERVICES LLP,id:15221315 ,    23792.16
Department of Health,Guys and St Thomas NHS Foundation Trust,13/05/2022,(81900) Lab Equipment Purchase,(id:111406) Pathology,VIAPATH SERVICES LLP,id:15221323  ,  3058199.43
Department of Health,Guys and St Thomas NHS Foundation Trust,13/05/2022,(81900) Lab Equipment Purchase,(id:111406) Pathology,VIAPATH SERVICES LLP,id:15221314  ,   -72419.80
Department of Health,Guys and St Thomas NHS Foundation Trust,13/05/2022,(81900) Lab Equipment Purchase,(id:111406) Pathology,VIAPATH SERVICES LLP,id:15221321  ,  -300256.33
Department of Health,Guys and St Thomas NHS Foundation Trust,13/05/2022,(81900) Lab Equipment Purchase,(id:111406) Pathology,VIAPATH ANALYTICS LLP,id:15220646 ,  -383771.30
Department of Health,Guys and St Thomas NHS Foundation Trust,20/05/2022,(89600) Non-Healthcare from other NHS bodies,(id:42134) Pathology,NHS BLOOD AND TRANSPLANT,id:15153485,1725.58
Department of Health,Guys and St Thomas NHS Foundation Trust,20/05/2022,(89600) Non-Healthcare from other NHS bodies,(id:42134) Pathology,NHS BLOOD AND TRANSPLANT,id:15256593,7165.83
Department of Health,Guys and St Thomas NHS Foundation Trust,20/05/2022,(89600) Non-Healthcare from other NHS bodies,(id:42134) Pathology,NHS BLOOD AND TRANSPLANT,id:15256575,   234934.22
Department of Health,Guys and St Thomas NHS Foundation Trust,13/05/2022,(89600) Non-Healthcare from other NHS bodies,(id:42134) Pathology,NHS BLOOD AND TRANSPLANT,id:15153468, 710.95
Department of Health,Guys and St Thomas NHS Foundation Trust,13/05/2022,(81900) Lab Equipment Purchase,(id:4632422) Pathology,VIAPATH ANALYTICS LLP,id:15220644,   761867.54
Department of Health,Guys and St Thomas NHS Foundation Trust,13/05/2022,(84650) Establishment,(id:4988419) TAP,NEU PROFESSIONALS LTD,id:15204314,2382.25
Department of Health,Guys and St Thomas NHS Foundation Trust,19/05/2022,(81200) Medical Surgical Supplies & Equipment,(id:4621419) TAP,NHS SUPPLY CHAIN (MAIDSTONE),id:15166815    , 119.05
Department of Health,Guys and St Thomas NHS Foundation Trust,13/05/2022,(81100) Dressings,(id:4621419) TAP,NHS SUPPLY CHAIN (MAIDSTONE),id:15122381  ,  24.10
Department of Health,Guys and St Thomas NHS Foundation Trust,19/05/2022,(81400) Medical Surgical Supplies & Equipment,(id:41900) TAP,NHS SUPPLY CHAIN ( CAPITAL FUND ONLY),id:15235655  ,1948.44
Department of Health,Guys and St Thomas NHS Foundation Trust,19/05/2022,(81400) Medical Surgical Supplies & Equipment,(id:41900) TAP,DRAEGER MEDICAL UK LTD,id:15236161  ,5225.00
Department of Health,Guys and St Thomas NHS Foundation Trust,13/05/2022,(82800) Bedding & Linen,(id:41907) TAP,NHS SUPPLY CHAIN (MAIDSTONE),id:15106779   , 170.14
Department of Health,Guys and St Thomas NHS Foundation Trust,19/05/2022,(81200) Medical Surgical Supplies & Equipment,(id:41907) TAP,MASIMO EUROPE LTD,id:15250662  , 780.00
Department of Health,Guys and St Thomas NHS Foundation Trust,19/05/2022,(81100) Dressings,(id:41907) TAP,NHS SUPPLY CHAIN (MAIDSTONE),id:15166815    ,  44.68
Department of Health,Guys and St Thomas NHS Foundation Trust,20/05/2022,(83400) Office Equipment,(id:41906) TAP,NHS SUPPLY CHAIN (MAIDSTONE),id:15220737  , 263.04
Department of Health,Guys and St Thomas NHS Foundation Trust,13/05/2022,(81200) Medical Surgical Supplies & Equipment,(id:41906) TAP,FANNIN UK LTD,id:15153234 , 716.64
Department of Health,Guys and St Thomas NHS Foundation Trust,13/05/2022,(81100) Dressings,(id:41906) TAP,NHS SUPPLY CHAIN (MAIDSTONE),id:15106779    ,  31.27
Department of Health,Guys and St Thomas NHS Foundation Trust,13/05/2022,(82600) Uniforms & Clothing,(id:41906) TAP,NHS SUPPLY CHAIN (MAIDSTONE),id:15106779    ,  22.32
Department of Health,Guys and St Thomas NHS Foundation Trust,13/05/2022,(81200) Medical Surgical Supplies & Equipment,(id:41905) TAP,NHS SUPPLY CHAIN (MAIDSTONE),id:15106779 , 724.47
Department of Health,Guys and St Thomas NHS Foundation Trust,06/05/2022,(81200) Medical Surgical Supplies & Equipment,(id:41905) TAP,AMBU LIMITED,id:15147475  , 971.94
Department of Health,Guys and St Thomas NHS Foundation Trust,13/05/2022,(82600) Uniforms & Clothing,(id:41905) TAP,NHS SUPPLY CHAIN (MAIDSTONE),id:15150034    ,  73.52
Department of Health,Guys and St Thomas NHS Foundation Trust,19/05/2022,(82600) Uniforms & Clothing,(id:41905) TAP,NHS SUPPLY CHAIN (MAIDSTONE),id:15135827    ,  25.20
Department of Health,Guys and St Thomas NHS Foundation Trust,13/05/2022,(83400) Office Equipment,(id:41905) TAP,NHS SUPPLY CHAIN (MAIDSTONE),id:15150034  ,   1.98
Department of Health,Guys and St Thomas NHS Foundation Trust,19/05/2022,(83400) Office Equipment,(id:41905) TAP,NHS SUPPLY CHAIN (MAIDSTONE),id:15256770  ,   1.96
Department of Health,Guys and St Thomas NHS Foundation Trust,19/05/2022,(83400) Office Equipment,(id:41905) TAP,NHS SUPPLY CHAIN (MAIDSTONE),id:15135827  ,   1.96
Department of Health,Guys and St Thomas NHS Foundation Trust,19/05/2022,(50200) Consultants,(id:41905) TAP,KINGS COLLEGE LONDON:03529700,id:15243876 ,2621.95
Department of Health,Guys and St Thomas NHS Foundation Trust,19/05/2022,(82600) Uniforms & Clothing,(id:850419) TAP,NHS SUPPLY CHAIN (MAIDSTONE),id:15256770   ,  10.80
Department of Health,Guys and St Thomas NHS Foundation Trust,20/05/2022,(82700) Uniforms & Clothing,(id:41918) TAP,NHS SUPPLY CHAIN (MAIDSTONE),id:15220737    , 126.72
Department of Health,Guys and St Thomas NHS Foundation Trust,13/05/2022,(82000) Provisions & Kitchens,(id:41918) TAP,NHS SUPPLY CHAIN (MAIDSTONE),id:15122381  ,  97.09
Department of Health,Guys and St Thomas NHS Foundation Trust,19/05/2022,(82000) Provisions & Kitchens,(id:41918) TAP,NHS SUPPLY CHAIN (MAIDSTONE),id:15135827  , 138.81
Department of Health,Guys and St Thomas NHS Foundation Trust,20/05/2022,(81400) Medical Surgical Supplies & Equipment,(id:41918) TAP,MEDTRONIC LTD,id:15225956 , 690.00
Department of Health,Guys and St Thomas NHS Foundation Trust,13/05/2022,(81200) Medical Surgical Supplies & Equipment,(id:41918) TAP,NHS SUPPLY CHAIN (MAIDSTONE),id:15150034 , 256.17
Department of Health,Guys and St Thomas NHS Foundation Trust,13/05/2022,(81200) Medical Surgical Supplies & Equipment,(id:41918) TAP,ELIS UK LIMITED,id:15190614    ,  49.00
Department of Health,Guys and St Thomas NHS Foundation Trust,19/05/2022,(81100) Dressings,(id:41918) TAP,NHS SUPPLY CHAIN (MAIDSTONE),id:15135827    , 175.14
Department of Health,Guys and St Thomas NHS Foundation Trust,19/05/2022,(81100) Dressings,(id:41918) TAP,ELIS UK LIMITED,id:15242614  ,1823.50
Department of Health,Guys and St Thomas NHS Foundation Trust,19/05/2022,(81100) Dressings,(id:41918) TAP,ELIS UK LIMITED,id:15243003  ,1744.10
Department of Health,Guys and St Thomas NHS Foundation Trust,20/05/2022,(82700) Uniforms & Clothing,(id:41916) TAP,NHS SUPPLY CHAIN (MAIDSTONE),id:15220737    ,  22.56
Department of Health,Guys and St Thomas NHS Foundation Trust,13/05/2022,(81100) Dressings,(id:41916) TAP,NHS SUPPLY CHAIN (MAIDSTONE),id:15150034    , 158.66
Department of Health,Guys and St Thomas NHS Foundation Trust,13/05/2022,(81200) Medical Surgical Supplies & Equipment,(id:41916) TAP,NHS SUPPLY CHAIN (MAIDSTONE),id:15122381 , 940.42
Department of Health,Guys and St Thomas NHS Foundation Trust,20/05/2022,(81200) Medical Surgical Supplies & Equipment,(id:41916) TAP,NHS SUPPLY CHAIN (MAIDSTONE),id:15220737 , 981.79
Department of Health,Guys and St Thomas NHS Foundation Trust,20/05/2022,(84600) Establishment,(id:4851419) TAP,CLARITY TRAVEL MANAGEMENT,id:15271794 , 417.80
Department of Health,Guys and St Thomas NHS Foundation Trust,19/05/2022,(82700) Uniforms & Clothing,(id:41923) TAP,NHS SUPPLY CHAIN (MAIDSTONE),id:15135827    , 423.74
Department of Health,Guys and St Thomas NHS Foundation Trust,19/05/2022,(81275) Medical Surgical Supplies & Equipment,(id:41922) TAP,NHS SUPPLY CHAIN (MAIDSTONE),id:15256770 ,  43.38
Department of Health,Guys and St Thomas NHS Foundation Trust,20/05/2022,(81200) Medical Surgical Supplies & Equipment,(id:41922) TAP,NHS SUPPLY CHAIN (MAIDSTONE),id:15220737 , 194.60
Department of Health,Guys and St Thomas NHS Foundation Trust,19/05/2022,(81200) Medical Surgical Supplies & Equipment,(id:41922) TAP,NHS SUPPLY CHAIN (MAIDSTONE),id:15256770 , 336.17
Department of Health,Guys and St Thomas NHS Foundation Trust,19/05/2022,(81100) Dressings,(id:41922) TAP,NHS SUPPLY CHAIN (MAIDSTONE),id:15166815    ,   1.26
Department of Health,Guys and St Thomas NHS Foundation Trust,19/05/2022,(81100) Dressings,(id:41922) TAP,NHS SUPPLY CHAIN (MAIDSTONE),id:15256770    ,  18.20
Department of Health,Guys and St Thomas NHS Foundation Trust,13/05/2022,(82800) Bedding & Linen,(id:41883) TAP,NHS SUPPLY CHAIN (MAIDSTONE),id:15150034   , 124.85
Department of Health,Guys and St Thomas NHS Foundation Trust,19/05/2022,(82800) Bedding & Linen,(id:41883) TAP,NHS SUPPLY CHAIN (MAIDSTONE),id:15166815   , 137.35
Department of Health,Guys and St Thomas NHS Foundation Trust,13/05/2022,(81100) Dressings,(id:41883) TAP,NHS SUPPLY CHAIN (MAIDSTONE),id:15106779    , 114.53
Department of Health,Guys and St Thomas NHS Foundation Trust,13/05/2022,(81100) Dressings,(id:41883) TAP,ELIS UK LIMITED,id:15190934  , 824.44
Department of Health,Guys and St Thomas NHS Foundation Trust,19/05/2022,(81100) Dressings,(id:41883) TAP,ELIS UK LIMITED,id:15264049  ,1133.32
Department of Health,Guys and St Thomas NHS Foundation Trust,19/05/2022,(81200) Medical Surgical Supplies & Equipment,(id:41883) TAP,JOHNSON & JOHNSON MEDICAL LTD,id:15169294, 146.40
Department of Health,Guys and St Thomas NHS Foundation Trust,20/05/2022,(81200) Medical Surgical Supplies & Equipment,(id:41883) TAP,NHS SUPPLY CHAIN (MAIDSTONE),id:15220737 ,1578.30
Department of Health,Guys and St Thomas NHS Foundation Trust,19/05/2022,(83610) IT Costs,(id:41883) TAP,REDPALM TECHNOLOGY SERVICES,id:15226814 ,1020.00
Department of Health,Guys and St Thomas NHS Foundation Trust,19/05/2022,(50562) Qualified Nursing Staff,(id:41883) TAP,STAFFING PROFESSIONALS LTD,id:15264861  ,1294.02
Department of Health,Guys and St Thomas NHS Foundation Trust,19/05/2022,(82600) Uniforms & Clothing,(id:2549419) TAP,NHS SUPPLY CHAIN (MAIDSTONE),id:15256770  ,   8.42
Department of Health,Guys and St Thomas NHS Foundation Trust,19/05/2022,(81200) Medical Surgical Supplies & Equipment,(id:2549419) TAP,NHS SUPPLY CHAIN (MAIDSTONE),id:15135827    , 439.76
Department of Health,Guys and St Thomas NHS Foundation Trust,13/05/2022,(81100) Dressings,(id:2549419) TAP,NHS SUPPLY CHAIN (MAIDSTONE),id:15122381  ,  58.47
Department of Health,Guys and St Thomas NHS Foundation Trust,13/05/2022,(81200) Medical Surgical Supplies & Equipment,(id:41913) TAP,STRYKER UK LTD,id:15203577, 576.00
Department of Health,Guys and St Thomas NHS Foundation Trust,19/05/2022,(82600) Uniforms & Clothing,(id:41897) TAP,NHS SUPPLY CHAIN (MAIDSTONE),id:15166815    , 139.61
Department of Health,Guys and St Thomas NHS Foundation Trust,13/05/2022,(83400) Office Equipment,(id:41897) TAP,NHS SUPPLY CHAIN (MAIDSTONE),id:15106779  , 581.82
Department of Health,Guys and St Thomas NHS Foundation Trust,19/05/2022,(82800) Bedding & Linen,(id:41897) TAP,GAILARDE LTD,id:15248915    , 516.00
Department of Health,Guys and St Thomas NHS Foundation Trust,19/05/2022,(81200) Medical Surgical Supplies & Equipment,(id:41897) TAP,SEVERN HEALTHCARE TECHNOLOGIES LTD,id:15248494,1579.20
Department of Health,Guys and St Thomas NHS Foundation Trust,19/05/2022,(81200) Medical Surgical Supplies & Equipment,(id:41897) TAP,MEDTRONIC LTD,id:14960862 ,2527.20
Department of Health,Guys and St Thomas NHS Foundation Trust,13/05/2022,(81200) Medical Surgical Supplies & Equipment,(id:41897) TAP,BARD LTD,id:15126529 , 685.44
Department of Health,Guys and St Thomas NHS Foundation Trust,13/05/2022,(81200) Medical Surgical Supplies & Equipment,(id:41897) TAP,CRYOLIFE EUROPA LTD,id:15208555, 871.20
Department of Health,Guys and St Thomas NHS Foundation Trust,20/05/2022,(81100) Dressings,(id:41897) TAP,ELIS UK LIMITED,id:15268754  , 499.40
Department of Health,Guys and St Thomas NHS Foundation Trust,19/05/2022,(81100) Dressings,(id:41897) TAP,ELIS UK LIMITED,id:15243002  , 699.92
Department of Health,Guys and St Thomas NHS Foundation Trust,19/05/2022,(81100) Dressings,(id:41897) TAP,ELIS UK LIMITED,id:15262898  , 928.51
Department of Health,Guys and St Thomas NHS Foundation Trust,19/05/2022,(81100) Dressings,(id:41897) TAP,ELIS UK LIMITED,id:15246916  , 714.02
Department of Health,Guys and St Thomas NHS Foundation Trust,19/05/2022,(81100) Dressings,(id:41897) TAP,ELIS UK LIMITED,id:15245897  , 541.25
Department of Health,Guys and St Thomas NHS Foundation Trust,19/05/2022,(81100) Dressings,(id:41897) TAP,ELIS UK LIMITED,id:15242134  , 575.65
Department of Health,Guys and St Thomas NHS Foundation Trust,13/05/2022,(81100) Dressings,(id:41897) TAP,ELIS UK LIMITED,id:15190794  , 699.92
Department of Health,Guys and St Thomas NHS Foundation Trust,19/05/2022,(81225) Medical Surgical Supplies & Equipment,(id:41897) TAP,NHS SUPPLY CHAIN (MAIDSTONE),id:15166815 , 142.15
Department of Health,Guys and St Thomas NHS Foundation Trust,06/05/2022,(81100) Dressings,(id:41894) TAP,ELIS UK LIMITED,id:15134654  , 748.30
Department of Health,Guys and St Thomas NHS Foundation Trust,13/05/2022,(81100) Dressings,(id:41894) TAP,ELIS UK LIMITED,id:15190394  , 378.00
Department of Health,Guys and St Thomas NHS Foundation Trust,13/05/2022,(82600) Uniforms & Clothing,(id:41894) TAP,NHS SUPPLY CHAIN (MAIDSTONE),id:15150034    ,  13.68
Department of Health,Guys and St Thomas NHS Foundation Trust,19/05/2022,(82000) Provisions & Kitchens,(id:41894) TAP,NHS SUPPLY CHAIN (MAIDSTONE),id:15256770  ,   5.00
Department of Health,Guys and St Thomas NHS Foundation Trust,20/05/2022,(81200) Medical Surgical Supplies & Equipment,(id:41894) TAP,NHS SUPPLY CHAIN (MAIDSTONE),id:15220737 , 826.98
Department of Health,Guys and St Thomas NHS Foundation Trust,13/05/2022,(81200) Medical Surgical Supplies & Equipment,(id:41894) TAP,NHS SUPPLY CHAIN (MAIDSTONE),id:15106779 ,  59.67
Department of Health,Guys and St Thomas NHS Foundation Trust,06/05/2022,(81200) Medical Surgical Supplies & Equipment,(id:41894) TAP,JOHNSON & JOHNSON MEDICAL LTD,id:15137562, 121.69
Department of Health,Guys and St Thomas NHS Foundation Trust,19/05/2022,(81200) Medical Surgical Supplies & Equipment,(id:41894) TAP,ELIS UK LIMITED,id:15246397    , 159.45
Department of Health,Guys and St Thomas NHS Foundation Trust,19/05/2022,(81700) Lab Equipment Purchase,(id:5460419) Gastrointestinal Medicine & Surgery,NHS SUPPLY CHAIN (MAIDSTONE),id:15256770  ,  81.84
Department of Health,Guys and St Thomas NHS Foundation Trust,13/05/2022,(81200) Medical Surgical Supplies & Equipment,(id:5182419) Gastrointestinal Medicine & Surgery,LAWMED LTD,id:15184214, 808.20
Department of Health,Guys and St Thomas NHS Foundation Trust,19/05/2022,(81200) Medical Surgical Supplies & Equipment,(id:5182419) Gastrointestinal Medicine & Surgery,INTUITIVE SURGICAL LTD,id:15227596   ,1152.00
Department of Health,Guys and St Thomas NHS Foundation Trust,19/05/2022,(81200) Medical Surgical Supplies & Equipment,(id:5182419) Gastrointestinal Medicine & Surgery,MEDTRONIC LTD,id:15207612  ,1200.00
Department of Health,Guys and St Thomas NHS Foundation Trust,19/05/2022,(82000) Provisions & Kitchens,(id:41958) Gastrointestinal Medicine & Surgery,NHS SUPPLY CHAIN (MAIDSTONE),id:15166815, 692.98
Department of Health,Guys and St Thomas NHS Foundation Trust,19/05/2022,(83400) Office Equipment,(id:41958) Gastrointestinal Medicine & Surgery,NHS SUPPLY CHAIN (MAIDSTONE),id:15256770, 104.40
Department of Health,Guys and St Thomas NHS Foundation Trust,19/05/2022,(83400) Office Equipment,(id:41958) Gastrointestinal Medicine & Surgery,NHS SUPPLY CHAIN (MAIDSTONE),id:15135827,  44.64
Department of Health,Guys and St Thomas NHS Foundation Trust,20/05/2022,(83400) Office Equipment,(id:41958) Gastrointestinal Medicine & Surgery,NHS SUPPLY CHAIN (MAIDSTONE),id:15220737, 113.94
Department of Health,Guys and St Thomas NHS Foundation Trust,19/05/2022,(82800) Bedding & Linen,(id:41958) Gastrointestinal Medicine & Surgery,NHS SUPPLY CHAIN (MAIDSTONE),id:15135827 ,  56.76
Department of Health,Guys and St Thomas NHS Foundation Trust,13/05/2022,(81200) Medical Surgical Supplies & Equipment,(id:41958) Gastrointestinal Medicine & Surgery,NHS SUPPLY CHAIN (MAIDSTONE),id:15122381    ,1006.81
Department of Health,Guys and St Thomas NHS Foundation Trust,13/05/2022,(81100) Dressings,(id:41958) Gastrointestinal Medicine & Surgery,NHS SUPPLY CHAIN (MAIDSTONE),id:15150034  , 368.87
Department of Health,Guys and St Thomas NHS Foundation Trust,13/05/2022,(50552) Qualified Nursing Staff,(id:41958) Gastrointestinal Medicine & Surgery,CONTINENTAL NURSE LTD,id:15221072,1780.07
Department of Health,Guys and St Thomas NHS Foundation Trust,13/05/2022,(50552) Qualified Nursing Staff,(id:41958) Gastrointestinal Medicine & Surgery,CARE PROVIDERS HEALTHCARE,id:15221150 , 362.97
Department of Health,Guys and St Thomas NHS Foundation Trust,13/05/2022,(50522) Unqualified Nursing Staff,(id:41958) Gastrointestinal Medicine & Surgery,MEDICSPRO LTD,id:15219227 , 874.76
Department of Health,Guys and St Thomas NHS Foundation Trust,06/05/2022,(50522) Unqualified Nursing Staff,(id:41958) Gastrointestinal Medicine & Surgery,CARE PROVIDERS HEALTHCARE,id:15180139    , 805.81
Department of Health,Guys and St Thomas NHS Foundation Trust,13/05/2022,(81225) Medical Surgical Supplies & Equipment,(id:41958) Gastrointestinal Medicine & Surgery,NHS SUPPLY CHAIN (MAIDSTONE),id:15122381    ,   5.08
Department of Health,Guys and St Thomas NHS Foundation Trust,19/05/2022,(82000) Provisions & Kitchens,(id:41954) Gastrointestinal Medicine & Surgery,NHS SUPPLY CHAIN (MAIDSTONE),id:15135827,  65.69
Department of Health,Guys and St Thomas NHS Foundation Trust,20/05/2022,(82000) Provisions & Kitchens,(id:41954) Gastrointestinal Medicine & Surgery,NHS SUPPLY CHAIN (MAIDSTONE),id:15220737,  46.23
Department of Health,Guys and St Thomas NHS Foundation Trust,19/05/2022,(83400) Office Equipment,(id:41954) Gastrointestinal Medicine & Surgery,NHS SUPPLY CHAIN (MAIDSTONE),id:15256770, 115.02
Department of Health,Guys and St Thomas NHS Foundation Trust,20/05/2022,(83400) Office Equipment,(id:41954) Gastrointestinal Medicine & Surgery,NHS SUPPLY CHAIN (MAIDSTONE),id:15220737,   7.11
Department of Health,Guys and St Thomas NHS Foundation Trust,20/05/2022,(82800) Bedding & Linen,(id:41954) Gastrointestinal Medicine & Surgery,NHS SUPPLY CHAIN (MAIDSTONE),id:15220737 ,  82.22
Department of Health,Guys and St Thomas NHS Foundation Trust,19/05/2022,(50522) Unqualified Nursing Staff,(id:41954) Gastrointestinal Medicine & Surgery,CARE PROVIDERS HEALTHCARE,id:15265078    , 310.52
Department of Health,Guys and St Thomas NHS Foundation Trust,19/05/2022,(81200) Medical Surgical Supplies & Equipment,(id:41954) Gastrointestinal Medicine & Surgery,NHS SUPPLY CHAIN (MAIDSTONE),id:15135827    , 778.33
Department of Health,Guys and St Thomas NHS Foundation Trust,13/05/2022,(81100) Dressings,(id:41954) Gastrointestinal Medicine & Surgery,NHS SUPPLY CHAIN (MAIDSTONE),id:15150034  , 320.94
Department of Health,Guys and St Thomas NHS Foundation Trust,19/05/2022,(81100) Dressings,(id:41954) Gastrointestinal Medicine & Surgery,NHS SUPPLY CHAIN (MAIDSTONE),id:15135827  , 537.15
Department of Health,Guys and St Thomas NHS Foundation Trust,19/05/2022,(84656) Establishment,(id:41951) Gastrointestinal Medicine & Surgery,DICT8 LIMITED,id:15122496   ,2411.76
Department of Health,Guys and St Thomas NHS Foundation Trust,20/05/2022,(83400) Office Equipment,(id:41949) Gastrointestinal Medicine & Surgery,NHS SUPPLY CHAIN (MAIDSTONE),id:15220737, 193.94
Department of Health,Guys and St Thomas NHS Foundation Trust,13/05/2022,(81200) Medical Surgical Supplies & Equipment,(id:41949) Gastrointestinal Medicine & Surgery,NHS SUPPLY CHAIN (MAIDSTONE),id:15150034    ,5044.38
Department of Health,Guys and St Thomas NHS Foundation Trust,19/05/2022,(81200) Medical Surgical Supplies & Equipment,(id:41949) Gastrointestinal Medicine & Surgery,STRYKER UK LTD,id:15238574   ,1896.00
Department of Health,Guys and St Thomas NHS Foundation Trust,06/05/2022,(50522) Unqualified Nursing Staff,(id:2367419) Gastrointestinal Medicine & Surgery,GLOBE LOCUMS LTD,id:15180278 , 201.08
Department of Health,Guys and St Thomas NHS Foundation Trust,13/05/2022,(82000) Provisions & Kitchens,(id:2367419) Gastrointestinal Medicine & Surgery,NHS SUPPLY CHAIN (MAIDSTONE),id:15150034   ,  32.00
Department of Health,Guys and St Thomas NHS Foundation Trust,13/05/2022,(81200) Medical Surgical Supplies & Equipment,(id:2367419) Gastrointestinal Medicine & Surgery,ARJO UK LIMITED,id:15071879, 624.00
Department of Health,Guys and St Thomas NHS Foundation Trust,19/05/2022,(81200) Medical Surgical Supplies & Equipment,(id:2367419) Gastrointestinal Medicine & Surgery,NHS SUPPLY CHAIN (MAIDSTONE),id:15256770  , 686.43
Department of Health,Guys and St Thomas NHS Foundation Trust,20/05/2022,(81200) Medical Surgical Supplies & Equipment,(id:2367419) Gastrointestinal Medicine & Surgery,NHS SUPPLY CHAIN (MAIDSTONE),id:15220737  , 639.02
Department of Health,Guys and St Thomas NHS Foundation Trust,13/05/2022,(81100) Dressings,(id:2367419) Gastrointestinal Medicine & Surgery,NHS SUPPLY CHAIN (MAIDSTONE),id:15122381, 204.54
Department of Health,Guys and St Thomas NHS Foundation Trust,13/05/2022,(81225) Medical Surgical Supplies & Equipment,(id:2367419) Gastrointestinal Medicine & Surgery,NHS SUPPLY CHAIN (MAIDSTONE),id:15150034  ,  40.61
Department of Health,Guys and St Thomas NHS Foundation Trust,13/05/2022,(89640) Non-Healthcare from NHS Trusts,(id:41942) Gastrointestinal Medicine & Surgery,DARTFORD AND GRAVESHAM NHS TRUST,id:14797521  ,5737.17
Department of Health,Guys and St Thomas NHS Foundation Trust,13/05/2022,(81700) Lab Equipment Purchase,(id:41942) Gastrointestinal Medicine & Surgery,LABORIE MEDICAL TECHNOLOGIES UK,id:15184118 , 852.00
Department of Health,Guys and St Thomas NHS Foundation Trust,13/05/2022,(81100) Dressings,(id:41942) Gastrointestinal Medicine & Surgery,NHS SUPPLY CHAIN (MAIDSTONE),id:15150034  ,  15.00
Department of Health,Guys and St Thomas NHS Foundation Trust,19/05/2022,(82000) Provisions & Kitchens,(id:41917) Gastrointestinal Medicine & Surgery,NHS SUPPLY CHAIN (MAIDSTONE),id:15166815,  21.76
Department of Health,Guys and St Thomas NHS Foundation Trust,20/05/2022,(82800) Bedding & Linen,(id:41917) Gastrointestinal Medicine & Surgery,NHS SUPPLY CHAIN (MAIDSTONE),id:15220737 ,  92.67
Department of Health,Guys and St Thomas NHS Foundation Trust,19/05/2022,(81200) Medical Surgical Supplies & Equipment,(id:41917) Gastrointestinal Medicine & Surgery,18 WEEK SUPPORT LIMITED,id:15244474    ,    23800.00
Department of Health,Guys and St Thomas NHS Foundation Trust,20/05/2022,(81200) Medical Surgical Supplies & Equipment,(id:41917) Gastrointestinal Medicine & Surgery,NHS SUPPLY CHAIN (MAIDSTONE),id:15220737    ,6902.94
Department of Health,Guys and St Thomas NHS Foundation Trust,06/05/2022,(81200) Medical Surgical Supplies & Equipment,(id:41917) Gastrointestinal Medicine & Surgery,CYTED LTD,id:15172159   , 990.00
Department of Health,Guys and St Thomas NHS Foundation Trust,06/05/2022,(81200) Medical Surgical Supplies & Equipment,(id:41917) Gastrointestinal Medicine & Surgery,SYNECTICS MEDICAL LTD (SYNMED),id:15176577  ,2121.60
Department of Health,Guys and St Thomas NHS Foundation Trust,06/05/2022,(81200) Medical Surgical Supplies & Equipment,(id:41917) Gastrointestinal Medicine & Surgery,SYNECTICS MEDICAL LTD (SYNMED),id:15176514  ,4557.60
Department of Health,Guys and St Thomas NHS Foundation Trust,13/05/2022,(81200) Medical Surgical Supplies & Equipment,(id:41917) Gastrointestinal Medicine & Surgery,BOSTON SCIENTIFIC LTD,id:15150169 , 788.22
Department of Health,Guys and St Thomas NHS Foundation Trust,13/05/2022,(81200) Medical Surgical Supplies & Equipment,(id:41917) Gastrointestinal Medicine & Surgery,MEDTRONIC LTD,id:15150239    ,1290.00
Department of Health,Guys and St Thomas NHS Foundation Trust,13/05/2022,(81100) Dressings,(id:41917) Gastrointestinal Medicine & Surgery,NHS SUPPLY CHAIN (MAIDSTONE),id:15122381  ,  31.10
Department of Health,Guys and St Thomas NHS Foundation Trust,20/05/2022,(81400) Medical Surgical Supplies & Equipment,(id:41917) Gastrointestinal Medicine & Surgery,NHS SUPPLY CHAIN (MAIDSTONE),id:15220737    ,    10369.00
Department of Health,Guys and St Thomas NHS Foundation Trust,20/05/2022,(83410) Office Equipment,(id:41917) Gastrointestinal Medicine & Surgery,RICOH UK LTD,id:15263976 , 114.63
Department of Health,Guys and St Thomas NHS Foundation Trust,13/05/2022,(81700) Lab Equipment Purchase,(id:41917) Gastrointestinal Medicine & Surgery,NHS SUPPLY CHAIN (MAIDSTONE),id:15150034    , 120.00
Department of Health,Guys and St Thomas NHS Foundation Trust,06/05/2022,(50552) Qualified Nursing Staff,(id:41917) Gastrointestinal Medicine & Surgery,CONTINENTAL NURSE LTD,id:15183268, 457.11
Department of Health,Guys and St Thomas NHS Foundation Trust,13/05/2022,(81255) Medical Surgical Supplies & Equipment,(id:41917) Gastrointestinal Medicine & Surgery,NHS SUPPLY CHAIN (MAIDSTONE),id:15122381    , 100.44
Department of Health,Guys and St Thomas NHS Foundation Trust,19/05/2022,(81200) Medical Surgical Supplies & Equipment,(id:2625419) Transplant Renal and Urology,JOHNSON & JOHNSON MEDICAL LTD,id:15169294   , 440.26
Department of Health,Guys and St Thomas NHS Foundation Trust,06/05/2022,(81200) Medical Surgical Supplies & Equipment,(id:2625419) Transplant Renal and Urology,JOHNSON & JOHNSON MEDICAL LTD,id:15137260   , 408.77
Department of Health,Guys and St Thomas NHS Foundation Trust,06/05/2022,(84400) Transport,(id:2625419) Transplant Renal and Urology,IMT MEDICAL TRANSPORT LTD,id:15159574,1724.75
Department of Health,Guys and St Thomas NHS Foundation Trust,20/05/2022,(82700) Uniforms & Clothing,(id:42419) Transplant Renal and Urology,NHS SUPPLY CHAIN (MAIDSTONE),id:15220737    ,  79.20
Department of Health,Guys and St Thomas NHS Foundation Trust,20/05/2022,(81100) Dressings,(id:42419) Transplant Renal and Urology,NHS SUPPLY CHAIN (MAIDSTONE),id:15220737    , 307.65
Department of Health,Guys and St Thomas NHS Foundation Trust,19/05/2022,(81200) Medical Surgical Supplies & Equipment,(id:42419) Transplant Renal and Urology,NHS SUPPLY CHAIN (MAIDSTONE),id:15135827 , 920.89
Department of Health,Guys and St Thomas NHS Foundation Trust,20/05/2022,(81200) Medical Surgical Supplies & Equipment,(id:42419) Transplant Renal and Urology,NHS SUPPLY CHAIN (MAIDSTONE),id:15220737 , 771.39
Department of Health,Guys and St Thomas NHS Foundation Trust,13/05/2022,(81200) Medical Surgical Supplies & Equipment,(id:42419) Transplant Renal and Urology,NHS SUPPLY CHAIN (MAIDSTONE),id:15122381 , 912.48
Department of Health,Guys and St Thomas NHS Foundation Trust,20/05/2022,(83410) Office Equipment,(id:42419) Transplant Renal and Urology,RICOH UK LTD,id:15263976   , 180.30
Department of Health,Guys and St Thomas NHS Foundation Trust,13/05/2022,(81700) Lab Equipment Purchase,(id:42419) Transplant Renal and Urology,NHS SUPPLY CHAIN (MAIDSTONE),id:15150034 ,  49.74
Department of Health,Guys and St Thomas NHS Foundation Trust,19/05/2022,(81255) Medical Surgical Supplies & Equipment,(id:42419) Transplant Renal and Urology,NHS SUPPLY CHAIN (MAIDSTONE),id:15135827 ,   8.64
Department of Health,Guys and St Thomas NHS Foundation Trust,20/05/2022,(84600) Establishment,(id:4149419) Transplant Renal and Urology,CLARITY TRAVEL MANAGEMENT,id:15271794 , 187.30
Department of Health,Guys and St Thomas NHS Foundation Trust,13/05/2022,(81200) Medical Surgical Supplies & Equipment,(id:2882419) Transplant Renal and Urology,NHS SUPPLY CHAIN (MAIDSTONE),id:15122381    , 326.89
Department of Health,Guys and St Thomas NHS Foundation Trust,19/05/2022,(81200) Medical Surgical Supplies & Equipment,(id:2882419) Transplant Renal and Urology,NHS SUPPLY CHAIN (MAIDSTONE),id:15256770    , 617.23
Department of Health,Guys and St Thomas NHS Foundation Trust,19/05/2022,(81200) Medical Surgical Supplies & Equipment,(id:42449) Transplant Renal and Urology,LABORIE MEDICAL TECHNOLOGIES UK,id:15234094   , 749.92
Department of Health,Guys and St Thomas NHS Foundation Trust,19/05/2022,(81200) Medical Surgical Supplies & Equipment,(id:42449) Transplant Renal and Urology,NHS SUPPLY CHAIN (MAIDSTONE),id:15256770 ,3645.00
Department of Health,Guys and St Thomas NHS Foundation Trust,19/05/2022,(82000) Provisions & Kitchens,(id:42447) Transplant Renal and Urology,NHS SUPPLY CHAIN (MAIDSTONE),id:15135827  ,   6.94
Department of Health,Guys and St Thomas NHS Foundation Trust,19/05/2022,(82000) Provisions & Kitchens,(id:42447) Transplant Renal and Urology,NHS SUPPLY CHAIN (MAIDSTONE),id:15166815  ,   6.94
Department of Health,Guys and St Thomas NHS Foundation Trust,13/05/2022,(82800) Bedding & Linen,(id:42447) Transplant Renal and Urology,NHS SUPPLY CHAIN (MAIDSTONE),id:15122381   ,  97.48
Department of Health,Guys and St Thomas NHS Foundation Trust,20/05/2022,(81100) Dressings,(id:42447) Transplant Renal and Urology,NHS SUPPLY CHAIN (MAIDSTONE),id:15220737    ,  11.32
Department of Health,Guys and St Thomas NHS Foundation Trust,19/05/2022,(82600) Uniforms & Clothing,(id:42447) Transplant Renal and Urology,NHS SUPPLY CHAIN (MAIDSTONE),id:15166815    ,  21.05
Department of Health,Guys and St Thomas NHS Foundation Trust,19/05/2022,(81200) Medical Surgical Supplies & Equipment,(id:42446) Transplant Renal and Urology,SIGMACON (UK) LTD,id:15249154  , 716.40
Department of Health,Guys and St Thomas NHS Foundation Trust,19/05/2022,(81200) Medical Surgical Supplies & Equipment,(id:42446) Transplant Renal and Urology,BXTACCELYON LIMITED,id:15223634,1254.00
Department of Health,Guys and St Thomas NHS Foundation Trust,19/05/2022,(81200) Medical Surgical Supplies & Equipment,(id:42446) Transplant Renal and Urology,MEDTRONIC LTD,id:15225930 ,1805.90
Department of Health,Guys and St Thomas NHS Foundation Trust,19/05/2022,(81200) Medical Surgical Supplies & Equipment,(id:42446) Transplant Renal and Urology,COLOPLAST LTD,id:15228734 ,4846.80
Department of Health,Guys and St Thomas NHS Foundation Trust,13/05/2022,(81200) Medical Surgical Supplies & Equipment,(id:42446) Transplant Renal and Urology,STRYKER UK LTD,id:15198834, 504.00
Department of Health,Guys and St Thomas NHS Foundation Trust,06/05/2022,(81400) Medical Surgical Supplies & Equipment,(id:42446) Transplant Renal and Urology,KARL STORZ ENDOSCOPY UK LTD,id:15147655  , 737.70
Department of Health,Guys and St Thomas NHS Foundation Trust,19/05/2022,(83400) Office Equipment,(id:42446) Transplant Renal and Urology,NHS SUPPLY CHAIN (MAIDSTONE),id:15166815  , 581.83
Department of Health,Guys and St Thomas NHS Foundation Trust,19/05/2022,(81200) Medical Surgical Supplies & Equipment,(id:42444) Transplant Renal and Urology,STRYKER UK LTD,id:15238654, 504.00
Department of Health,Guys and St Thomas NHS Foundation Trust,13/05/2022,(81200) Medical Surgical Supplies & Equipment,(id:42444) Transplant Renal and Urology,STRYKER UK LTD,id:15198614, 504.00
Department of Health,Guys and St Thomas NHS Foundation Trust,20/05/2022,(81200) Medical Surgical Supplies & Equipment,(id:42444) Transplant Renal and Urology,BOSTON SCIENTIFIC LTD,id:15154127   ,2524.68
Department of Health,Guys and St Thomas NHS Foundation Trust,20/05/2022,(81200) Medical Surgical Supplies & Equipment,(id:42444) Transplant Renal and Urology,BOSTON SCIENTIFIC LTD,id:15164138   ,2176.92
Department of Health,Guys and St Thomas NHS Foundation Trust,06/05/2022,(81200) Medical Surgical Supplies & Equipment,(id:42444) Transplant Renal and Urology,STRYKER UK LTD,id:15169854, 504.00
Department of Health,Guys and St Thomas NHS Foundation Trust,19/05/2022,(82000) Provisions & Kitchens,(id:42443) Transplant Renal and Urology,NHS SUPPLY CHAIN (MAIDSTONE),id:15256770  ,   8.99
Department of Health,Guys and St Thomas NHS Foundation Trust,19/05/2022,(81200) Medical Surgical Supplies & Equipment,(id:42443) Transplant Renal and Urology,NHS SUPPLY CHAIN (MAIDSTONE),id:15135827 ,1110.63
Department of Health,Guys and St Thomas NHS Foundation Trust,19/05/2022,(81200) Medical Surgical Supplies & Equipment,(id:42443) Transplant Renal and Urology,NHS SUPPLY CHAIN (MAIDSTONE),id:15256770 ,1501.13
Department of Health,Guys and St Thomas NHS Foundation Trust,19/05/2022,(50522) Unqualified Nursing Staff,(id:42443) Transplant Renal and Urology,GLOBE LOCUMS LTD,id:15264726, 970.64
Department of Health,Guys and St Thomas NHS Foundation Trust,19/05/2022,(81225) Medical Surgical Supplies & Equipment,(id:42443) Transplant Renal and Urology,NHS SUPPLY CHAIN (MAIDSTONE),id:15256770 ,  89.87
Department of Health,Guys and St Thomas NHS Foundation Trust,19/05/2022,(81700) Lab Equipment Purchase,(id:42443) Transplant Renal and Urology,NHS SUPPLY CHAIN (MAIDSTONE),id:15135827 ,  95.03
Department of Health,Guys and St Thomas NHS Foundation Trust,19/05/2022,(81700) Lab Equipment Purchase,(id:42443) Transplant Renal and Urology,NHS SUPPLY CHAIN (MAIDSTONE),id:15256770 ,  63.09
Department of Health,Guys and St Thomas NHS Foundation Trust,13/05/2022,(81700) Lab Equipment Purchase,(id:42443) Transplant Renal and Urology,NHS SUPPLY CHAIN (MAIDSTONE),id:15122381 ,  68.45
Department of Health,Guys and St Thomas NHS Foundation Trust,19/05/2022,(81255) Medical Surgical Supplies & Equipment,(id:42443) Transplant Renal and Urology,NHS SUPPLY CHAIN (MAIDSTONE),id:15135827 ,   6.24
Department of Health,Guys and St Thomas NHS Foundation Trust,19/05/2022,(82700) Uniforms & Clothing,(id:42442) Transplant Renal and Urology,NHS SUPPLY CHAIN (MAIDSTONE),id:15166815    , 126.72
Department of Health,Guys and St Thomas NHS Foundation Trust,13/05/2022,(50522) Unqualified Nursing Staff,(id:42442) Transplant Renal and Urology,CARE PROVIDERS HEALTHCARE,id:15221225 , 264.67
Department of Health,Guys and St Thomas NHS Foundation Trust,19/05/2022,(81100) Dressings,(id:42442) Transplant Renal and Urology,NHS SUPPLY CHAIN (MAIDSTONE),id:15166815    , 323.39
Department of Health,Guys and St Thomas NHS Foundation Trust,19/05/2022,(81100) Dressings,(id:42442) Transplant Renal and Urology,NHS SUPPLY CHAIN (MAIDSTONE),id:15256770    , 411.75
Department of Health,Guys and St Thomas NHS Foundation Trust,19/05/2022,(81200) Medical Surgical Supplies & Equipment,(id:42442) Transplant Renal and Urology,NHS SUPPLY CHAIN (MAIDSTONE),id:15256770 ,1017.74
Department of Health,Guys and St Thomas NHS Foundation Trust,19/05/2022,(81200) Medical Surgical Supplies & Equipment,(id:42439) Transplant Renal and Urology,INTUITIVE SURGICAL LTD,id:15227598  ,    17406.00
Department of Health,Guys and St Thomas NHS Foundation Trust,19/05/2022,(81200) Medical Surgical Supplies & Equipment,(id:42439) Transplant Renal and Urology,INTUITIVE SURGICAL LTD,id:15227503  ,    33030.00
Department of Health,Guys and St Thomas NHS Foundation Trust,19/05/2022,(82800) Bedding & Linen,(id:42439) Transplant Renal and Urology,INTUITIVE SURGICAL LTD,id:15227503    ,    14461.20
Department of Health,Guys and St Thomas NHS Foundation Trust,19/05/2022,(81200) Medical Surgical Supplies & Equipment,(id:3671419) Transplant Renal and Urology,NHS SUPPLY CHAIN (MAIDSTONE),id:15166815    , 712.37
Department of Health,Guys and St Thomas NHS Foundation Trust,13/05/2022,(82000) Provisions & Kitchens,(id:42435) Transplant Renal and Urology,NHS SUPPLY CHAIN (MAIDSTONE),id:15150034  ,  13.06
Department of Health,Guys and St Thomas NHS Foundation Trust,20/05/2022,(82000) Provisions & Kitchens,(id:42435) Transplant Renal and Urology,NHS SUPPLY CHAIN (MAIDSTONE),id:15220737  ,  42.04
Department of Health,Guys and St Thomas NHS Foundation Trust,13/05/2022,(82800) Bedding & Linen,(id:42435) Transplant Renal and Urology,NHS SUPPLY CHAIN (MAIDSTONE),id:15106779   , 112.79
Department of Health,Guys and St Thomas NHS Foundation Trust,13/05/2022,(81200) Medical Surgical Supplies & Equipment,(id:42433) Transplant Renal and Urology,TELEFLEX MEDICAL,id:15120263   ,1361.70
Department of Health,Guys and St Thomas NHS Foundation Trust,19/05/2022,(81200) Medical Surgical Supplies & Equipment,(id:42433) Transplant Renal and Urology,TELEFLEX MEDICAL,id:15181398   , 855.00
Department of Health,Guys and St Thomas NHS Foundation Trust,19/05/2022,(81200) Medical Surgical Supplies & Equipment,(id:42433) Transplant Renal and Urology,TELEFLEX MEDICAL,id:15164230   ,1282.50
Department of Health,Guys and St Thomas NHS Foundation Trust,19/05/2022,(81200) Medical Surgical Supplies & Equipment,(id:42433) Transplant Renal and Urology,TELEFLEX MEDICAL,id:15164236   ,1282.50
Department of Health,Guys and St Thomas NHS Foundation Trust,13/05/2022,(81200) Medical Surgical Supplies & Equipment,(id:42430) Transplant Renal and Urology,B.BRAUN MEDICAL LTD,id:15208319, 602.44
Department of Health,Guys and St Thomas NHS Foundation Trust,13/05/2022,(81200) Medical Surgical Supplies & Equipment,(id:42430) Transplant Renal and Urology,RENAL HEALTHCARE SERVICES LTD,id:15203479,1830.00
Department of Health,Guys and St Thomas NHS Foundation Trust,19/05/2022,(81200) Medical Surgical Supplies & Equipment,(id:42430) Transplant Renal and Urology,BAXTER HEALTHCARE LTD,id:15244934   ,1766.21
Department of Health,Guys and St Thomas NHS Foundation Trust,13/05/2022,(82800) Bedding & Linen,(id:42428) Transplant Renal and Urology,NHS SUPPLY CHAIN (MAIDSTONE),id:15122381   ,  57.19
Department of Health,Guys and St Thomas NHS Foundation Trust,19/05/2022,(81100) Dressings,(id:42428) Transplant Renal and Urology,NHS SUPPLY CHAIN (MAIDSTONE),id:15135827    ,   3.65
Department of Health,Guys and St Thomas NHS Foundation Trust,19/05/2022,(81100) Dressings,(id:42428) Transplant Renal and Urology,NHS SUPPLY CHAIN (MAIDSTONE),id:15166815    ,   6.84
Department of Health,Guys and St Thomas NHS Foundation Trust,19/05/2022,(81200) Medical Surgical Supplies & Equipment,(id:42428) Transplant Renal and Urology,NHS SUPPLY CHAIN (MAIDSTONE),id:15256770 , 218.04
Department of Health,Guys and St Thomas NHS Foundation Trust,19/05/2022,(81200) Medical Surgical Supplies & Equipment,(id:42428) Transplant Renal and Urology,NHS SUPPLY CHAIN (MAIDSTONE),id:15135827 , 141.66
Department of Health,Guys and St Thomas NHS Foundation Trust,19/05/2022,(81700) Lab Equipment Purchase,(id:42428) Transplant Renal and Urology,NHS SUPPLY CHAIN (MAIDSTONE),id:15135827 ,  90.40
Department of Health,Guys and St Thomas NHS Foundation Trust,19/05/2022,(81200) Medical Surgical Supplies & Equipment,(id:42420) Transplant Renal and Urology,BAXTER HEALTHCARE LTD,id:15188655   , 999.26
Department of Health,Guys and St Thomas NHS Foundation Trust,20/05/2022,(81200) Medical Surgical Supplies & Equipment,(id:42420) Transplant Renal and Urology,NHS SUPPLY CHAIN (MAIDSTONE),id:15220737 , 295.20
Department of Health,Guys and St Thomas NHS Foundation Trust,19/05/2022,(82800) Bedding & Linen,(id:42420) Transplant Renal and Urology,NHS SUPPLY CHAIN (MAIDSTONE),id:15135827   ,  94.68
Department of Health,Guys and St Thomas NHS Foundation Trust,13/05/2022,(81100) Dressings,(id:42420) Transplant Renal and Urology,JOHNSON & JOHNSON MEDICAL LTD,id:15141744   , 694.70
Department of Health,Guys and St Thomas NHS Foundation Trust,20/05/2022,(83410) Office Equipment,(id:42438) Transplant Renal and Urology,RICOH UK LTD,id:15263976   ,  11.77
Department of Health,Guys and St Thomas NHS Foundation Trust,20/05/2022,(83410) Office Equipment,(id:42432) Transplant Renal and Urology,RICOH UK LTD,id:15263976   ,   4.42
Department of Health,Guys and St Thomas NHS Foundation Trust,19/05/2022,(81200) Medical Surgical Supplies & Equipment,(id:42425) Transplant Renal and Urology,NHS SUPPLY CHAIN (MAIDSTONE),id:15256770 ,1107.00
Department of Health,Guys and St Thomas NHS Foundation Trust,19/05/2022,(81200) Medical Surgical Supplies & Equipment,(id:42422) Transplant Renal and Urology,NXSTAGE MEDICAL UK LIMITED,id:15235174   ,1116.00
Department of Health,Guys and St Thomas NHS Foundation Trust,19/05/2022,(81200) Medical Surgical Supplies & Equipment,(id:42422) Transplant Renal and Urology,NXSTAGE MEDICAL UK LIMITED,id:15234815   ,1346.64
Department of Health,Guys and St Thomas NHS Foundation Trust,19/05/2022,(81200) Medical Surgical Supplies & Equipment,(id:42422) Transplant Renal and Urology,NXSTAGE MEDICAL UK LIMITED,id:15256728   , 664.15
Department of Health,Guys and St Thomas NHS Foundation Trust,19/05/2022,(81200) Medical Surgical Supplies & Equipment,(id:42422) Transplant Renal and Urology,NHS SUPPLY CHAIN (MAIDSTONE),id:15135827 , 963.72
Department of Health,Guys and St Thomas NHS Foundation Trust,19/05/2022,(81200) Medical Surgical Supplies & Equipment,(id:42422) Transplant Renal and Urology,NXSTAGE MEDICAL UK LIMITED,id:15223647   , 748.32
Department of Health,Guys and St Thomas NHS Foundation Trust,20/05/2022,(81200) Medical Surgical Supplies & Equipment,(id:42422) Transplant Renal and Urology,NXSTAGE MEDICAL UK LIMITED,id:15265237   ,1346.64
Department of Health,Guys and St Thomas NHS Foundation Trust,19/05/2022,(81700) Lab Equipment Purchase,(id:42422) Transplant Renal and Urology,NHS SUPPLY CHAIN (MAIDSTONE),id:15256770 ,   9.67
Department of Health,Guys and St Thomas NHS Foundation Trust,19/05/2022,(81700) Lab Equipment Purchase,(id:42422) Transplant Renal and Urology,NHS SUPPLY CHAIN (MAIDSTONE),id:15135827 ,  73.06
Department of Health,Guys and St Thomas NHS Foundation Trust,19/05/2022,(81100) Dressings,(id:42422) Transplant Renal and Urology,NHS SUPPLY CHAIN (MAIDSTONE),id:15166815    ,  19.43
Department of Health,Guys and St Thomas NHS Foundation Trust,19/05/2022,(82800) Bedding & Linen,(id:42422) Transplant Renal and Urology,NHS SUPPLY CHAIN (MAIDSTONE),id:15135827   ,  21.29
Department of Health,Guys and St Thomas NHS Foundation Trust,19/05/2022,(83500) Furniture & Fittings,(id:42422) Transplant Renal and Urology,NHS SUPPLY CHAIN (MAIDSTONE),id:15166815   ,  84.10
Department of Health,Guys and St Thomas NHS Foundation Trust,19/05/2022,(81200) Medical Surgical Supplies & Equipment,(id:42421) Transplant Renal and Urology,BAXTER HEALTHCARE LTD,id:15172554   , 800.00
Department of Health,Guys and St Thomas NHS Foundation Trust,19/05/2022,(81700) Lab Equipment Purchase,(id:42421) Transplant Renal and Urology,NHS SUPPLY CHAIN (MAIDSTONE),id:15256770 , 102.76
Department of Health,Guys and St Thomas NHS Foundation Trust,19/05/2022,(80150) Drug Costs,(id:4622425) Transplant Renal and Urology,FRESENIUS MEDICAL CARE RENAL SERVICES LT,id:14855254    ,1568.22
Department of Health,Guys and St Thomas NHS Foundation Trust,19/05/2022,(80150) Drug Costs,(id:4622425) Transplant Renal and Urology,FRESENIUS MEDICAL CARE RENAL SERVICES LT,id:14982580    ,1708.13
Department of Health,Guys and St Thomas NHS Foundation Trust,19/05/2022,(80150) Drug Costs,(id:4622425) Transplant Renal and Urology,FRESENIUS MEDICAL CARE RENAL SERVICES LT,id:15098754    , 547.88
Department of Health,Guys and St Thomas NHS Foundation Trust,19/05/2022,(80150) Drug Costs,(id:4622425) Transplant Renal and Urology,FRESENIUS MEDICAL CARE RENAL SERVICES LT,id:15098594    , 621.73
Department of Health,Guys and St Thomas NHS Foundation Trust,19/05/2022,(81200) Medical Surgical Supplies & Equipment,(id:884419) Surgery,NHS SUPPLY CHAIN (MAIDSTONE),id:15166815 , 209.64
Department of Health,Guys and St Thomas NHS Foundation Trust,19/05/2022,(82800) Bedding & Linen,(id:884419) Surgery,NHS SUPPLY CHAIN (MAIDSTONE),id:15135827   ,  35.24
Department of Health,Guys and St Thomas NHS Foundation Trust,19/05/2022,(83400) Office Equipment,(id:884419) Surgery,NHS SUPPLY CHAIN (MAIDSTONE),id:15166815  , 183.31
Department of Health,Guys and St Thomas NHS Foundation Trust,13/05/2022,(81225) Medical Surgical Supplies & Equipment,(id:884419) Surgery,PROMEDICS ORTHOPAEDICS LTD,id:15213576   ,1077.48
Department of Health,Guys and St Thomas NHS Foundation Trust,19/05/2022,(83400) Office Equipment,(id:42485) Surgery,NHS SUPPLY CHAIN (MAIDSTONE),id:15135827   , 115.49
Department of Health,Guys and St Thomas NHS Foundation Trust,13/05/2022,(82800) Bedding & Linen,(id:42485) Surgery,NHS SUPPLY CHAIN (MAIDSTONE),id:15150034    , 129.38
Department of Health,Guys and St Thomas NHS Foundation Trust,13/05/2022,(81225) Medical Surgical Supplies & Equipment,(id:42485) Surgery,NHS SUPPLY CHAIN (MAIDSTONE),id:15150034  ,  14.26
Department of Health,Guys and St Thomas NHS Foundation Trust,19/05/2022,(81200) Medical Surgical Supplies & Equipment,(id:42484) Surgery,MERCIAN SURGICAL SUPPLY CO LTD,id:15232074, 984.00
Department of Health,Guys and St Thomas NHS Foundation Trust,19/05/2022,(81200) Medical Surgical Supplies & Equipment,(id:42484) Surgery,HEALTHCARE 21 LTD,id:15172568   , 636.00
Department of Health,Guys and St Thomas NHS Foundation Trust,13/05/2022,(81200) Medical Surgical Supplies & Equipment,(id:42484) Surgery,JOHNSON & JOHNSON MEDICAL LTD,id:15207441 ,3452.74
Department of Health,Guys and St Thomas NHS Foundation Trust,13/05/2022,(81200) Medical Surgical Supplies & Equipment,(id:42484) Surgery,KLS MARTIN UK LTD,id:15087047   ,5315.04
Department of Health,Guys and St Thomas NHS Foundation Trust,13/05/2022,(81200) Medical Surgical Supplies & Equipment,(id:42484) Surgery,HEALTHCARE 21 LTD,id:15168034   ,6986.40
Department of Health,Guys and St Thomas NHS Foundation Trust,19/05/2022,(81200) Medical Surgical Supplies & Equipment,(id:42484) Surgery,Q MEDICAL TECHNOLOGIES LTD,id:15222445    ,    15754.80
Department of Health,Guys and St Thomas NHS Foundation Trust,19/05/2022,(81100) Dressings,(id:42484) Surgery,NHS SUPPLY CHAIN (MAIDSTONE),id:15166815,  90.33
Department of Health,Guys and St Thomas NHS Foundation Trust,19/05/2022,(81225) Medical Surgical Supplies & Equipment,(id:42484) Surgery,NHS SUPPLY CHAIN (MAIDSTONE),id:15135827  ,  73.44
Department of Health,Guys and St Thomas NHS Foundation Trust,13/05/2022,(81200) Medical Surgical Supplies & Equipment,(id:42482) Surgery,NHS SUPPLY CHAIN (MAIDSTONE),id:15150034  ,  10.20
Department of Health,Guys and St Thomas NHS Foundation Trust,06/05/2022,(81200) Medical Surgical Supplies & Equipment,(id:42467) Surgery,LEDA ORTHOPAEDICS LTD,id:15162490    ,1326.00
Department of Health,Guys and St Thomas NHS Foundation Trust,13/05/2022,(81200) Medical Surgical Supplies & Equipment,(id:42467) Surgery,NHS SUPPLY CHAIN (MAIDSTONE),id:15122381  ,1873.62
Department of Health,Guys and St Thomas NHS Foundation Trust,19/05/2022,(81200) Medical Surgical Supplies & Equipment,(id:42467) Surgery,ARTHREX LTD,id:14762494    , 668.40
Department of Health,Guys and St Thomas NHS Foundation Trust,20/05/2022,(81200) Medical Surgical Supplies & Equipment,(id:42467) Surgery,STRYKER UK LTD,id:15267124 ,5389.44
Department of Health,Guys and St Thomas NHS Foundation Trust,13/05/2022,(81200) Medical Surgical Supplies & Equipment,(id:42467) Surgery,T J SMITH & NEPHEW LTD,id:15203384   , 744.05
Department of Health,Guys and St Thomas NHS Foundation Trust,19/05/2022,(81200) Medical Surgical Supplies & Equipment,(id:42467) Surgery,SMITH & NEPHEW ORTHOPAEDICS LTD.,id:15172232   ,1159.33
Department of Health,Guys and St Thomas NHS Foundation Trust,06/05/2022,(81200) Medical Surgical Supplies & Equipment,(id:42466) Surgery,JOINT OPERATIONS (UK) LLP,id:15156474, 918.00
Department of Health,Guys and St Thomas NHS Foundation Trust,19/05/2022,(81100) Dressings,(id:42466) Surgery,NHS SUPPLY CHAIN (MAIDSTONE),id:15166815,1148.87
Department of Health,Guys and St Thomas NHS Foundation Trust,19/05/2022,(82700) Uniforms & Clothing,(id:42465) Surgery,NHS SUPPLY CHAIN (MAIDSTONE),id:15135827,  31.68
Department of Health,Guys and St Thomas NHS Foundation Trust,13/05/2022,(50522) Unqualified Nursing Staff,(id:42465) Surgery,GLOBE LOCUMS LTD,id:15219246 , 269.10
Department of Health,Guys and St Thomas NHS Foundation Trust,19/05/2022,(81700) Lab Equipment Purchase,(id:42465) Surgery,NHS SUPPLY CHAIN (MAIDSTONE),id:15166815  ,  19.40
Department of Health,Guys and St Thomas NHS Foundation Trust,13/05/2022,(50552) Qualified Nursing Staff,(id:42465) Surgery,MSI GROUP LTD,id:15218837 , 318.21
Department of Health,Guys and St Thomas NHS Foundation Trust,13/05/2022,(83400) Office Equipment,(id:42464) Surgery,NHS SUPPLY CHAIN (MAIDSTONE),id:15122381   ,   9.65
Department of Health,Guys and St Thomas NHS Foundation Trust,19/05/2022,(83400) Office Equipment,(id:42464) Surgery,NHS SUPPLY CHAIN (MAIDSTONE),id:15166815   ,   9.65
Department of Health,Guys and St Thomas NHS Foundation Trust,13/05/2022,(82600) Uniforms & Clothing,(id:42463) Surgery,NHS SUPPLY CHAIN (MAIDSTONE),id:15106779,   3.60
Department of Health,Guys and St Thomas NHS Foundation Trust,13/05/2022,(81200) Medical Surgical Supplies & Equipment,(id:42463) Surgery,NHS SUPPLY CHAIN (MAIDSTONE),id:15106779  , 119.99
Department of Health,Guys and St Thomas NHS Foundation Trust,19/05/2022,(83400) Office Equipment,(id:42463) Surgery,NHS SUPPLY CHAIN (MAIDSTONE),id:15135827   ,1559.24
Department of Health,Guys and St Thomas NHS Foundation Trust,13/05/2022,(81000) Surgical Appliances,(id:42461) Surgery,TALAR MADE ORTHOTICS LTD,id:15205740    ,-846.38
Department of Health,Guys and St Thomas NHS Foundation Trust,19/05/2022,(81000) Surgical Appliances,(id:42461) Surgery,TALAR MADE ORTHOTICS LTD,id:15258276    , 106.44
Department of Health,Guys and St Thomas NHS Foundation Trust,19/05/2022,(82800) Bedding & Linen,(id:42459) Surgery,NHS SUPPLY CHAIN (MAIDSTONE),id:15166815    , 123.41
Department of Health,Guys and St Thomas NHS Foundation Trust,20/05/2022,(81200) Medical Surgical Supplies & Equipment,(id:42459) Surgery,NHS SUPPLY CHAIN (MAIDSTONE),id:15220737  , 433.27
Department of Health,Guys and St Thomas NHS Foundation Trust,20/05/2022,(81700) Lab Equipment Purchase,(id:42459) Surgery,NHS SUPPLY CHAIN (MAIDSTONE),id:15220737  ,   9.67
Department of Health,Guys and St Thomas NHS Foundation Trust,13/05/2022,(81700) Lab Equipment Purchase,(id:42459) Surgery,NHS SUPPLY CHAIN (MAIDSTONE),id:15122381  ,  32.10
Department of Health,Guys and St Thomas NHS Foundation Trust,19/05/2022,(82700) Uniforms & Clothing,(id:42458) Surgery,NHS SUPPLY CHAIN (MAIDSTONE),id:15166815,  31.68
Department of Health,Guys and St Thomas NHS Foundation Trust,20/05/2022,(81225) Medical Surgical Supplies & Equipment,(id:42458) Surgery,NHS SUPPLY CHAIN (MAIDSTONE),id:15220737  ,  10.15
Department of Health,Guys and St Thomas NHS Foundation Trust,20/05/2022,(81275) Medical Surgical Supplies & Equipment,(id:42458) Surgery,NHS SUPPLY CHAIN (MAIDSTONE),id:15220737  ,  14.46
Department of Health,Guys and St Thomas NHS Foundation Trust,13/05/2022,(83400) Office Equipment,(id:3821419) Cancer Supportive Services and R&D,SKYE CLOUD LTD,id:15209894   ,1092.00
Department of Health,Guys and St Thomas NHS Foundation Trust,19/05/2022,(54050) Technical Officers,(id:42275) Cancer Supportive Services and R&D,KINGS COLLEGE LONDON:03529700,id:15243675   ,4243.52
Department of Health,Guys and St Thomas NHS Foundation Trust,06/05/2022,(83500) Furniture & Fittings,(id:42276) Haematology Cellular Pathology and Supporting Services,POSTURITE (UK) LTD,id:15156514  , 875.89
Department of Health,Guys and St Thomas NHS Foundation Trust,13/05/2022,(81200) Medical Surgical Supplies & Equipment,(id:42270) Haematology Cellular Pathology and Supporting Services,TERUMO BCT EUROPE NV/SA  (PREVIOUSLY CARIDIAN),id:14789634  , 688.32
Department of Health,Guys and St Thomas NHS Foundation Trust,19/05/2022,(81200) Medical Surgical Supplies & Equipment,(id:42270) Haematology Cellular Pathology and Supporting Services,TERUMO BCT EUROPE NV/SA  (PREVIOUSLY CARIDIAN),id:15192054  , 688.32
Department of Health,Guys and St Thomas NHS Foundation Trust,19/05/2022,(81100) Dressings,(id:42270) Haematology Cellular Pathology and Supporting Services,NHS SUPPLY CHAIN (MAIDSTONE),id:15135827   , 393.92
Department of Health,Guys and St Thomas NHS Foundation Trust,13/05/2022,(81255) Medical Surgical Supplies & Equipment,(id:42270) Haematology Cellular Pathology and Supporting Services,NHS SUPPLY CHAIN (MAIDSTONE),id:15122381,   1.01
Department of Health,Guys and St Thomas NHS Foundation Trust,20/05/2022,(81255) Medical Surgical Supplies & Equipment,(id:42270) Haematology Cellular Pathology and Supporting Services,NHS SUPPLY CHAIN (MAIDSTONE),id:15220737,   2.02
Department of Health,Guys and St Thomas NHS Foundation Trust,13/05/2022,(83400) Office Equipment,(id:42270) Haematology Cellular Pathology and Supporting Services,NHS SUPPLY CHAIN (MAIDSTONE),id:15150034 , 255.36
Department of Health,Guys and St Thomas NHS Foundation Trust,19/05/2022,(83400) Office Equipment,(id:42270) Haematology Cellular Pathology and Supporting Services,NHS SUPPLY CHAIN (MAIDSTONE),id:15166815 ,  49.92
Department of Health,Guys and St Thomas NHS Foundation Trust,19/05/2022,(82600) Uniforms & Clothing,(id:42270) Haematology Cellular Pathology and Supporting Services,NHS SUPPLY CHAIN (MAIDSTONE),id:15166815   ,  92.63
Department of Health,Guys and St Thomas NHS Foundation Trust,13/05/2022,(82600) Uniforms & Clothing,(id:42270) Haematology Cellular Pathology and Supporting Services,NHS SUPPLY CHAIN (MAIDSTONE),id:15122381   ,  32.18
Department of Health,Guys and St Thomas NHS Foundation Trust,13/05/2022,(82600) Uniforms & Clothing,(id:42267) Haematology Cellular Pathology and Supporting Services,FULL SUPPORT HEALTHCARE LTD,id:15203574    ,2960.40
Department of Health,Guys and St Thomas NHS Foundation Trust,20/05/2022,(83410) Office Equipment,(id:42267) Haematology Cellular Pathology and Supporting Services,RICOH UK LTD,id:15263976  ,  34.89
Department of Health,Guys and St Thomas NHS Foundation Trust,20/05/2022,(83500) Furniture & Fittings,(id:42265) Haematology Cellular Pathology and Supporting Services,NHS SUPPLY CHAIN (MAIDSTONE),id:15220737  , 993.60
Department of Health,Guys and St Thomas NHS Foundation Trust,19/05/2022,(82800) Bedding & Linen,(id:42265) Haematology Cellular Pathology and Supporting Services,NHS SUPPLY CHAIN (MAIDSTONE),id:15166815  , 123.88
Department of Health,Guys and St Thomas NHS Foundation Trust,20/05/2022,(82800) Bedding & Linen,(id:42265) Haematology Cellular Pathology and Supporting Services,NHS SUPPLY CHAIN (MAIDSTONE),id:15220737  ,  72.44
Department of Health,Guys and St Thomas NHS Foundation Trust,13/05/2022,(50522) Unqualified Nursing Staff,(id:42265) Haematology Cellular Pathology and Supporting Services,MSI GROUP LTD,id:15219166  , 773.54
Department of Health,Guys and St Thomas NHS Foundation Trust,06/05/2022,(50522) Unqualified Nursing Staff,(id:42265) Haematology Cellular Pathology and Supporting Services,CARE PROVIDERS HEALTHCARE,id:15179885, 876.30
Department of Health,Guys and St Thomas NHS Foundation Trust,19/05/2022,(81200) Medical Surgical Supplies & Equipment,(id:42272) Haematology Cellular Pathology and Supporting Services,NHS SUPPLY CHAIN (MAIDSTONE),id:15135827,  74.96
Department of Health,Guys and St Thomas NHS Foundation Trust,06/05/2022,(80205) Drug Costs,(id:42273) Haematology Cellular Pathology and Supporting Services,HEALTHCARE AT HOME LTD,id:15176674   ,1486.77
Department of Health,Guys and St Thomas NHS Foundation Trust,06/05/2022,(80205) Drug Costs,(id:42273) Haematology Cellular Pathology and Supporting Services,ALCURA UK LIMITED,id:15176774   ,2930.00
Department of Health,Guys and St Thomas NHS Foundation Trust,06/05/2022,(80205) Drug Costs,(id:42273) Haematology Cellular Pathology and Supporting Services,HEALTHCARE AT HOME LTD,id:15176626   ,3370.17
Department of Health,Guys and St Thomas NHS Foundation Trust,06/05/2022,(80205) Drug Costs,(id:42273) Haematology Cellular Pathology and Supporting Services,HEALTHCARE AT HOME LTD,id:15177074   ,4105.17
Department of Health,Guys and St Thomas NHS Foundation Trust,06/05/2022,(80205) Drug Costs,(id:42273) Haematology Cellular Pathology and Supporting Services,HEALTHCARE AT HOME LTD,id:15176914   ,4610.17
Department of Health,Guys and St Thomas NHS Foundation Trust,06/05/2022,(80205) Drug Costs,(id:42273) Haematology Cellular Pathology and Supporting Services,HEALTHCARE AT HOME LTD,id:15178294   ,5890.17
Department of Health,Guys and St Thomas NHS Foundation Trust,06/05/2022,(80205) Drug Costs,(id:42273) Haematology Cellular Pathology and Supporting Services,HEALTHCARE AT HOME LTD,id:15178238   ,5890.17
Department of Health,Guys and St Thomas NHS Foundation Trust,06/05/2022,(80205) Drug Costs,(id:42273) Haematology Cellular Pathology and Supporting Services,HEALTHCARE AT HOME LTD,id:15176645   ,6000.00
Department of Health,Guys and St Thomas NHS Foundation Trust,06/05/2022,(80205) Drug Costs,(id:42273) Haematology Cellular Pathology and Supporting Services,HEALTHCARE AT HOME LTD,id:15176754   ,7200.00
Department of Health,Guys and St Thomas NHS Foundation Trust,06/05/2022,(80205) Drug Costs,(id:42273) Haematology Cellular Pathology and Supporting Services,HEALTHCARE AT HOME LTD,id:15177354   ,8770.17
Department of Health,Guys and St Thomas NHS Foundation Trust,06/05/2022,(80205) Drug Costs,(id:42273) Haematology Cellular Pathology and Supporting Services,HEALTHCARE AT HOME LTD,id:15176635   ,    23410.17
Department of Health,Guys and St Thomas NHS Foundation Trust,19/05/2022,(80205) Drug Costs,(id:42273) Haematology Cellular Pathology and Supporting Services,HEALTHCARE AT HOME LTD,id:15241995   ,1000.00
Department of Health,Guys and St Thomas NHS Foundation Trust,19/05/2022,(80205) Drug Costs,(id:42273) Haematology Cellular Pathology and Supporting Services,HEALTHCARE AT HOME LTD,id:15222792   ,1700.00
Department of Health,Guys and St Thomas NHS Foundation Trust,19/05/2022,(80205) Drug Costs,(id:42273) Haematology Cellular Pathology and Supporting Services,HEALTHCARE AT HOME LTD,id:15222634   ,1810.17
Department of Health,Guys and St Thomas NHS Foundation Trust,19/05/2022,(80205) Drug Costs,(id:42273) Haematology Cellular Pathology and Supporting Services,HEALTHCARE AT HOME LTD,id:15242054   ,1938.00
Department of Health,Guys and St Thomas NHS Foundation Trust,19/05/2022,(80205) Drug Costs,(id:42273) Haematology Cellular Pathology and Supporting Services,HEALTHCARE AT HOME LTD,id:15222754   ,2630.17
Department of Health,Guys and St Thomas NHS Foundation Trust,19/05/2022,(80205) Drug Costs,(id:42273) Haematology Cellular Pathology and Supporting Services,HEALTHCARE AT HOME LTD,id:15222734   ,3730.17
Department of Health,Guys and St Thomas NHS Foundation Trust,19/05/2022,(80205) Drug Costs,(id:42273) Haematology Cellular Pathology and Supporting Services,HEALTHCARE AT HOME LTD,id:15241894   ,5180.07
Department of Health,Guys and St Thomas NHS Foundation Trust,19/05/2022,(80205) Drug Costs,(id:42273) Haematology Cellular Pathology and Supporting Services,HEALTHCARE AT HOME LTD,id:15222775   ,5890.17
Department of Health,Guys and St Thomas NHS Foundation Trust,19/05/2022,(80205) Drug Costs,(id:42273) Haematology Cellular Pathology and Supporting Services,HEALTHCARE AT HOME LTD,id:15241914   ,6130.17
Department of Health,Guys and St Thomas NHS Foundation Trust,19/05/2022,(80205) Drug Costs,(id:42273) Haematology Cellular Pathology and Supporting Services,HEALTHCARE AT HOME LTD,id:15222788   ,    24000.00
Department of Health,Guys and St Thomas NHS Foundation Trust,19/05/2022,(80205) Drug Costs,(id:42273) Haematology Cellular Pathology and Supporting Services,HEALTHCARE AT HOME LTD,id:15256038   ,    -6279.00
Department of Health,Guys and St Thomas NHS Foundation Trust,19/05/2022,(50200) Consultants,(id:202405) Haematology Cellular Pathology and Supporting Services,KINGS COLLEGE LONDON:03529700,id:15243675    ,    11433.79
Department of Health,Guys and St Thomas NHS Foundation Trust,19/05/2022,(54052) Technical Officers,(id:42128) Haematology Cellular Pathology and Supporting Services,TOTAL ASSIST RECRUITMENT LTD,id:15264650    ,1024.56
Department of Health,Guys and St Thomas NHS Foundation Trust,19/05/2022,(54052) Technical Officers,(id:42128) Haematology Cellular Pathology and Supporting Services,TOTAL ASSIST RECRUITMENT LTD,id:15219188    ,1280.70
Department of Health,Guys and St Thomas NHS Foundation Trust,19/05/2022,(81200) Medical Surgical Supplies & Equipment,(id:42128) Haematology Cellular Pathology and Supporting Services,NHS SUPPLY CHAIN (MAIDSTONE),id:15135827,  19.78
Department of Health,Guys and St Thomas NHS Foundation Trust,19/05/2022,(50200) Consultants,(id:2002419) Oncology Services,KINGS COLLEGE LONDON:03529700,id:15243675,3200.79
Department of Health,Guys and St Thomas NHS Foundation Trust,13/05/2022,(83400) Office Equipment,(id:42258) Oncology Services,NHS SUPPLY CHAIN (MAIDSTONE),id:15122381   ,  86.95
Department of Health,Guys and St Thomas NHS Foundation Trust,20/05/2022,(83400) Office Equipment,(id:42258) Oncology Services,NHS SUPPLY CHAIN (MAIDSTONE),id:15220737   ,  16.67
Department of Health,Guys and St Thomas NHS Foundation Trust,20/05/2022,(82800) Bedding & Linen,(id:42258) Oncology Services,NHS SUPPLY CHAIN (MAIDSTONE),id:15220737    ,  64.69
Department of Health,Guys and St Thomas NHS Foundation Trust,20/05/2022,(81200) Medical Surgical Supplies & Equipment,(id:42258) Oncology Services,NHS SUPPLY CHAIN (MAIDSTONE),id:15220737  ,  74.56
Department of Health,Guys and St Thomas NHS Foundation Trust,13/05/2022,(81400) Medical Surgical Supplies & Equipment,(id:42258) Oncology Services,ELEKTA LTD (CIS5),id:15149195   ,    61246.14
Department of Health,Guys and St Thomas NHS Foundation Trust,19/05/2022,(81400) Medical Surgical Supplies & Equipment,(id:42258) Oncology Services,GE HEALTHCARE (50652318),id:15249015 ,   116415.00
Department of Health,Guys and St Thomas NHS Foundation Trust,17/05/2022,(52062) Radiographers,(id:42258) Oncology Services,PRICEWATERHOUSECOOPERS LLP,id:15250624   ,3587.16
Department of Health,Guys and St Thomas NHS Foundation Trust,19/05/2022,(81500) X Ray Equipment Purchase,(id:42258) Oncology Services,NHS SUPPLY CHAIN (MAIDSTONE),id:15135827, 326.36
Department of Health,Guys and St Thomas NHS Foundation Trust,19/05/2022,(81500) X Ray Equipment Purchase,(id:42258) Oncology Services,ELEKTA LTD (CIS5),id:15249415 , 593.40
Department of Health,Guys and St Thomas NHS Foundation Trust,13/05/2022,(82000) Provisions & Kitchens,(id:42258) Oncology Services,NHS SUPPLY CHAIN (MAIDSTONE),id:15122381   ,  11.76
Department of Health,Guys and St Thomas NHS Foundation Trust,13/05/2022,(81000) Surgical Appliances,(id:42257) Oncology Services,TALAR MADE ORTHOTICS LTD,id:15205796    , 238.62
Department of Health,Guys and St Thomas NHS Foundation Trust,20/05/2022,(89440) Research and Development,(id:42261) Oncology Services,EXACT SCIENCES UK LTD,id:15027896  ,2700.00
Department of Health,Guys and St Thomas NHS Foundation Trust,13/05/2022,(81000) Surgical Appliances,(id:42261) Oncology Services,TALAR MADE ORTHOTICS LTD,id:15205801    , 218.04
Department of Health,Guys and St Thomas NHS Foundation Trust,19/05/2022,(81200) Medical Surgical Supplies & Equipment,(id:42260) Oncology Services,NHS SUPPLY CHAIN (MAIDSTONE),id:15166815  ,7926.15
Department of Health,Guys and St Thomas NHS Foundation Trust,19/05/2022,(81200) Medical Surgical Supplies & Equipment,(id:42260) Oncology Services,NHS SUPPLY CHAIN (MAIDSTONE),id:15256770  ,    10574.87
Department of Health,Guys and St Thomas NHS Foundation Trust,19/05/2022,(82800) Bedding & Linen,(id:42260) Oncology Services,NHS SUPPLY CHAIN (MAIDSTONE),id:15135827    , 182.39
Department of Health,Guys and St Thomas NHS Foundation Trust,19/05/2022,(81275) Medical Surgical Supplies & Equipment,(id:42260) Oncology Services,NHS SUPPLY CHAIN (MAIDSTONE),id:15135827  ,   9.36
Department of Health,Guys and St Thomas NHS Foundation Trust,19/05/2022,(83400) Office Equipment,(id:42260) Oncology Services,NHS SUPPLY CHAIN (MAIDSTONE),id:15135827   , 205.34
Department of Health,Guys and St Thomas NHS Foundation Trust,19/05/2022,(82600) Uniforms & Clothing,(id:42259) Oncology Services,NHS SUPPLY CHAIN (MAIDSTONE),id:15256770,  54.76
Department of Health,Guys and St Thomas NHS Foundation Trust,13/05/2022,(81100) Dressings,(id:42259) Oncology Services,NHS SUPPLY CHAIN (MAIDSTONE),id:15150034,  95.77
Department of Health,Guys and St Thomas NHS Foundation Trust,20/05/2022,(81200) Medical Surgical Supplies & Equipment,(id:42259) Oncology Services,NHS SUPPLY CHAIN (MAIDSTONE),id:15220737  , 765.19
Department of Health,Guys and St Thomas NHS Foundation Trust,13/05/2022,(50522) Unqualified Nursing Staff,(id:42259) Oncology Services,CARE PROVIDERS HEALTHCARE,id:15221129  , 538.20
Department of Health,Guys and St Thomas NHS Foundation Trust,13/05/2022,(50522) Unqualified Nursing Staff,(id:42259) Oncology Services,CARE PROVIDERS HEALTHCARE,id:15221154  , 258.37
Department of Health,Guys and St Thomas NHS Foundation Trust,19/05/2022,(50522) Unqualified Nursing Staff,(id:42259) Oncology Services,MSI GROUP LTD,id:15264539    , 516.74
Department of Health,Guys and St Thomas NHS Foundation Trust,19/05/2022,(50522) Unqualified Nursing Staff,(id:42259) Oncology Services,GLOBE LOCUMS LTD,id:15265119 , 584.94
Department of Health,Guys and St Thomas NHS Foundation Trust,19/05/2022,(81700) Lab Equipment Purchase,(id:42259) Oncology Services,NHS SUPPLY CHAIN (MAIDSTONE),id:15135827  ,  38.58
Department of Health,Guys and St Thomas NHS Foundation Trust,20/05/2022,(81700) Lab Equipment Purchase,(id:42259) Oncology Services,NHS SUPPLY CHAIN (MAIDSTONE),id:15220737  ,  24.05
Department of Health,Guys and St Thomas NHS Foundation Trust,19/05/2022,(81255) Medical Surgical Supplies & Equipment,(id:42259) Oncology Services,NHS SUPPLY CHAIN (MAIDSTONE),id:15166815  ,   7.30
Department of Health,Guys and St Thomas NHS Foundation Trust,13/05/2022,(81200) Medical Surgical Supplies & Equipment,(id:42280) Surgical Oncology,JOHNSON & JOHNSON MEDICAL LTD,id:15179314 , 933.78
Department of Health,Guys and St Thomas NHS Foundation Trust,19/05/2022,(81200) Medical Surgical Supplies & Equipment,(id:42280) Surgical Oncology,Q MEDICAL TECHNOLOGIES LTD,id:15222440    ,5271.60
Department of Health,Guys and St Thomas NHS Foundation Trust,19/05/2022,(81200) Medical Surgical Supplies & Equipment,(id:42280) Surgical Oncology,JOHNSON & JOHNSON MEDICAL LTD,id:15187448 , 933.76
Department of Health,Guys and St Thomas NHS Foundation Trust,20/05/2022,(83400) Office Equipment,(id:243406) Surgical Oncology,NHS SUPPLY CHAIN (MAIDSTONE),id:15220737  ,  28.38
Department of Health,Guys and St Thomas NHS Foundation Trust,19/05/2022,(83400) Office Equipment,(id:243406) Surgical Oncology,NHS SUPPLY CHAIN (MAIDSTONE),id:15256770  ,   3.21
Department of Health,Guys and St Thomas NHS Foundation Trust,13/05/2022,(82700) Uniforms & Clothing,(id:243406) Surgical Oncology,NHS SUPPLY CHAIN (MAIDSTONE),id:15122381    ,  31.68
Department of Health,Guys and St Thomas NHS Foundation Trust,20/05/2022,(82800) Bedding & Linen,(id:243406) Surgical Oncology,NHS SUPPLY CHAIN (MAIDSTONE),id:15220737   ,  86.25
Department of Health,Guys and St Thomas NHS Foundation Trust,13/05/2022,(82000) Provisions & Kitchens,(id:243406) Surgical Oncology,NHS SUPPLY CHAIN (MAIDSTONE),id:15150034  ,  88.75
Department of Health,Guys and St Thomas NHS Foundation Trust,06/05/2022,(50562) Qualified Nursing Staff,(id:243406) Surgical Oncology,UNITY HEALTHCARE RECRUITMENT LTD,id:15179875 , 466.02
Department of Health,Guys and St Thomas NHS Foundation Trust,19/05/2022,(81100) Dressings,(id:42474) Surgical Oncology,NHS SUPPLY CHAIN (MAIDSTONE),id:15256770,  15.70
Department of Health,Guys and St Thomas NHS Foundation Trust,20/05/2022,(81100) Dressings,(id:42474) Surgical Oncology,NHS SUPPLY CHAIN (MAIDSTONE),id:15220737, 528.65
Department of Health,Guys and St Thomas NHS Foundation Trust,13/05/2022,(81200) Medical Surgical Supplies & Equipment,(id:42474) Surgical Oncology,HEMINGWAYS MARKETING SERVICES,id:15179555 ,2475.00
Department of Health,Guys and St Thomas NHS Foundation Trust,06/05/2022,(81200) Medical Surgical Supplies & Equipment,(id:42474) Surgical Oncology,SHEFFMED TRADE SERVICES LTD,id:15166094   , 592.50
Department of Health,Guys and St Thomas NHS Foundation Trust,13/05/2022,(81100) Dressings,(id:42473) Surgical Oncology,NHS SUPPLY CHAIN (MAIDSTONE),id:15106779,  63.40
Department of Health,Guys and St Thomas NHS Foundation Trust,20/05/2022,(81100) Dressings,(id:42473) Surgical Oncology,NHS SUPPLY CHAIN (MAIDSTONE),id:15220737, 258.47
Department of Health,Guys and St Thomas NHS Foundation Trust,06/05/2022,(81200) Medical Surgical Supplies & Equipment,(id:42473) Surgical Oncology,CCMED LTD,id:15146175 , 587.40
Department of Health,Guys and St Thomas NHS Foundation Trust,06/05/2022,(81200) Medical Surgical Supplies & Equipment,(id:42473) Surgical Oncology,STRYKER UK LTD,id:15170214 ,5700.00
Department of Health,Guys and St Thomas NHS Foundation Trust,13/05/2022,(81200) Medical Surgical Supplies & Equipment,(id:42473) Surgical Oncology,NHS SUPPLY CHAIN (MAIDSTONE),id:15106779  ,3037.67
Department of Health,Guys and St Thomas NHS Foundation Trust,13/05/2022,(81200) Medical Surgical Supplies & Equipment,(id:42473) Surgical Oncology,SMITH & NEPHEW ORTHOPAEDICS LTD.,id:15040754   , 587.90
Department of Health,Guys and St Thomas NHS Foundation Trust,19/05/2022,(81200) Medical Surgical Supplies & Equipment,(id:42473) Surgical Oncology,CCMED LTD,id:15239754 , 953.40
Department of Health,Guys and St Thomas NHS Foundation Trust,19/05/2022,(81200) Medical Surgical Supplies & Equipment,(id:42473) Surgical Oncology,JEWEL MANAGEMENT LTD T/A GENERAL MEDICAL,id:15239834,2075.94
Department of Health,Guys and St Thomas NHS Foundation Trust,13/05/2022,(81200) Medical Surgical Supplies & Equipment,(id:42473) Surgical Oncology,STRYKER UK LTD,id:15203515 ,5700.00
Department of Health,Guys and St Thomas NHS Foundation Trust,12/05/2022,(54052) Technical Officers,(id:42475) Surgical Oncology,PRICEWATERHOUSECOOPERS LLP,id:15214130   ,2399.69
Department of Health,Guys and St Thomas NHS Foundation Trust,19/05/2022,(81215) Medical Surgical Supplies & Equipment,(id:42475) Surgical Oncology,COCHLEAR EUROPE LTD,id:15159194 ,4758.00
Department of Health,Guys and St Thomas NHS Foundation Trust,19/05/2022,(81215) Medical Surgical Supplies & Equipment,(id:42475) Surgical Oncology,COCHLEAR EUROPE LTD,id:15251574 ,    11100.00
Department of Health,Guys and St Thomas NHS Foundation Trust,13/05/2022,(81225) Medical Surgical Supplies & Equipment,(id:42475) Surgical Oncology,COCHLEAR EUROPE LTD,id:15209046 , 967.20
Department of Health,Guys and St Thomas NHS Foundation Trust,19/05/2022,(81225) Medical Surgical Supplies & Equipment,(id:42475) Surgical Oncology,NHS SUPPLY CHAIN (MAIDSTONE),id:15166815  ,    23681.24
Department of Health,Guys and St Thomas NHS Foundation Trust,19/05/2022,(81225) Medical Surgical Supplies & Equipment,(id:42475) Surgical Oncology,COCHLEAR EUROPE LTD,id:15251782 , 926.40
Department of Health,Guys and St Thomas NHS Foundation Trust,19/05/2022,(82800) Bedding & Linen,(id:42286) Surgical Oncology,NHS SUPPLY CHAIN (MAIDSTONE),id:15166815    ,  62.10
Department of Health,Guys and St Thomas NHS Foundation Trust,13/05/2022,(83400) Office Equipment,(id:42286) Surgical Oncology,DICT8 LIMITED,id:15119336   , 994.92
Department of Health,Guys and St Thomas NHS Foundation Trust,13/05/2022,(81200) Medical Surgical Supplies & Equipment,(id:42286) Surgical Oncology,MEDTRONIC LTD,id:15207514  ,5570.94
Department of Health,Guys and St Thomas NHS Foundation Trust,19/05/2022,(81200) Medical Surgical Supplies & Equipment,(id:42286) Surgical Oncology,JOHNSON & JOHNSON MEDICAL LTD,id:15202982 ,    11404.08
Department of Health,Guys and St Thomas NHS Foundation Trust,06/05/2022,(81200) Medical Surgical Supplies & Equipment,(id:42286) Surgical Oncology,MEDTRONIC LTD,id:15137592  , 994.75
Department of Health,Guys and St Thomas NHS Foundation Trust,13/05/2022,(81200) Medical Surgical Supplies & Equipment,(id:42286) Surgical Oncology,MEDTRONIC LTD,id:15124388  ,1963.12
Department of Health,Guys and St Thomas NHS Foundation Trust,13/05/2022,(82000) Provisions & Kitchens,(id:42284) Surgical Oncology,NHS SUPPLY CHAIN (MAIDSTONE),id:15122381   ,   5.00
Department of Health,Guys and St Thomas NHS Foundation Trust,19/05/2022,(83400) Office Equipment,(id:42284) Surgical Oncology,NHS SUPPLY CHAIN (MAIDSTONE),id:15135827   ,  39.25
Department of Health,Guys and St Thomas NHS Foundation Trust,20/05/2022,(83400) Office Equipment,(id:42284) Surgical Oncology,NHS SUPPLY CHAIN (MAIDSTONE),id:15220737   , 113.69
Department of Health,Guys and St Thomas NHS Foundation Trust,13/05/2022,(81275) Medical Surgical Supplies & Equipment,(id:42284) Surgical Oncology,NHS SUPPLY CHAIN (MAIDSTONE),id:15150034  ,  14.46
Department of Health,Guys and St Thomas NHS Foundation Trust,20/05/2022,(81275) Medical Surgical Supplies & Equipment,(id:42284) Surgical Oncology,NHS SUPPLY CHAIN (MAIDSTONE),id:15220737  ,  28.92
Department of Health,Guys and St Thomas NHS Foundation Trust,19/05/2022,(81255) Medical Surgical Supplies & Equipment,(id:42284) Surgical Oncology,NHS SUPPLY CHAIN (MAIDSTONE),id:15256770  ,  77.40
Department of Health,Guys and St Thomas NHS Foundation Trust,13/05/2022,(84656) Establishment,(id:42471) Surgical Oncology,DICT8 LIMITED,id:15011217 ,4395.36
Department of Health,Guys and St Thomas NHS Foundation Trust,19/05/2022,(81200) Medical Surgical Supplies & Equipment,(id:42471) Surgical Oncology,SEVERN HEALTHCARE TECHNOLOGIES LTD,id:15224434 ,1310.52
Department of Health,Guys and St Thomas NHS Foundation Trust,13/05/2022,(82700) Uniforms & Clothing,(id:42470) Surgical Oncology,NHS SUPPLY CHAIN (MAIDSTONE),id:15150034,  23.76
Department of Health,Guys and St Thomas NHS Foundation Trust,13/05/2022,(82700) Uniforms & Clothing,(id:42470) Surgical Oncology,NHS SUPPLY CHAIN (MAIDSTONE),id:15106779,  31.68
Department of Health,Guys and St Thomas NHS Foundation Trust,13/05/2022,(82800) Bedding & Linen,(id:42470) Surgical Oncology,NHS SUPPLY CHAIN (MAIDSTONE),id:15106779    , 111.00
Department of Health,Guys and St Thomas NHS Foundation Trust,19/05/2022,(81100) Dressings,(id:42470) Surgical Oncology,NHS SUPPLY CHAIN (MAIDSTONE),id:15256770, 138.88
Department of Health,Guys and St Thomas NHS Foundation Trust,13/05/2022,(81200) Medical Surgical Supplies & Equipment,(id:42470) Surgical Oncology,NHS SUPPLY CHAIN (MAIDSTONE),id:15122381  ,2005.91
Department of Health,Guys and St Thomas NHS Foundation Trust,19/05/2022,(81200) Medical Surgical Supplies & Equipment,(id:42470) Surgical Oncology,NHS SUPPLY CHAIN (MAIDSTONE),id:15256770  ,2127.71
Department of Health,Guys and St Thomas NHS Foundation Trust,19/05/2022,(81200) Medical Surgical Supplies & Equipment,(id:42470) Surgical Oncology,KAPITEX HEALTHCARE LTD,id:15227054   ,1609.91
Department of Health,Guys and St Thomas NHS Foundation Trust,20/05/2022,(83410) Office Equipment,(id:42470) Surgical Oncology,RICOH UK LTD,id:15263976    , 218.51
Department of Health,Guys and St Thomas NHS Foundation Trust,19/05/2022,(81255) Medical Surgical Supplies & Equipment,(id:42470) Surgical Oncology,NHS SUPPLY CHAIN (MAIDSTONE),id:15166815  ,   6.24
Department of Health,Guys and St Thomas NHS Foundation Trust,13/05/2022,(50522) Unqualified Nursing Staff,(id:42470) Surgical Oncology,GLOBE LOCUMS LTD,id:15220194 ,-738.30
Department of Health,Guys and St Thomas NHS Foundation Trust,19/05/2022,(81100) Dressings,(id:42508) Surgical Oncology,NHS SUPPLY CHAIN (MAIDSTONE),id:15256770,  48.24
Department of Health,Guys and St Thomas NHS Foundation Trust,13/05/2022,(81200) Medical Surgical Supplies & Equipment,(id:42508) Surgical Oncology,NHS SUPPLY CHAIN (MAIDSTONE),id:15122381  , 123.00
Department of Health,Guys and St Thomas NHS Foundation Trust,19/05/2022,(81200) Medical Surgical Supplies & Equipment,(id:4632420) Acute & General Medicine,RS COMPONENTS LTD,id:15265165    , 852.19
Department of Health,Guys and St Thomas NHS Foundation Trust,13/05/2022,(83400) Office Equipment,(id:4632420) Acute & General Medicine,WSP/INDIGO,id:15213294  ,1500.00
Department of Health,Guys and St Thomas NHS Foundation Trust,20/05/2022,(84600) Establishment,(id:62405) Acute & General Medicine,CLARITY TRAVEL MANAGEMENT,id:15271795  ,  71.45
Department of Health,Guys and St Thomas NHS Foundation Trust,19/05/2022,(81230) Medical Surgical Supplies & Equipment,(id:2182419) Acute & General Medicine,NHS SUPPLY CHAIN (MAIDSTONE),id:15135827   , 456.00
Department of Health,Guys and St Thomas NHS Foundation Trust,19/05/2022,(82700) Uniforms & Clothing,(id:2182419) Acute & General Medicine,NHS SUPPLY CHAIN (MAIDSTONE),id:15166815 , 113.25
Department of Health,Guys and St Thomas NHS Foundation Trust,19/05/2022,(81700) Lab Equipment Purchase,(id:2182419) Acute & General Medicine,NHS SUPPLY CHAIN (MAIDSTONE),id:15256770   ,  41.90
Department of Health,Guys and St Thomas NHS Foundation Trust,13/05/2022,(81255) Medical Surgical Supplies & Equipment,(id:2182419) Acute & General Medicine,NHS SUPPLY CHAIN (MAIDSTONE),id:15106779   ,   4.10
Department of Health,Guys and St Thomas NHS Foundation Trust,13/05/2022,(82800) Bedding & Linen,(id:2182419) Acute & General Medicine,NHS SUPPLY CHAIN (MAIDSTONE),id:15122381, 733.13
Department of Health,Guys and St Thomas NHS Foundation Trust,19/05/2022,(81200) Medical Surgical Supplies & Equipment,(id:2182419) Acute & General Medicine,NHS SUPPLY CHAIN (MAIDSTONE),id:15166815   ,2784.90
Department of Health,Guys and St Thomas NHS Foundation Trust,13/05/2022,(50522) Unqualified Nursing Staff,(id:2182419) Acute & General Medicine,CARE PROVIDERS HEALTHCARE,id:15221092   , 317.87
Department of Health,Guys and St Thomas NHS Foundation Trust,13/05/2022,(82000) Provisions & Kitchens,(id:2182419) Acute & General Medicine,NHS SUPPLY CHAIN (MAIDSTONE),id:15122381    ,  75.45
Department of Health,Guys and St Thomas NHS Foundation Trust,13/05/2022,(82000) Provisions & Kitchens,(id:2182419) Acute & General Medicine,NHS SUPPLY CHAIN (MAIDSTONE),id:15150034    , 653.85
Department of Health,Guys and St Thomas NHS Foundation Trust,19/05/2022,(82000) Provisions & Kitchens,(id:2182419) Acute & General Medicine,NHS SUPPLY CHAIN (MAIDSTONE),id:15166815    , 837.41
Department of Health,Guys and St Thomas NHS Foundation Trust,19/05/2022,(50562) Qualified Nursing Staff,(id:2182419) Acute & General Medicine,MEDICSPRO LTD,id:15265093  , 575.24
Department of Health,Guys and St Thomas NHS Foundation Trust,19/05/2022,(82700) Uniforms & Clothing,(id:41860) Acute & General Medicine,NHS SUPPLY CHAIN (MAIDSTONE),id:15135827   ,  31.68
Department of Health,Guys and St Thomas NHS Foundation Trust,19/05/2022,(82000) Provisions & Kitchens,(id:41860) Acute & General Medicine,NHS SUPPLY CHAIN (MAIDSTONE),id:15256770 ,  12.18
Department of Health,Guys and St Thomas NHS Foundation Trust,13/05/2022,(82800) Bedding & Linen,(id:41860) Acute & General Medicine,NHS SUPPLY CHAIN (MAIDSTONE),id:15150034  ,  64.68
Department of Health,Guys and St Thomas NHS Foundation Trust,19/05/2022,(82800) Bedding & Linen,(id:41860) Acute & General Medicine,NHS SUPPLY CHAIN (MAIDSTONE),id:15256770  , 114.12
Department of Health,Guys and St Thomas NHS Foundation Trust,19/05/2022,(81100) Dressings,(id:41860) Acute & General Medicine,NHS SUPPLY CHAIN (MAIDSTONE),id:15166815   , 165.27
Department of Health,Guys and St Thomas NHS Foundation Trust,13/05/2022,(81100) Dressings,(id:41860) Acute & General Medicine,NHS SUPPLY CHAIN (MAIDSTONE),id:15106779   ,  13.52
Department of Health,Guys and St Thomas NHS Foundation Trust,13/05/2022,(81100) Dressings,(id:41860) Acute & General Medicine,NHS SUPPLY CHAIN (MAIDSTONE),id:15150034   , 146.03
Department of Health,Guys and St Thomas NHS Foundation Trust,20/05/2022,(81100) Dressings,(id:41860) Acute & General Medicine,NHS SUPPLY CHAIN (MAIDSTONE),id:15220737   ,  89.46
Department of Health,Guys and St Thomas NHS Foundation Trust,13/05/2022,(50552) Qualified Nursing Staff,(id:41860) Acute & General Medicine,GLOBE LOCUMS LTD,id:15219247 , 338.02
Department of Health,Guys and St Thomas NHS Foundation Trust,13/05/2022,(81255) Medical Surgical Supplies & Equipment,(id:41860) Acute & General Medicine,NHS SUPPLY CHAIN (MAIDSTONE),id:15122381,   8.21
Department of Health,Guys and St Thomas NHS Foundation Trust,13/05/2022,(50522) Unqualified Nursing Staff,(id:41860) Acute & General Medicine,GLOBE LOCUMS LTD,id:15218849    , 245.68
Department of Health,Guys and St Thomas NHS Foundation Trust,13/05/2022,(50522) Unqualified Nursing Staff,(id:41860) Acute & General Medicine,CARE PROVIDERS HEALTHCARE,id:15218764,1024.42
Department of Health,Guys and St Thomas NHS Foundation Trust,06/05/2022,(50522) Unqualified Nursing Staff,(id:41860) Acute & General Medicine,CARE PROVIDERS HEALTHCARE,id:15179886,1851.16
Department of Health,Guys and St Thomas NHS Foundation Trust,19/05/2022,(81200) Medical Surgical Supplies & Equipment,(id:41860) Acute & General Medicine,NHS SUPPLY CHAIN (MAIDSTONE),id:15256770,1174.78
Department of Health,Guys and St Thomas NHS Foundation Trust,20/05/2022,(81225) Medical Surgical Supplies & Equipment,(id:41860) Acute & General Medicine,NHS SUPPLY CHAIN (MAIDSTONE),id:15220737,  10.15
Department of Health,Guys and St Thomas NHS Foundation Trust,19/05/2022,(81700) Lab Equipment Purchase,(id:41860) Acute & General Medicine,NHS SUPPLY CHAIN (MAIDSTONE),id:15135827,  10.49
Department of Health,Guys and St Thomas NHS Foundation Trust,19/05/2022,(82700) Uniforms & Clothing,(id:41859) Acute & General Medicine,NHS SUPPLY CHAIN (MAIDSTONE),id:15256770   ,  31.68
Department of Health,Guys and St Thomas NHS Foundation Trust,19/05/2022,(82800) Bedding & Linen,(id:41859) Acute & General Medicine,NHS SUPPLY CHAIN (MAIDSTONE),id:15256770  ,  27.24
Department of Health,Guys and St Thomas NHS Foundation Trust,13/05/2022,(50552) Qualified Nursing Staff,(id:41859) Acute & General Medicine,GLOBE LOCUMS LTD,id:15218982 , 357.13
Department of Health,Guys and St Thomas NHS Foundation Trust,19/05/2022,(50552) Qualified Nursing Staff,(id:41859) Acute & General Medicine,MSI GROUP LTD,id:15264818    , 630.48
Department of Health,Guys and St Thomas NHS Foundation Trust,06/05/2022,(50552) Qualified Nursing Staff,(id:41859) Acute & General Medicine,GLOBE LOCUMS LTD,id:15180029 , 309.46
Department of Health,Guys and St Thomas NHS Foundation Trust,13/05/2022,(50522) Unqualified Nursing Staff,(id:41859) Acute & General Medicine,GLOBE LOCUMS LTD,id:15218858    , 369.05
Department of Health,Guys and St Thomas NHS Foundation Trust,19/05/2022,(50522) Unqualified Nursing Staff,(id:41859) Acute & General Medicine,MSI GROUP LTD,id:15264442  , 282.52
Department of Health,Guys and St Thomas NHS Foundation Trust,06/05/2022,(50522) Unqualified Nursing Staff,(id:41859) Acute & General Medicine,CARE PROVIDERS HEALTHCARE,id:15179823,1211.80
Department of Health,Guys and St Thomas NHS Foundation Trust,19/05/2022,(81200) Medical Surgical Supplies & Equipment,(id:41859) Acute & General Medicine,NHS SUPPLY CHAIN (MAIDSTONE),id:15166815, 711.83
Department of Health,Guys and St Thomas NHS Foundation Trust,20/05/2022,(82000) Provisions & Kitchens,(id:41858) Acute & General Medicine,NHS SUPPLY CHAIN (MAIDSTONE),id:15220737 , 177.97
Department of Health,Guys and St Thomas NHS Foundation Trust,20/05/2022,(82800) Bedding & Linen,(id:41858) Acute & General Medicine,NHS SUPPLY CHAIN (MAIDSTONE),id:15220737  , 106.77
Department of Health,Guys and St Thomas NHS Foundation Trust,13/05/2022,(50552) Qualified Nursing Staff,(id:41858) Acute & General Medicine,GLOBE LOCUMS LTD,id:15218848 , 345.85
Department of Health,Guys and St Thomas NHS Foundation Trust,13/05/2022,(50522) Unqualified Nursing Staff,(id:41858) Acute & General Medicine,GLOBE LOCUMS LTD,id:15219250    , 463.26
Department of Health,Guys and St Thomas NHS Foundation Trust,13/05/2022,(81225) Medical Surgical Supplies & Equipment,(id:41858) Acute & General Medicine,NHS SUPPLY CHAIN (MAIDSTONE),id:15122381,   5.08
Department of Health,Guys and St Thomas NHS Foundation Trust,19/05/2022,(50200) Consultants,(id:41855) Acute & General Medicine,KINGS COLLEGE LONDON:03529700,id:15243789,1919.60
Department of Health,Guys and St Thomas NHS Foundation Trust,13/05/2022,(86300) Healthcare from non-NHS bodies,(id:860419) Acute & General Medicine,SELDOC LTD,id:15054224    ,    70383.39
Department of Health,Guys and St Thomas NHS Foundation Trust,06/05/2022,(50552) Qualified Nursing Staff,(id:41872) Acute & General Medicine,MEDICSPRO LTD,id:15179907    ,1181.31
Department of Health,Guys and St Thomas NHS Foundation Trust,19/05/2022,(82600) Uniforms & Clothing,(id:41869) Acute & General Medicine,NHS SUPPLY CHAIN (MAIDSTONE),id:15166815   ,   5.40
Department of Health,Guys and St Thomas NHS Foundation Trust,19/05/2022,(82000) Provisions & Kitchens,(id:41869) Acute & General Medicine,NHS SUPPLY CHAIN (MAIDSTONE),id:15135827 ,  70.56
Department of Health,Guys and St Thomas NHS Foundation Trust,19/05/2022,(84500) Establishment,(id:41869) Acute & General Medicine,RED BOX IT LTD,id:15253255   ,3180.00
Department of Health,Guys and St Thomas NHS Foundation Trust,20/05/2022,(82800) Bedding & Linen,(id:41869) Acute & General Medicine,NHS SUPPLY CHAIN (MAIDSTONE),id:15220737  , 520.37
Department of Health,Guys and St Thomas NHS Foundation Trust,13/05/2022,(81100) Dressings,(id:41869) Acute & General Medicine,NHS SUPPLY CHAIN (MAIDSTONE),id:15122381   ,1672.43
Department of Health,Guys and St Thomas NHS Foundation Trust,19/05/2022,(81400) Medical Surgical Supplies & Equipment,(id:41869) Acute & General Medicine,NHS SUPPLY CHAIN ( CAPITAL FUND ONLY),id:15235994 ,1506.95
Department of Health,Guys and St Thomas NHS Foundation Trust,20/05/2022,(83410) Office Equipment,(id:41869) Acute & General Medicine,RICOH UK LTD,id:15263976  ,4096.20
Department of Health,Guys and St Thomas NHS Foundation Trust,13/05/2022,(81230) Medical Surgical Supplies & Equipment,(id:41869) Acute & General Medicine,NHS SUPPLY CHAIN (MAIDSTONE),id:15150034, 141.84
Department of Health,Guys and St Thomas NHS Foundation Trust,13/05/2022,(82000) Provisions & Kitchens,(id:41868) Acute & General Medicine,NHS SUPPLY CHAIN (MAIDSTONE),id:15150034 , 215.20
Department of Health,Guys and St Thomas NHS Foundation Trust,19/05/2022,(83400) Office Equipment,(id:41868) Acute & General Medicine,NHS SUPPLY CHAIN (MAIDSTONE),id:15166815 , 169.63
Department of Health,Guys and St Thomas NHS Foundation Trust,19/05/2022,(83400) Office Equipment,(id:41868) Acute & General Medicine,NHS SUPPLY CHAIN (MAIDSTONE),id:15135827 ,  57.48
Department of Health,Guys and St Thomas NHS Foundation Trust,19/05/2022,(82800) Bedding & Linen,(id:41882) Acute & General Medicine,NHS SUPPLY CHAIN (MAIDSTONE),id:15166815  ,  64.69
Department of Health,Guys and St Thomas NHS Foundation Trust,13/05/2022,(81700) Lab Equipment Purchase,(id:41882) Acute & General Medicine,NHS SUPPLY CHAIN (MAIDSTONE),id:15150034,  13.59
Department of Health,Guys and St Thomas NHS Foundation Trust,20/05/2022,(81200) Medical Surgical Supplies & Equipment,(id:41882) Acute & General Medicine,NHS SUPPLY CHAIN (MAIDSTONE),id:15220737, 186.05
Department of Health,Guys and St Thomas NHS Foundation Trust,19/05/2022,(82700) Uniforms & Clothing,(id:41880) Acute & General Medicine,NHS SUPPLY CHAIN (MAIDSTONE),id:15166815   , 112.52
Department of Health,Guys and St Thomas NHS Foundation Trust,20/05/2022,(82000) Provisions & Kitchens,(id:41880) Acute & General Medicine,NHS SUPPLY CHAIN (MAIDSTONE),id:15220737 , 374.24
Department of Health,Guys and St Thomas NHS Foundation Trust,19/05/2022,(82000) Provisions & Kitchens,(id:41880) Acute & General Medicine,NHS SUPPLY CHAIN (MAIDSTONE),id:15166815 , 518.66
Department of Health,Guys and St Thomas NHS Foundation Trust,19/05/2022,(83400) Office Equipment,(id:41880) Acute & General Medicine,NHS SUPPLY CHAIN (MAIDSTONE),id:15135827 , 241.50
Department of Health,Guys and St Thomas NHS Foundation Trust,19/05/2022,(82800) Bedding & Linen,(id:41880) Acute & General Medicine,NHS SUPPLY CHAIN (MAIDSTONE),id:15166815  , 230.82
Department of Health,Guys and St Thomas NHS Foundation Trust,19/05/2022,(81200) Medical Surgical Supplies & Equipment,(id:41880) Acute & General Medicine,NHS SUPPLY CHAIN (MAIDSTONE),id:15135827, 847.94
Department of Health,Guys and St Thomas NHS Foundation Trust,13/05/2022,(50522) Unqualified Nursing Staff,(id:41880) Acute & General Medicine,CARE PROVIDERS HEALTHCARE,id:15221037, 273.47
Department of Health,Guys and St Thomas NHS Foundation Trust,13/05/2022,(50522) Unqualified Nursing Staff,(id:41880) Acute & General Medicine,CARE PROVIDERS HEALTHCARE,id:15221063, 342.93
Department of Health,Guys and St Thomas NHS Foundation Trust,13/05/2022,(82000) Provisions & Kitchens,(id:41879) Acute & General Medicine,NHS SUPPLY CHAIN (MAIDSTONE),id:15150034 ,1292.91
Department of Health,Guys and St Thomas NHS Foundation Trust,19/05/2022,(82000) Provisions & Kitchens,(id:41879) Acute & General Medicine,NHS SUPPLY CHAIN (MAIDSTONE),id:15166815 , 532.39
Department of Health,Guys and St Thomas NHS Foundation Trust,13/05/2022,(83400) Office Equipment,(id:41879) Acute & General Medicine,NHS SUPPLY CHAIN (MAIDSTONE),id:15122381 , 180.03
Department of Health,Guys and St Thomas NHS Foundation Trust,13/05/2022,(81100) Dressings,(id:41879) Acute & General Medicine,NHS SUPPLY CHAIN (MAIDSTONE),id:15106779   ,  47.64
Department of Health,Guys and St Thomas NHS Foundation Trust,13/05/2022,(81100) Dressings,(id:41879) Acute & General Medicine,NHS SUPPLY CHAIN (MAIDSTONE),id:15150034   , 489.93
Department of Health,Guys and St Thomas NHS Foundation Trust,19/05/2022,(81100) Dressings,(id:41879) Acute & General Medicine,NHS SUPPLY CHAIN (MAIDSTONE),id:15135827   , 289.01
Department of Health,Guys and St Thomas NHS Foundation Trust,06/05/2022,(50522) Unqualified Nursing Staff,(id:41879) Acute & General Medicine,CARE PROVIDERS HEALTHCARE,id:15179822, 252.93
Department of Health,Guys and St Thomas NHS Foundation Trust,06/05/2022,(50522) Unqualified Nursing Staff,(id:41879) Acute & General Medicine,CARE PROVIDERS HEALTHCARE,id:15183244,1133.14
Department of Health,Guys and St Thomas NHS Foundation Trust,19/05/2022,(50522) Unqualified Nursing Staff,(id:41879) Acute & General Medicine,CARE PROVIDERS HEALTHCARE,id:15265082,1108.98
Department of Health,Guys and St Thomas NHS Foundation Trust,19/05/2022,(81200) Medical Surgical Supplies & Equipment,(id:41879) Acute & General Medicine,NHS SUPPLY CHAIN (MAIDSTONE),id:15166815, 579.22
Department of Health,Guys and St Thomas NHS Foundation Trust,13/05/2022,(81200) Medical Surgical Supplies & Equipment,(id:41879) Acute & General Medicine,NHS SUPPLY CHAIN (MAIDSTONE),id:15150034, 520.04
Department of Health,Guys and St Thomas NHS Foundation Trust,13/05/2022,(81200) Medical Surgical Supplies & Equipment,(id:41879) Acute & General Medicine,NHS SUPPLY CHAIN (MAIDSTONE),id:15122381, 716.81
Department of Health,Guys and St Thomas NHS Foundation Trust,19/05/2022,(81225) Medical Surgical Supplies & Equipment,(id:41879) Acute & General Medicine,NHS SUPPLY CHAIN (MAIDSTONE),id:15166815,  25.38
Department of Health,Guys and St Thomas NHS Foundation Trust,20/05/2022,(81225) Medical Surgical Supplies & Equipment,(id:41879) Acute & General Medicine,NHS SUPPLY CHAIN (MAIDSTONE),id:15220737,  10.15
Department of Health,Guys and St Thomas NHS Foundation Trust,19/05/2022,(81700) Lab Equipment Purchase,(id:41879) Acute & General Medicine,NHS SUPPLY CHAIN (MAIDSTONE),id:15256770,  19.40
Department of Health,Guys and St Thomas NHS Foundation Trust,13/05/2022,(81700) Lab Equipment Purchase,(id:41879) Acute & General Medicine,NHS SUPPLY CHAIN (MAIDSTONE),id:15122381,  22.50
Department of Health,Guys and St Thomas NHS Foundation Trust,13/05/2022,(82700) Uniforms & Clothing,(id:41878) Acute & General Medicine,NHS SUPPLY CHAIN (MAIDSTONE),id:15106779   , 105.94
Department of Health,Guys and St Thomas NHS Foundation Trust,19/05/2022,(83400) Office Equipment,(id:41878) Acute & General Medicine,NHS SUPPLY CHAIN (MAIDSTONE),id:15135827 , 168.62
Department of Health,Guys and St Thomas NHS Foundation Trust,13/05/2022,(82800) Bedding & Linen,(id:41878) Acute & General Medicine,NHS SUPPLY CHAIN (MAIDSTONE),id:15122381  , 165.54
Department of Health,Guys and St Thomas NHS Foundation Trust,19/05/2022,(82800) Bedding & Linen,(id:41878) Acute & General Medicine,NHS SUPPLY CHAIN (MAIDSTONE),id:15135827  , 108.13
Department of Health,Guys and St Thomas NHS Foundation Trust,13/05/2022,(50522) Unqualified Nursing Staff,(id:41878) Acute & General Medicine,MEDICSPRO LTD,id:15219095  , 616.40
Department of Health,Guys and St Thomas NHS Foundation Trust,06/05/2022,(50522) Unqualified Nursing Staff,(id:41878) Acute & General Medicine,HAYS HEALTHCARE LTD,id:15179931 , 278.92
Department of Health,Guys and St Thomas NHS Foundation Trust,19/05/2022,(50522) Unqualified Nursing Staff,(id:41878) Acute & General Medicine,MSI GROUP LTD,id:15264720  , 238.74
Department of Health,Guys and St Thomas NHS Foundation Trust,19/05/2022,(50522) Unqualified Nursing Staff,(id:41878) Acute & General Medicine,GLOBE LOCUMS LTD,id:15264631    , 302.86
Department of Health,Guys and St Thomas NHS Foundation Trust,19/05/2022,(81200) Medical Surgical Supplies & Equipment,(id:41878) Acute & General Medicine,NHS SUPPLY CHAIN (MAIDSTONE),id:15135827, 567.53
Department of Health,Guys and St Thomas NHS Foundation Trust,20/05/2022,(81200) Medical Surgical Supplies & Equipment,(id:41878) Acute & General Medicine,NHS SUPPLY CHAIN (MAIDSTONE),id:15220737, 775.69
Department of Health,Guys and St Thomas NHS Foundation Trust,19/05/2022,(81225) Medical Surgical Supplies & Equipment,(id:41878) Acute & General Medicine,NHS SUPPLY CHAIN (MAIDSTONE),id:15166815,  10.15
Department of Health,Guys and St Thomas NHS Foundation Trust,06/05/2022,(50522) Unqualified Nursing Staff,(id:41881) Acute & General Medicine,CARE PROVIDERS HEALTHCARE,id:15179898, 602.76
Department of Health,Guys and St Thomas NHS Foundation Trust,19/05/2022,(50522) Unqualified Nursing Staff,(id:41881) Acute & General Medicine,MSI GROUP LTD,id:15264719  , 612.04
Department of Health,Guys and St Thomas NHS Foundation Trust,19/05/2022,(81200) Medical Surgical Supplies & Equipment,(id:41881) Acute & General Medicine,NHS SUPPLY CHAIN (MAIDSTONE),id:15166815, 611.03
Department of Health,Guys and St Thomas NHS Foundation Trust,13/05/2022,(81225) Medical Surgical Supplies & Equipment,(id:41881) Acute & General Medicine,NHS SUPPLY CHAIN (MAIDSTONE),id:15122381,  16.27
Department of Health,Guys and St Thomas NHS Foundation Trust,06/05/2022,(83400) Office Equipment,(id:41969) Acute & General Medicine,MAITLAND ENGINEERING LTD,id:15030396,6770.04
Department of Health,Guys and St Thomas NHS Foundation Trust,13/05/2022,(82800) Bedding & Linen,(id:42025) Dental Services,NHS SUPPLY CHAIN (MAIDSTONE),id:15122381 , 129.38
Department of Health,Guys and St Thomas NHS Foundation Trust,19/05/2022,(81200) Medical Surgical Supplies & Equipment,(id:42025) Dental Services,HENRY SCHEIN,id:15188755, 682.10
Department of Health,Guys and St Thomas NHS Foundation Trust,06/05/2022,(81200) Medical Surgical Supplies & Equipment,(id:42037) Dental Services,QED - QUALITY ENDODONTIC DISTRIBUTORS LTD,id:15160744 ,1834.38
Department of Health,Guys and St Thomas NHS Foundation Trust,06/05/2022,(81200) Medical Surgical Supplies & Equipment,(id:42037) Dental Services,HENRY SCHEIN,id:15179776, 934.70
Department of Health,Guys and St Thomas NHS Foundation Trust,06/05/2022,(81200) Medical Surgical Supplies & Equipment,(id:42037) Dental Services,HENRY SCHEIN,id:15179534, 952.93
Department of Health,Guys and St Thomas NHS Foundation Trust,06/05/2022,(81200) Medical Surgical Supplies & Equipment,(id:42037) Dental Services,HENRY SCHEIN,id:15179402, 910.14
Department of Health,Guys and St Thomas NHS Foundation Trust,13/05/2022,(81200) Medical Surgical Supplies & Equipment,(id:42037) Dental Services,HENRY SCHEIN,id:15186755, 585.65
Department of Health,Guys and St Thomas NHS Foundation Trust,19/05/2022,(81200) Medical Surgical Supplies & Equipment,(id:42037) Dental Services,STRAUMANN LTD,id:14748693    , 920.34
Department of Health,Guys and St Thomas NHS Foundation Trust,19/05/2022,(81200) Medical Surgical Supplies & Equipment,(id:42037) Dental Services,STRAUMANN LTD,id:14921475    , 920.34
Department of Health,Guys and St Thomas NHS Foundation Trust,19/05/2022,(81200) Medical Surgical Supplies & Equipment,(id:42037) Dental Services,HENRY SCHEIN,id:15222948, 897.84
Department of Health,Guys and St Thomas NHS Foundation Trust,19/05/2022,(81200) Medical Surgical Supplies & Equipment,(id:42037) Dental Services,HENRY SCHEIN,id:15222920, 933.85
Department of Health,Guys and St Thomas NHS Foundation Trust,19/05/2022,(81200) Medical Surgical Supplies & Equipment,(id:42037) Dental Services,DENTSPLY IH LTD,id:15234234  , 835.06
Department of Health,Guys and St Thomas NHS Foundation Trust,19/05/2022,(81200) Medical Surgical Supplies & Equipment,(id:42037) Dental Services,HENRY SCHEIN,id:15222911, 936.47
Department of Health,Guys and St Thomas NHS Foundation Trust,19/05/2022,(81200) Medical Surgical Supplies & Equipment,(id:42037) Dental Services,HENRY SCHEIN,id:15222786, 774.42
Department of Health,Guys and St Thomas NHS Foundation Trust,20/05/2022,(81100) Dressings,(id:42037) Dental Services,NHS SUPPLY CHAIN (MAIDSTONE),id:15220737  ,  58.20
Department of Health,Guys and St Thomas NHS Foundation Trust,19/05/2022,(81100) Dressings,(id:42037) Dental Services,NHS SUPPLY CHAIN (MAIDSTONE),id:15166815  , 493.00
Department of Health,Guys and St Thomas NHS Foundation Trust,19/05/2022,(82800) Bedding & Linen,(id:42037) Dental Services,NHS SUPPLY CHAIN (MAIDSTONE),id:15166815 , 215.52
Department of Health,Guys and St Thomas NHS Foundation Trust,20/05/2022,(81100) Dressings,(id:42007) Dental Services,NHS SUPPLY CHAIN (MAIDSTONE),id:15220737  ,  19.18
Department of Health,Guys and St Thomas NHS Foundation Trust,06/05/2022,(81200) Medical Surgical Supplies & Equipment,(id:42007) Dental Services,MERCIAN SURGICAL SUPPLY CO LTD,id:15171714  , 792.00
Department of Health,Guys and St Thomas NHS Foundation Trust,06/05/2022,(81200) Medical Surgical Supplies & Equipment,(id:42007) Dental Services,MERCIAN SURGICAL SUPPLY CO LTD,id:15143000  , 792.00
Department of Health,Guys and St Thomas NHS Foundation Trust,06/05/2022,(81200) Medical Surgical Supplies & Equipment,(id:42007) Dental Services,MERCIAN SURGICAL SUPPLY CO LTD,id:15142999  , 792.00
Department of Health,Guys and St Thomas NHS Foundation Trust,06/05/2022,(81200) Medical Surgical Supplies & Equipment,(id:42007) Dental Services,HENRY SCHEIN,id:15173894, 891.83
Department of Health,Guys and St Thomas NHS Foundation Trust,19/05/2022,(81200) Medical Surgical Supplies & Equipment,(id:42007) Dental Services,HENRY SCHEIN,id:15198312, 950.18
Department of Health,Guys and St Thomas NHS Foundation Trust,06/05/2022,(81200) Medical Surgical Supplies & Equipment,(id:42007) Dental Services,JOHNSON & JOHNSON MEDICAL LTD,id:15137556   , 444.48
Department of Health,Guys and St Thomas NHS Foundation Trust,13/05/2022,(81200) Medical Surgical Supplies & Equipment,(id:42007) Dental Services,HENRY SCHEIN,id:15189114, 512.88
Department of Health,Guys and St Thomas NHS Foundation Trust,20/05/2022,(81700) Lab Equipment Purchase,(id:42007) Dental Services,NHS SUPPLY CHAIN (MAIDSTONE),id:15220737    , 192.87
Department of Health,Guys and St Thomas NHS Foundation Trust,13/05/2022,(81200) Medical Surgical Supplies & Equipment,(id:42005) Dental Services,NHS SUPPLY CHAIN (MAIDSTONE),id:15106779    , 195.64
Department of Health,Guys and St Thomas NHS Foundation Trust,13/05/2022,(81200) Medical Surgical Supplies & Equipment,(id:42005) Dental Services,NHS SUPPLY CHAIN (MAIDSTONE),id:15122381    , 285.70
Department of Health,Guys and St Thomas NHS Foundation Trust,13/05/2022,(81100) Dressings,(id:42015) Dental Services,NHS SUPPLY CHAIN (MAIDSTONE),id:15106779  ,  15.00
Department of Health,Guys and St Thomas NHS Foundation Trust,13/05/2022,(81700) Lab Equipment Purchase,(id:42015) Dental Services,NHS SUPPLY CHAIN (MAIDSTONE),id:15122381    ,  31.84
Department of Health,Guys and St Thomas NHS Foundation Trust,06/05/2022,(82600) Uniforms & Clothing,(id:42028) Dental Services,BANNER GROUP LTD,id:15160117    ,1732.92
Department of Health,Guys and St Thomas NHS Foundation Trust,13/05/2022,(81200) Medical Surgical Supplies & Equipment,(id:42028) Dental Services,HENRY SCHEIN,id:15186195, 543.58
Department of Health,Guys and St Thomas NHS Foundation Trust,19/05/2022,(81200) Medical Surgical Supplies & Equipment,(id:42028) Dental Services,HENRY SCHEIN,id:15174514, 974.52
Department of Health,Guys and St Thomas NHS Foundation Trust,20/05/2022,(83410) Office Equipment,(id:42028) Dental Services,RICOH UK LTD,id:15263976 ,   4.55
Department of Health,Guys and St Thomas NHS Foundation Trust,20/05/2022,(81400) Medical Surgical Supplies & Equipment,(id:42014) Dental Services,THE DENTAL IMAGING COMPANY,id:15265732 ,5840.00
Department of Health,Guys and St Thomas NHS Foundation Trust,19/05/2022,(83400) Office Equipment,(id:42014) Dental Services,NHS SUPPLY CHAIN (MAIDSTONE),id:15166815,  81.24
Department of Health,Guys and St Thomas NHS Foundation Trust,20/05/2022,(83400) Office Equipment,(id:42014) Dental Services,NHS SUPPLY CHAIN (MAIDSTONE),id:15220737, 113.14
Department of Health,Guys and St Thomas NHS Foundation Trust,20/05/2022,(83400) Office Equipment,(id:4622420) Dental Services,NHS SUPPLY CHAIN (MAIDSTONE),id:15220737   , 103.93
Department of Health,Guys and St Thomas NHS Foundation Trust,19/05/2022,(82800) Bedding & Linen,(id:4622420) Dental Services,NHS SUPPLY CHAIN (MAIDSTONE),id:15256770    , 431.04
Department of Health,Guys and St Thomas NHS Foundation Trust,19/05/2022,(82600) Uniforms & Clothing,(id:4622420) Dental Services,NHS SUPPLY CHAIN (MAIDSTONE),id:15166815, 127.37
Department of Health,Guys and St Thomas NHS Foundation Trust,06/05/2022,(81200) Medical Surgical Supplies & Equipment,(id:42035) Dental Services,DENTSPLY IH LTD,id:15160676  , 505.15
Department of Health,Guys and St Thomas NHS Foundation Trust,06/05/2022,(81200) Medical Surgical Supplies & Equipment,(id:42035) Dental Services,DENTSPLY IH LTD,id:15178036  , 935.57
Department of Health,Guys and St Thomas NHS Foundation Trust,13/05/2022,(81200) Medical Surgical Supplies & Equipment,(id:42035) Dental Services,DENTSPLY IH LTD,id:15205772  , 782.99
Department of Health,Guys and St Thomas NHS Foundation Trust,19/05/2022,(81200) Medical Surgical Supplies & Equipment,(id:42035) Dental Services,DENTSPLY IH LTD,id:15227715  , 528.68
Department of Health,Guys and St Thomas NHS Foundation Trust,19/05/2022,(81200) Medical Surgical Supplies & Equipment,(id:42035) Dental Services,DENTSPLY IH LTD,id:15223855  , 540.78
Department of Health,Guys and St Thomas NHS Foundation Trust,20/05/2022,(84600) Establishment,(id:42035) Dental Services,CLARITY TRAVEL MANAGEMENT,id:15271795 , 185.60
Department of Health,Guys and St Thomas NHS Foundation Trust,13/05/2022,(83400) Office Equipment,(id:42035) Dental Services,NHS SUPPLY CHAIN (MAIDSTONE),id:15150034, 390.12
Department of Health,Guys and St Thomas NHS Foundation Trust,19/05/2022,(83400) Office Equipment,(id:42035) Dental Services,GRANTLEIGH LTD,id:15223678    ,3899.09
Department of Health,Guys and St Thomas NHS Foundation Trust,13/05/2022,(89000) Other - Training courses and conferences,(id:42035) Dental Services,KINGS COLLEGE LONDON:03529700,id:14421816,2755.00
Department of Health,Guys and St Thomas NHS Foundation Trust,13/05/2022,(81200) Medical Surgical Supplies & Equipment,(id:1634433) Dental Services,NHS SUPPLY CHAIN (MAIDSTONE),id:15122381  ,  32.28
Department of Health,Guys and St Thomas NHS Foundation Trust,13/05/2022,(81200) Medical Surgical Supplies & Equipment,(id:1634433) Dental Services,HENRY SCHEIN,id:15188475   , 805.66
Department of Health,Guys and St Thomas NHS Foundation Trust,19/05/2022,(83400) Office Equipment,(id:1634432) Dental Services,NHS SUPPLY CHAIN (MAIDSTONE),id:15256770   ,  24.47
Department of Health,Guys and St Thomas NHS Foundation Trust,13/05/2022,(81200) Medical Surgical Supplies & Equipment,(id:1634432) Dental Services,NHS SUPPLY CHAIN (MAIDSTONE),id:15122381  , 117.70
Department of Health,Guys and St Thomas NHS Foundation Trust,13/05/2022,(81200) Medical Surgical Supplies & Equipment,(id:1634432) Dental Services,HENRY SCHEIN,id:15187314   , 756.98
Department of Health,Guys and St Thomas NHS Foundation Trust,19/05/2022,(81200) Medical Surgical Supplies & Equipment,(id:1634432) Dental Services,NHS SUPPLY CHAIN (MAIDSTONE),id:15166815  ,  16.28
Department of Health,Guys and St Thomas NHS Foundation Trust,19/05/2022,(81100) Dressings,(id:1634432) Dental Services,NHS SUPPLY CHAIN (MAIDSTONE),id:15166815,  25.06
Department of Health,Guys and St Thomas NHS Foundation Trust,06/05/2022,(81200) Medical Surgical Supplies & Equipment,(id:1634429) Dental Services,DENTSPLY IH LTD,id:15179034, 975.54
Department of Health,Guys and St Thomas NHS Foundation Trust,19/05/2022,(81200) Medical Surgical Supplies & Equipment,(id:1634429) Dental Services,HENRY SCHEIN,id:15198292   ,1931.45
Department of Health,Guys and St Thomas NHS Foundation Trust,20/05/2022,(81200) Medical Surgical Supplies & Equipment,(id:1634429) Dental Services,RB MEDICAL ENGINEERING LTD,id:15266174    ,1196.71
Department of Health,Guys and St Thomas NHS Foundation Trust,19/05/2022,(81100) Dressings,(id:1634429) Dental Services,NHS SUPPLY CHAIN (MAIDSTONE),id:15166815,  58.20
Department of Health,Guys and St Thomas NHS Foundation Trust,19/05/2022,(83500) Furniture & Fittings,(id:1634429) Dental Services,MEDISAVE (UK) LTD,id:15265226,1846.75
Department of Health,Guys and St Thomas NHS Foundation Trust,19/05/2022,(81700) Lab Equipment Purchase,(id:641456) Specialist Ambulatory Services,AB SCIENTIFIC LIMITED,id:15251775,1140.00
Department of Health,Guys and St Thomas NHS Foundation Trust,13/05/2022,(81700) Lab Equipment Purchase,(id:4431419) Specialist Ambulatory Services,NHS SUPPLY CHAIN (MAIDSTONE),id:15106779  , 156.60
Department of Health,Guys and St Thomas NHS Foundation Trust,06/05/2022,(50200) Consultants,(id:42193) Specialist Ambulatory Services,KINGS COLLEGE LONDON:03529700,id:15074234    ,6597.36
Department of Health,Guys and St Thomas NHS Foundation Trust,19/05/2022,(81200) Medical Surgical Supplies & Equipment,(id:3607419) Specialist Ambulatory Services,NHS SUPPLY CHAIN (MAIDSTONE),id:15166815  ,  17.29
Department of Health,Guys and St Thomas NHS Foundation Trust,13/05/2022,(83400) Office Equipment,(id:3607419) Specialist Ambulatory Services,NHS SUPPLY CHAIN (MAIDSTONE),id:15122381   , 166.80
Department of Health,Guys and St Thomas NHS Foundation Trust,13/05/2022,(83500) Furniture & Fittings,(id:255405) Specialist Ambulatory Services,BANNER GROUP LTD,id:15191894  , 520.17
Department of Health,Guys and St Thomas NHS Foundation Trust,06/05/2022,(50200) Consultants,(id:42099) Specialist Ambulatory Services,KINGS COLLEGE LONDON:03529700,id:15074337    ,9656.16
Department of Health,Guys and St Thomas NHS Foundation Trust,20/05/2022,(84600) Establishment,(id:42099) Specialist Ambulatory Services,CLARITY TRAVEL MANAGEMENT,id:15271794 ,   8.88
Department of Health,Guys and St Thomas NHS Foundation Trust,19/05/2022,(81275) Medical Surgical Supplies & Equipment,(id:42088) Specialist Ambulatory Services,CANUTE PHARMA LTD,id:15253394, 858.72
Department of Health,Guys and St Thomas NHS Foundation Trust,13/05/2022,(81200) Medical Surgical Supplies & Equipment,(id:42088) Specialist Ambulatory Services,NHS SUPPLY CHAIN (MAIDSTONE),id:15106779    , 105.00
Department of Health,Guys and St Thomas NHS Foundation Trust,19/05/2022,(82800) Bedding & Linen,(id:42097) Specialist Ambulatory Services,NHS SUPPLY CHAIN (MAIDSTONE),id:15135827 ,  38.59
Department of Health,Guys and St Thomas NHS Foundation Trust,19/05/2022,(81100) Dressings,(id:42097) Specialist Ambulatory Services,NHS SUPPLY CHAIN (MAIDSTONE),id:15166815  , 318.73
Department of Health,Guys and St Thomas NHS Foundation Trust,06/05/2022,(81500) X Ray Equipment Purchase,(id:42097) Specialist Ambulatory Services,CBC COMPUTER SYSTEMS LTD,id:15156260 , 751.20
Department of Health,Guys and St Thomas NHS Foundation Trust,19/05/2022,(81200) Medical Surgical Supplies & Equipment,(id:42097) Specialist Ambulatory Services,NHS SUPPLY CHAIN (MAIDSTONE),id:15256770    ,  84.53
Department of Health,Guys and St Thomas NHS Foundation Trust,13/05/2022,(81200) Medical Surgical Supplies & Equipment,(id:42097) Specialist Ambulatory Services,SCHUCO INTERNATIONAL LTD,id:15204398   , 612.00
Department of Health,Guys and St Thomas NHS Foundation Trust,19/05/2022,(82000) Provisions & Kitchens,(id:42097) Specialist Ambulatory Services,NHS SUPPLY CHAIN (MAIDSTONE),id:15256770,  15.60
Department of Health,Guys and St Thomas NHS Foundation Trust,19/05/2022,(83610) IT Costs,(id:42079) Specialist Ambulatory Services,COMPUTACENTER UK LTD,id:14976905 ,3870.67
Department of Health,Guys and St Thomas NHS Foundation Trust,20/05/2022,(81100) Dressings,(id:42079) Specialist Ambulatory Services,NHS SUPPLY CHAIN (MAIDSTONE),id:15220737  ,  80.32
Department of Health,Guys and St Thomas NHS Foundation Trust,19/05/2022,(80010) Drug Costs,(id:42079) Specialist Ambulatory Services,THERAKOS (UK) LIMITED,id:15187874   ,4514.40
Department of Health,Guys and St Thomas NHS Foundation Trust,06/05/2022,(80010) Drug Costs,(id:42079) Specialist Ambulatory Services,THERAKOS (UK) LIMITED,id:15175634   ,-752.40
Department of Health,Guys and St Thomas NHS Foundation Trust,13/05/2022,(82000) Provisions & Kitchens,(id:42079) Specialist Ambulatory Services,NHS SUPPLY CHAIN (MAIDSTONE),id:15122381,  23.40
Department of Health,Guys and St Thomas NHS Foundation Trust,13/05/2022,(82000) Provisions & Kitchens,(id:42079) Specialist Ambulatory Services,NHS SUPPLY CHAIN (MAIDSTONE),id:15106779,  50.59
Department of Health,Guys and St Thomas NHS Foundation Trust,13/05/2022,(81100) Dressings,(id:42066) Specialist Ambulatory Services,NHS SUPPLY CHAIN (MAIDSTONE),id:15122381  , 723.23
Department of Health,Guys and St Thomas NHS Foundation Trust,19/05/2022,(82800) Bedding & Linen,(id:42089) Specialist Ambulatory Services,NHS SUPPLY CHAIN (MAIDSTONE),id:15256770 , 107.82
Department of Health,Guys and St Thomas NHS Foundation Trust,19/05/2022,(82800) Bedding & Linen,(id:391417) Specialist Ambulatory Services,NHS SUPPLY CHAIN (MAIDSTONE),id:15166815,  43.13
Department of Health,Guys and St Thomas NHS Foundation Trust,20/05/2022,(81100) Dressings,(id:391417) Specialist Ambulatory Services,NHS SUPPLY CHAIN (MAIDSTONE),id:15220737 , 263.82
Department of Health,Guys and St Thomas NHS Foundation Trust,13/05/2022,(81100) Dressings,(id:391417) Specialist Ambulatory Services,NHS SUPPLY CHAIN (MAIDSTONE),id:15122381 ,  60.36
Department of Health,Guys and St Thomas NHS Foundation Trust,20/05/2022,(81100) Dressings,(id:42064) Specialist Ambulatory Services,NHS SUPPLY CHAIN (MAIDSTONE),id:15220737  ,  42.20
Department of Health,Guys and St Thomas NHS Foundation Trust,19/05/2022,(82800) Bedding & Linen,(id:42057) Specialist Ambulatory Services,NHS SUPPLY CHAIN (MAIDSTONE),id:15256770 , 107.82
Department of Health,Guys and St Thomas NHS Foundation Trust,13/05/2022,(83400) Office Equipment,(id:42055) Specialist Ambulatory Services,NHS SUPPLY CHAIN (MAIDSTONE),id:15150034,  32.28
Department of Health,Guys and St Thomas NHS Foundation Trust,19/05/2022,(82800) Bedding & Linen,(id:42050) Specialist Ambulatory Services,NHS SUPPLY CHAIN (MAIDSTONE),id:15166815 ,  42.19
Department of Health,Guys and St Thomas NHS Foundation Trust,19/05/2022,(81225) Medical Surgical Supplies & Equipment,(id:42050) Specialist Ambulatory Services,NHS SUPPLY CHAIN (MAIDSTONE),id:15135827    ,  20.90
Department of Health,Guys and St Thomas NHS Foundation Trust,20/05/2022,(89270) Establishment,(id:42050) Specialist Ambulatory Services,SXT HEALTH CIC (WWW.SXT.ORG.UK),id:15272354,2455.00
Department of Health,Guys and St Thomas NHS Foundation Trust,19/05/2022,(81275) Medical Surgical Supplies & Equipment,(id:42050) Specialist Ambulatory Services,NHS SUPPLY CHAIN (MAIDSTONE),id:15256770    , 320.40
Department of Health,Guys and St Thomas NHS Foundation Trust,13/05/2022,(81700) Lab Equipment Purchase,(id:42050) Specialist Ambulatory Services,NHS SUPPLY CHAIN (MAIDSTONE),id:15150034    ,  58.01
Department of Health,Guys and St Thomas NHS Foundation Trust,19/05/2022,(81700) Lab Equipment Purchase,(id:42050) Specialist Ambulatory Services,NHS SUPPLY CHAIN (MAIDSTONE),id:15135827    ,  48.34
Department of Health,Guys and St Thomas NHS Foundation Trust,12/05/2022,(53672) Pharmacists,(id:42165) Pharmacy,PRICEWATERHOUSECOOPERS LLP,id:15214081    ,2922.10
Department of Health,Guys and St Thomas NHS Foundation Trust,19/05/2022,(84400) Transport,(id:4622421) Pharmacy,LLOYDS PHARMACY LTD,id:15027995 ,    20322.90
Department of Health,Guys and St Thomas NHS Foundation Trust,13/05/2022,(82000) Provisions & Kitchens,(id:42169) Pharmacy,KENWOOD LTD,id:15203714    ,2279.16
Department of Health,Guys and St Thomas NHS Foundation Trust,13/05/2022,(81200) Medical Surgical Supplies & Equipment,(id:581409) Pharmacy,AMERCARE LTD,id:15201254 , 885.00
Department of Health,Guys and St Thomas NHS Foundation Trust,19/05/2022,(81400) Medical Surgical Supplies & Equipment,(id:581409) Pharmacy,VALIDAIR (EURO) LTD,id:15175735    ,4950.00
Department of Health,Guys and St Thomas NHS Foundation Trust,19/05/2022,(81700) Lab Equipment Purchase,(id:581409) Pharmacy,AMERCARE LTD,id:15214134 ,2800.80
Department of Health,Guys and St Thomas NHS Foundation Trust,20/05/2022,(81700) Lab Equipment Purchase,(id:581409) Pharmacy,AMERCARE LTD,id:15266734 ,1867.20
Department of Health,Guys and St Thomas NHS Foundation Trust,19/05/2022,(82600) Uniforms & Clothing,(id:581409) Pharmacy,NHS SUPPLY CHAIN (MAIDSTONE),id:15166815   , 168.90
Department of Health,Guys and St Thomas NHS Foundation Trust,13/05/2022,(83400) Office Equipment,(id:581409) Pharmacy,NHS SUPPLY CHAIN (MAIDSTONE),id:15150034 ,  20.78
Department of Health,Guys and St Thomas NHS Foundation Trust,13/05/2022,(83400) Office Equipment,(id:581409) Pharmacy,NITRITEX LTD,id:15170383  , 863.52
Department of Health,Guys and St Thomas NHS Foundation Trust,12/05/2022,(53632) Pharmacists,(id:581409) Pharmacy,PRICEWATERHOUSECOOPERS LLP,id:15214130   ,2937.68
Department of Health,Guys and St Thomas NHS Foundation Trust,17/05/2022,(53632) Pharmacists,(id:581409) Pharmacy,PRICEWATERHOUSECOOPERS LLP,id:15250624   , 709.39
Department of Health,Guys and St Thomas NHS Foundation Trust,17/05/2022,(53662) Pharmacists,(id:581409) Pharmacy,PRICEWATERHOUSECOOPERS LLP,id:15250624   ,1161.72
Department of Health,Guys and St Thomas NHS Foundation Trust,20/05/2022,(89120) Other - Legal fees,(id:581409) Pharmacy,BEACHCROFT LLP OFFICE ACCOUNT,id:15267219   , 489.90
Department of Health,Guys and St Thomas NHS Foundation Trust,13/05/2022,(81200) Medical Surgical Supplies & Equipment,(id:42159) Pharmacy,NHS SUPPLY CHAIN (MAIDSTONE),id:15150034 ,  62.07
Department of Health,Guys and St Thomas NHS Foundation Trust,19/05/2022,(81400) Medical Surgical Supplies & Equipment,(id:42159) Pharmacy,MEDICAL PIPELINE SERVICES LTD,id:15084023, 840.00
Department of Health,Guys and St Thomas NHS Foundation Trust,13/05/2022,(55082) Admin & Clerical,(id:42159) Pharmacy,HYPER RECRUITMENT SOLUTIONS LTD,id:15221046    ,1011.96
Department of Health,Guys and St Thomas NHS Foundation Trust,13/05/2022,(55082) Admin & Clerical,(id:42159) Pharmacy,HYPER RECRUITMENT SOLUTIONS LTD,id:15221169    ,1547.92
Department of Health,Guys and St Thomas NHS Foundation Trust,13/05/2022,(55062) Admin & Clerical,(id:42159) Pharmacy,HYPER RECRUITMENT SOLUTIONS LTD,id:15221163    ,1982.34
Department of Health,Guys and St Thomas NHS Foundation Trust,19/05/2022,(55062) Admin & Clerical,(id:42159) Pharmacy,HYPER RECRUITMENT SOLUTIONS LTD,id:15264820    ,1354.74
Department of Health,Guys and St Thomas NHS Foundation Trust,13/05/2022,(55102) Admin & Clerical,(id:42159) Pharmacy,HYPER RECRUITMENT SOLUTIONS LTD,id:15221199    ,1957.50
Department of Health,Guys and St Thomas NHS Foundation Trust,19/05/2022,(55102) Admin & Clerical,(id:42159) Pharmacy,HYPER RECRUITMENT SOLUTIONS LTD,id:15221098    ,2261.26
Department of Health,Guys and St Thomas NHS Foundation Trust,13/05/2022,(89000) Other - Training courses and conferences,(id:42160) Pharmacy,UNIVERSITY COLLEGE LONDON,id:15203082 ,1110.00
Department of Health,Guys and St Thomas NHS Foundation Trust,12/05/2022,(53632) Pharmacists,(id:42160) Pharmacy,PRICEWATERHOUSECOOPERS LLP,id:15214081    , 392.34
Department of Health,Guys and St Thomas NHS Foundation Trust,19/05/2022,(83400) Office Equipment,(id:42160) Pharmacy,NHS SUPPLY CHAIN (MAIDSTONE),id:15166815  ,  29.45
Department of Health,Guys and St Thomas NHS Foundation Trust,06/05/2022,(84500) Establishment,(id:42156) Pharmacy,BANNER GROUP LTD,id:15172611  , 172.35
Department of Health,Guys and St Thomas NHS Foundation Trust,06/05/2022,(83610) IT Costs,(id:42156) Pharmacy,BANNER GROUP LTD,id:15172611  , 357.07
Department of Health,Guys and St Thomas NHS Foundation Trust,20/05/2022,(83410) Office Equipment,(id:42156) Pharmacy,RICOH UK LTD,id:15263976   , 187.71
Department of Health,Guys and St Thomas NHS Foundation Trust,12/05/2022,(53672) Pharmacists,(id:42164) Pharmacy,PRICEWATERHOUSECOOPERS LLP,id:15214130    ,1086.73
Department of Health,Guys and St Thomas NHS Foundation Trust,20/05/2022,(83410) Office Equipment,(id:42188) Medical Specialties,RICOH UK LTD,id:15263976  ,   6.07
Department of Health,Guys and St Thomas NHS Foundation Trust,13/05/2022,(81000) Surgical Appliances,(id:42171) Medical Specialties,TALAR MADE ORTHOTICS LTD,id:15209014  ,  43.66
Department of Health,Guys and St Thomas NHS Foundation Trust,13/05/2022,(81000) Surgical Appliances,(id:42171) Medical Specialties,TALAR MADE ORTHOTICS LTD,id:15205802  , 218.04
Department of Health,Guys and St Thomas NHS Foundation Trust,13/05/2022,(83400) Office Equipment,(id:42217) Medical Specialties,NHS SUPPLY CHAIN (MAIDSTONE),id:15122381 , 390.04
Department of Health,Guys and St Thomas NHS Foundation Trust,13/05/2022,(81700) Lab Equipment Purchase,(id:42217) Medical Specialties,NHS SUPPLY CHAIN (MAIDSTONE),id:15106779,  20.34
Department of Health,Guys and St Thomas NHS Foundation Trust,19/05/2022,(82000) Provisions & Kitchens,(id:42250) Medical Specialties,AAH PHARMACEUTICALS LTD,id:15082495 , 810.40
Department of Health,Guys and St Thomas NHS Foundation Trust,17/05/2022,(51272) Dieticians,(id:42249) Medical Specialties,PRICEWATERHOUSECOOPERS LLP,id:15250624    , 523.82
Department of Health,Guys and St Thomas NHS Foundation Trust,20/05/2022,(81200) Medical Surgical Supplies & Equipment,(id:42223) Medical Specialties,HAAG STREIT UK LTD,id:15265731, 792.00
Department of Health,Guys and St Thomas NHS Foundation Trust,06/05/2022,(81200) Medical Surgical Supplies & Equipment,(id:42223) Medical Specialties,BANNER GROUP LTD,id:15156674  , 603.51
Department of Health,Guys and St Thomas NHS Foundation Trust,19/05/2022,(81200) Medical Surgical Supplies & Equipment,(id:42223) Medical Specialties,NHS SUPPLY CHAIN (MAIDSTONE),id:15166815, 445.61
Department of Health,Guys and St Thomas NHS Foundation Trust,13/05/2022,(82000) Provisions & Kitchens,(id:42223) Medical Specialties,NHS SUPPLY CHAIN (MAIDSTONE),id:15150034 ,  27.22
Department of Health,Guys and St Thomas NHS Foundation Trust,19/05/2022,(81100) Dressings,(id:42223) Medical Specialties,NHS SUPPLY CHAIN (MAIDSTONE),id:15256770   ,  11.16
Department of Health,Guys and St Thomas NHS Foundation Trust,13/05/2022,(81100) Dressings,(id:42223) Medical Specialties,NHS SUPPLY CHAIN (MAIDSTONE),id:15122381   ,  75.64
Department of Health,Guys and St Thomas NHS Foundation Trust,20/05/2022,(81700) Lab Equipment Purchase,(id:42223) Medical Specialties,NHS SUPPLY CHAIN (MAIDSTONE),id:15220737, 109.82
Department of Health,Guys and St Thomas NHS Foundation Trust,19/05/2022,(82800) Bedding & Linen,(id:42223) Medical Specialties,NHS SUPPLY CHAIN (MAIDSTONE),id:15256770  ,  43.13
Department of Health,Guys and St Thomas NHS Foundation Trust,06/05/2022,(84500) Establishment,(id:42221) Medical Specialties,BANNER GROUP LTD,id:15161040 , 553.56
Department of Health,Guys and St Thomas NHS Foundation Trust,20/05/2022,(83400) Office Equipment,(id:42221) Medical Specialties,NHS SUPPLY CHAIN (MAIDSTONE),id:15220737 ,  96.20
Department of Health,Guys and St Thomas NHS Foundation Trust,19/05/2022,(83400) Office Equipment,(id:42221) Medical Specialties,NHS SUPPLY CHAIN (MAIDSTONE),id:15135827 , 120.17
Department of Health,Guys and St Thomas NHS Foundation Trust,19/05/2022,(81200) Medical Surgical Supplies & Equipment,(id:42221) Medical Specialties,NHS SUPPLY CHAIN (MAIDSTONE),id:15256770,4110.77
Department of Health,Guys and St Thomas NHS Foundation Trust,19/05/2022,(81200) Medical Surgical Supplies & Equipment,(id:42221) Medical Specialties,NHS SUPPLY CHAIN (MAIDSTONE),id:15135827,3620.94
Department of Health,Guys and St Thomas NHS Foundation Trust,20/05/2022,(81200) Medical Surgical Supplies & Equipment,(id:42221) Medical Specialties,ALCON EYE CARE UK LIMITED,id:15267934   ,3024.00
Department of Health,Guys and St Thomas NHS Foundation Trust,06/05/2022,(81200) Medical Surgical Supplies & Equipment,(id:42221) Medical Specialties,ALCON EYE CARE UK LIMITED,id:15167400   ,5040.00
Department of Health,Guys and St Thomas NHS Foundation Trust,19/05/2022,(81200) Medical Surgical Supplies & Equipment,(id:42221) Medical Specialties,ALCON EYE CARE UK LIMITED,id:15238894   ,4032.00
Department of Health,Guys and St Thomas NHS Foundation Trust,19/05/2022,(81200) Medical Surgical Supplies & Equipment,(id:42221) Medical Specialties,ALCON EYE CARE UK LIMITED,id:15222061   , 810.00
Department of Health,Guys and St Thomas NHS Foundation Trust,19/05/2022,(81200) Medical Surgical Supplies & Equipment,(id:42221) Medical Specialties,ALCON EYE CARE UK LIMITED,id:15239070   ,6048.00
Department of Health,Guys and St Thomas NHS Foundation Trust,19/05/2022,(81200) Medical Surgical Supplies & Equipment,(id:42221) Medical Specialties,ALCON EYE CARE UK LIMITED,id:15239039   ,1296.00
Department of Health,Guys and St Thomas NHS Foundation Trust,19/05/2022,(81200) Medical Surgical Supplies & Equipment,(id:42221) Medical Specialties,ALCON EYE CARE UK LIMITED,id:15238914   , 720.00
Department of Health,Guys and St Thomas NHS Foundation Trust,13/05/2022,(81100) Dressings,(id:42221) Medical Specialties,NHS SUPPLY CHAIN (MAIDSTONE),id:15150034   ,  59.44
Department of Health,Guys and St Thomas NHS Foundation Trust,06/05/2022,(81225) Medical Surgical Supplies & Equipment,(id:42221) Medical Specialties,CARL ZEISS LTD,id:13701982    ,1212.00
Department of Health,Guys and St Thomas NHS Foundation Trust,13/05/2022,(82000) Provisions & Kitchens,(id:42213) Medical Specialties,NHS SUPPLY CHAIN (MAIDSTONE),id:15106779 ,  14.40
Department of Health,Guys and St Thomas NHS Foundation Trust,19/05/2022,(81200) Medical Surgical Supplies & Equipment,(id:42213) Medical Specialties,NHS SUPPLY CHAIN (MAIDSTONE),id:15166815, 763.75
Department of Health,Guys and St Thomas NHS Foundation Trust,19/05/2022,(81200) Medical Surgical Supplies & Equipment,(id:42213) Medical Specialties,NHS SUPPLY CHAIN (MAIDSTONE),id:15256770,1131.82
Department of Health,Guys and St Thomas NHS Foundation Trust,13/05/2022,(81200) Medical Surgical Supplies & Equipment,(id:42213) Medical Specialties,NHS SUPPLY CHAIN (MAIDSTONE),id:15106779, 484.13
Department of Health,Guys and St Thomas NHS Foundation Trust,19/05/2022,(81100) Dressings,(id:42213) Medical Specialties,NHS SUPPLY CHAIN (MAIDSTONE),id:15256770   , 638.05
Department of Health,Guys and St Thomas NHS Foundation Trust,19/05/2022,(81000) Surgical Appliances,(id:42213) Medical Specialties,TALAR MADE ORTHOTICS LTD,id:15258454  , 174.62
Department of Health,Guys and St Thomas NHS Foundation Trust,13/05/2022,(81700) Lab Equipment Purchase,(id:42213) Medical Specialties,NHS SUPPLY CHAIN (MAIDSTONE),id:15106779, 136.18
Department of Health,Guys and St Thomas NHS Foundation Trust,19/05/2022,(50200) Consultants,(id:42213) Medical Specialties,KINGS COLLEGE LONDON:03529700,id:15160528,6471.14
Department of Health,Guys and St Thomas NHS Foundation Trust,20/05/2022,(81100) Dressings,(id:42208) Medical Specialties,NHS SUPPLY CHAIN (MAIDSTONE),id:15220737   ,  15.66
Department of Health,Guys and St Thomas NHS Foundation Trust,13/05/2022,(81200) Medical Surgical Supplies & Equipment,(id:42208) Medical Specialties,MEDTRONIC LTD,id:15150236, 634.20
Department of Health,Guys and St Thomas NHS Foundation Trust,19/05/2022,(81200) Medical Surgical Supplies & Equipment,(id:42208) Medical Specialties,MEDTRONIC LTD,id:15187458, 948.30
Department of Health,Guys and St Thomas NHS Foundation Trust,19/05/2022,(81200) Medical Surgical Supplies & Equipment,(id:42208) Medical Specialties,DEXCOM INTERNATIONAL LTD,id:15160116    , 600.00
Department of Health,Guys and St Thomas NHS Foundation Trust,19/05/2022,(81200) Medical Surgical Supplies & Equipment,(id:42208) Medical Specialties,MEDTRONIC LTD,id:15207451,3522.00
Department of Health,Guys and St Thomas NHS Foundation Trust,19/05/2022,(81200) Medical Surgical Supplies & Equipment,(id:42208) Medical Specialties,MEDTRONIC LTD,id:15256013, 850.50
Department of Health,Guys and St Thomas NHS Foundation Trust,13/05/2022,(81200) Medical Surgical Supplies & Equipment,(id:42208) Medical Specialties,MEDTRONIC LTD,id:15120285, 850.50
Department of Health,Guys and St Thomas NHS Foundation Trust,13/05/2022,(81200) Medical Surgical Supplies & Equipment,(id:42208) Medical Specialties,MEDTRONIC LTD,id:15057552, 904.50
Department of Health,Guys and St Thomas NHS Foundation Trust,13/05/2022,(81200) Medical Surgical Supplies & Equipment,(id:42208) Medical Specialties,AIR LIQUIDE (HOMECARE) LTD,id:15215342  ,3642.00
Department of Health,Guys and St Thomas NHS Foundation Trust,13/05/2022,(81200) Medical Surgical Supplies & Equipment,(id:42208) Medical Specialties,DEXCOM INTERNATIONAL LTD,id:15160277    , 600.00
Department of Health,Guys and St Thomas NHS Foundation Trust,13/05/2022,(81200) Medical Surgical Supplies & Equipment,(id:42208) Medical Specialties,MEDTRONIC LTD,id:15124431, 600.00
Department of Health,Guys and St Thomas NHS Foundation Trust,13/05/2022,(81200) Medical Surgical Supplies & Equipment,(id:42208) Medical Specialties,DEXCOM INTERNATIONAL LTD,id:15197634    , 600.00
Department of Health,Guys and St Thomas NHS Foundation Trust,13/05/2022,(81200) Medical Surgical Supplies & Equipment,(id:42208) Medical Specialties,MEDTRONIC LTD,id:15124429, 850.50
Department of Health,Guys and St Thomas NHS Foundation Trust,06/05/2022,(81200) Medical Surgical Supplies & Equipment,(id:42208) Medical Specialties,DEXCOM INTERNATIONAL LTD,id:15160101    , 600.00
Department of Health,Guys and St Thomas NHS Foundation Trust,06/05/2022,(81200) Medical Surgical Supplies & Equipment,(id:42208) Medical Specialties,DEXCOM INTERNATIONAL LTD,id:15160234    , 600.00
Department of Health,Guys and St Thomas NHS Foundation Trust,19/05/2022,(81200) Medical Surgical Supplies & Equipment,(id:42208) Medical Specialties,DEXCOM INTERNATIONAL LTD,id:15257774    , 600.00
Department of Health,Guys and St Thomas NHS Foundation Trust,19/05/2022,(81200) Medical Surgical Supplies & Equipment,(id:42208) Medical Specialties,DEXCOM INTERNATIONAL LTD,id:15154707    , 600.00
Department of Health,Guys and St Thomas NHS Foundation Trust,19/05/2022,(81200) Medical Surgical Supplies & Equipment,(id:42208) Medical Specialties,DEXCOM INTERNATIONAL LTD,id:15226594    , 600.00
Department of Health,Guys and St Thomas NHS Foundation Trust,19/05/2022,(81200) Medical Surgical Supplies & Equipment,(id:42208) Medical Specialties,DEXCOM INTERNATIONAL LTD,id:15237634    , 600.00
Department of Health,Guys and St Thomas NHS Foundation Trust,19/05/2022,(81200) Medical Surgical Supplies & Equipment,(id:42208) Medical Specialties,DEXCOM INTERNATIONAL LTD,id:15257796    , 600.00
Department of Health,Guys and St Thomas NHS Foundation Trust,13/05/2022,(81200) Medical Surgical Supplies & Equipment,(id:42208) Medical Specialties,AIR LIQUIDE (HOMECARE) LTD,id:15215194  ,3366.00
Department of Health,Guys and St Thomas NHS Foundation Trust,19/05/2022,(81265) Medical Surgical Supplies & Equipment,(id:42208) Medical Specialties,NHS SUPPLY CHAIN (MAIDSTONE),id:15135827,  53.15
Department of Health,Guys and St Thomas NHS Foundation Trust,20/05/2022,(83400) Office Equipment,(id:42208) Medical Specialties,NHS SUPPLY CHAIN (MAIDSTONE),id:15220737 , 199.72
Department of Health,Guys and St Thomas NHS Foundation Trust,13/05/2022,(81200) Medical Surgical Supplies & Equipment,(id:42206) Medical Specialties,NHS SUPPLY CHAIN (MAIDSTONE),id:15122381,  14.47
Department of Health,Guys and St Thomas NHS Foundation Trust,13/05/2022,(83400) Office Equipment,(id:4590420) Medical Specialties,FOOD FOR PURPOSE FFP CIC,id:15213682   ,2520.00
Department of Health,Guys and St Thomas NHS Foundation Trust,06/05/2022,(89640) Non-Healthcare from NHS Trusts,(id:3235419) Medical Specialties,DARTFORD AND GRAVESHAM NHS TRUST,id:15151754 ,9146.54
Department of Health,Guys and St Thomas NHS Foundation Trust,13/05/2022,(84550) Establishment,(id:41937) Medical Specialties,CORPTELUK,id:15167462   , 932.12
Department of Health,Guys and St Thomas NHS Foundation Trust,06/05/2022,(81300) Medical Surgical Supplies & Equipment,(id:41937) Medical Specialties,ENEURA (UK) LTD,id:15173854   ,1612.00
Department of Health,Guys and St Thomas NHS Foundation Trust,06/05/2022,(81300) Medical Surgical Supplies & Equipment,(id:41937) Medical Specialties,ENEURA (UK) LTD,id:15173994   ,1612.00
Department of Health,Guys and St Thomas NHS Foundation Trust,06/05/2022,(81300) Medical Surgical Supplies & Equipment,(id:41937) Medical Specialties,ENEURA (UK) LTD,id:15174094   ,1612.00
Department of Health,Guys and St Thomas NHS Foundation Trust,12/05/2022,(52062) Radiographers,(id:41937) Medical Specialties,PRICEWATERHOUSECOOPERS LLP,id:15214130 , 748.17
Department of Health,Guys and St Thomas NHS Foundation Trust,12/05/2022,(52062) Radiographers,(id:41937) Medical Specialties,PRICEWATERHOUSECOOPERS LLP,id:15214081 ,2016.10
Department of Health,Guys and St Thomas NHS Foundation Trust,06/05/2022,(81200) Medical Surgical Supplies & Equipment,(id:42232) Therapies and Rehabilitation,DJO UK LTD,id:14347154    , 750.00
Department of Health,Guys and St Thomas NHS Foundation Trust,06/05/2022,(81200) Medical Surgical Supplies & Equipment,(id:42232) Therapies and Rehabilitation,DJO UK LTD,id:15027336    , 750.00
Department of Health,Guys and St Thomas NHS Foundation Trust,12/05/2022,(51862) Physiotherapists,(id:42230) Therapies and Rehabilitation,PRICEWATERHOUSECOOPERS LLP,id:15214081    ,1136.74
Department of Health,Guys and St Thomas NHS Foundation Trust,17/05/2022,(51462) Occupational Therapists,(id:42240) Therapies and Rehabilitation,PRICEWATERHOUSECOOPERS LLP,id:15250624  ,1164.62
Department of Health,Guys and St Thomas NHS Foundation Trust,20/05/2022,(81100) Dressings,(id:42239) Therapies and Rehabilitation,NHS SUPPLY CHAIN (MAIDSTONE),id:15220737    , 737.64
Department of Health,Guys and St Thomas NHS Foundation Trust,06/05/2022,(81225) Medical Surgical Supplies & Equipment,(id:42239) Therapies and Rehabilitation,PROMEDICS ORTHOPAEDICS LTD,id:15160862   , 810.60
Department of Health,Guys and St Thomas NHS Foundation Trust,19/05/2022,(81225) Medical Surgical Supplies & Equipment,(id:42239) Therapies and Rehabilitation,NHS SUPPLY CHAIN (MAIDSTONE),id:15166815 , 102.17
Department of Health,Guys and St Thomas NHS Foundation Trust,20/05/2022,(82800) Bedding & Linen,(id:590530) Therapies and Rehabilitation,NHS SUPPLY CHAIN (MAIDSTONE),id:15220737  ,   7.06
Department of Health,Guys and St Thomas NHS Foundation Trust,13/05/2022,(82600) Uniforms & Clothing,(id:590490) Therapies and Rehabilitation,DISPOSABLE MEDICAL INSTRUMENTS LTD,id:15200956  , 817.26
Department of Health,Guys and St Thomas NHS Foundation Trust,13/05/2022,(82600) Uniforms & Clothing,(id:590490) Therapies and Rehabilitation,DISPOSABLE MEDICAL INSTRUMENTS LTD,id:15200954  ,1056.00
Department of Health,Guys and St Thomas NHS Foundation Trust,13/05/2022,(81000) Surgical Appliances,(id:42243) Therapies and Rehabilitation,TALAR MADE ORTHOTICS LTD,id:15205802   ,  33.76
Department of Health,Guys and St Thomas NHS Foundation Trust,12/05/2022,(51862) Physiotherapists,(id:184406) Therapies and Rehabilitation,PRICEWATERHOUSECOOPERS LLP,id:15214130   ,1096.89
Department of Health,Guys and St Thomas NHS Foundation Trust,17/05/2022,(53062) Speech Therapists,(id:42248) Therapies and Rehabilitation,PRICEWATERHOUSECOOPERS LLP,id:15250624   ,2346.51
Department of Health,Guys and St Thomas NHS Foundation Trust,19/05/2022,(81200) Medical Surgical Supplies & Equipment,(id:590499) Therapies and Rehabilitation,INVACARE LTD,id:15193924 , 601.20
Department of Health,Guys and St Thomas NHS Foundation Trust,19/05/2022,(81200) Medical Surgical Supplies & Equipment,(id:590499) Therapies and Rehabilitation,SUNRISE MEDICAL LIMITED,id:15193734,1290.00
Department of Health,Guys and St Thomas NHS Foundation Trust,19/05/2022,(81200) Medical Surgical Supplies & Equipment,(id:590499) Therapies and Rehabilitation,RGK WHEELCHAIRS LTD,id:14260407    ,6038.12
Department of Health,Guys and St Thomas NHS Foundation Trust,13/05/2022,(81200) Medical Surgical Supplies & Equipment,(id:590499) Therapies and Rehabilitation,INVACARE LTD,id:15162481 ,1514.40
Department of Health,Guys and St Thomas NHS Foundation Trust,06/05/2022,(81225) Medical Surgical Supplies & Equipment,(id:590499) Therapies and Rehabilitation,CHUNC LIMITED,id:15166581,1070.51
Department of Health,Guys and St Thomas NHS Foundation Trust,19/05/2022,(81225) Medical Surgical Supplies & Equipment,(id:590499) Therapies and Rehabilitation,ROYAL HOSPITAL FOR NEURO-DISABILITY,id:15171954   ,2228.40
Department of Health,Guys and St Thomas NHS Foundation Trust,19/05/2022,(81225) Medical Surgical Supplies & Equipment,(id:590499) Therapies and Rehabilitation,CUSTOMIZED COVERS,id:15256838 , 622.20
Department of Health,Guys and St Thomas NHS Foundation Trust,06/05/2022,(81225) Medical Surgical Supplies & Equipment,(id:590498) Therapies and Rehabilitation,JANE SAUNDERS & MANNING LTD,id:15165434 ,1121.74
Department of Health,Guys and St Thomas NHS Foundation Trust,19/05/2022,(81225) Medical Surgical Supplies & Equipment,(id:590498) Therapies and Rehabilitation,ALLARD SUPPORT LTD,id:15164595,1907.55
Department of Health,Guys and St Thomas NHS Foundation Trust,19/05/2022,(81225) Medical Surgical Supplies & Equipment,(id:590498) Therapies and Rehabilitation,TALAR MADE ORTHOTICS LTD,id:15029502    ,1511.82
Department of Health,Guys and St Thomas NHS Foundation Trust,06/05/2022,(81400) Medical Surgical Supplies & Equipment,(id:590498) Therapies and Rehabilitation,NPD ORTHOTICS LTD,id:15162256 , 657.66
Department of Health,Guys and St Thomas NHS Foundation Trust,13/05/2022,(83880) Building & Engineering,(id:590497) Therapies and Rehabilitation,LAZERBEAM FIRE AND SECURITY LTD,id:14989258  ,1452.00
Department of Health,Guys and St Thomas NHS Foundation Trust,19/05/2022,(83400) Office Equipment,(id:590496) Therapies and Rehabilitation,NHS SUPPLY CHAIN (MAIDSTONE),id:15166815 , 183.77
Department of Health,Guys and St Thomas NHS Foundation Trust,13/05/2022,(81100) Dressings,(id:590496) Therapies and Rehabilitation,NHS SUPPLY CHAIN (MAIDSTONE),id:15122381   ,  39.12
Department of Health,Guys and St Thomas NHS Foundation Trust,19/05/2022,(81225) Medical Surgical Supplies & Equipment,(id:1042419) Therapies and Rehabilitation,NHS SUPPLY CHAIN (MAIDSTONE),id:15135827    , 415.89
Department of Health,Guys and St Thomas NHS Foundation Trust,19/05/2022,(82000) Provisions & Kitchens,(id:1042419) Therapies and Rehabilitation,NHS SUPPLY CHAIN (MAIDSTONE),id:15256770, 134.68
Department of Health,Guys and St Thomas NHS Foundation Trust,19/05/2022,(83400) Office Equipment,(id:1042419) Therapies and Rehabilitation,NHS SUPPLY CHAIN (MAIDSTONE),id:15166815,  94.20
Department of Health,Guys and St Thomas NHS Foundation Trust,19/05/2022,(50200) Consultants,(id:42368) Clinical Imaging & Med Physics,KINGS COLLEGE LONDON:03529700,id:15243877    ,    11014.90
Department of Health,Guys and St Thomas NHS Foundation Trust,12/05/2022,(52062) Radiographers,(id:42368) Clinical Imaging & Med Physics,PRICEWATERHOUSECOOPERS LLP,id:15214130,2789.32
Department of Health,Guys and St Thomas NHS Foundation Trust,19/05/2022,(82000) Provisions & Kitchens,(id:42367) Clinical Imaging & Med Physics,NHS SUPPLY CHAIN (MAIDSTONE),id:15256770,   9.64
Department of Health,Guys and St Thomas NHS Foundation Trust,13/05/2022,(81100) Dressings,(id:42367) Clinical Imaging & Med Physics,NHS SUPPLY CHAIN (MAIDSTONE),id:15150034  , 593.74
Department of Health,Guys and St Thomas NHS Foundation Trust,19/05/2022,(81100) Dressings,(id:42367) Clinical Imaging & Med Physics,NHS SUPPLY CHAIN (MAIDSTONE),id:15166815  , 421.77
Department of Health,Guys and St Thomas NHS Foundation Trust,19/05/2022,(81100) Dressings,(id:42367) Clinical Imaging & Med Physics,NHS SUPPLY CHAIN (MAIDSTONE),id:15135827  , 379.96
Department of Health,Guys and St Thomas NHS Foundation Trust,13/05/2022,(81400) Medical Surgical Supplies & Equipment,(id:42367) Clinical Imaging & Med Physics,NHS SUPPLY CHAIN ( CAPITAL FUND ONLY),id:15220081,    45605.01
Department of Health,Guys and St Thomas NHS Foundation Trust,06/05/2022,(81400) Medical Surgical Supplies & Equipment,(id:42367) Clinical Imaging & Med Physics,LAZERBEAM FIRE AND SECURITY LTD,id:15178501 ,1700.00
Department of Health,Guys and St Thomas NHS Foundation Trust,13/05/2022,(81200) Medical Surgical Supplies & Equipment,(id:42367) Clinical Imaging & Med Physics,SHOCKWAVE MEDICAL,id:15199395,3600.00
Department of Health,Guys and St Thomas NHS Foundation Trust,19/05/2022,(81200) Medical Surgical Supplies & Equipment,(id:42367) Clinical Imaging & Med Physics,NHS SUPPLY CHAIN (MAIDSTONE),id:15135827    ,    12968.80
Department of Health,Guys and St Thomas NHS Foundation Trust,19/05/2022,(81200) Medical Surgical Supplies & Equipment,(id:42367) Clinical Imaging & Med Physics,NHS SUPPLY CHAIN (MAIDSTONE),id:15166815    ,    17606.67
Department of Health,Guys and St Thomas NHS Foundation Trust,19/05/2022,(81200) Medical Surgical Supplies & Equipment,(id:42367) Clinical Imaging & Med Physics,ABBOTT MEDICAL UK LTD,id:15229634 , 540.00
Department of Health,Guys and St Thomas NHS Foundation Trust,19/05/2022,(81200) Medical Surgical Supplies & Equipment,(id:42367) Clinical Imaging & Med Physics,GBUK ENTERAL UK,id:15194994  , 600.00
Department of Health,Guys and St Thomas NHS Foundation Trust,19/05/2022,(81200) Medical Surgical Supplies & Equipment,(id:42367) Clinical Imaging & Med Physics,MEDTRONIC LTD,id:15164173    , 720.00
Department of Health,Guys and St Thomas NHS Foundation Trust,19/05/2022,(81200) Medical Surgical Supplies & Equipment,(id:42367) Clinical Imaging & Med Physics,CARDINAL HEALTH UK 432 LIMITED,id:15207546  ,1416.00
Department of Health,Guys and St Thomas NHS Foundation Trust,19/05/2022,(81200) Medical Surgical Supplies & Equipment,(id:42367) Clinical Imaging & Med Physics,BOSTON SCIENTIFIC LTD,id:15215361 ,3312.00
Department of Health,Guys and St Thomas NHS Foundation Trust,06/05/2022,(81200) Medical Surgical Supplies & Equipment,(id:42367) Clinical Imaging & Med Physics,VYGON (UK) LTD,id:15124377   ,1676.70
Department of Health,Guys and St Thomas NHS Foundation Trust,19/05/2022,(81235) Medical Surgical Supplies & Equipment,(id:42367) Clinical Imaging & Med Physics,NHS SUPPLY CHAIN (MAIDSTONE),id:15256770    ,2116.80
Department of Health,Guys and St Thomas NHS Foundation Trust,13/05/2022,(81235) Medical Surgical Supplies & Equipment,(id:42367) Clinical Imaging & Med Physics,BOSTON SCIENTIFIC LTD,id:15153518 , 510.00
Department of Health,Guys and St Thomas NHS Foundation Trust,13/05/2022,(81230) Medical Surgical Supplies & Equipment,(id:42367) Clinical Imaging & Med Physics,BOSTON SCIENTIFIC LTD,id:15144683 , 633.60
Department of Health,Guys and St Thomas NHS Foundation Trust,13/05/2022,(81500) X Ray Equipment Purchase,(id:42367) Clinical Imaging & Med Physics,MEDICARE INSOURCING SERVICES LTD,id:15203086   ,1051.88
Department of Health,Guys and St Thomas NHS Foundation Trust,13/05/2022,(81500) X Ray Equipment Purchase,(id:42367) Clinical Imaging & Med Physics,MEDICARE INSOURCING SERVICES LTD,id:15203199   ,1155.02
Department of Health,Guys and St Thomas NHS Foundation Trust,13/05/2022,(81500) X Ray Equipment Purchase,(id:42367) Clinical Imaging & Med Physics,MEDICARE INSOURCING SERVICES LTD,id:15203051   ,1216.89
Department of Health,Guys and St Thomas NHS Foundation Trust,13/05/2022,(81500) X Ray Equipment Purchase,(id:42367) Clinical Imaging & Med Physics,MEDICARE INSOURCING SERVICES LTD,id:15203194   ,1237.51
Department of Health,Guys and St Thomas NHS Foundation Trust,13/05/2022,(81500) X Ray Equipment Purchase,(id:42367) Clinical Imaging & Med Physics,MEDICARE INSOURCING SERVICES LTD,id:15203101   ,1258.14
Department of Health,Guys and St Thomas NHS Foundation Trust,13/05/2022,(81500) X Ray Equipment Purchase,(id:42367) Clinical Imaging & Med Physics,MEDICARE INSOURCING SERVICES LTD,id:15203142   ,1505.67
Department of Health,Guys and St Thomas NHS Foundation Trust,13/05/2022,(81500) X Ray Equipment Purchase,(id:42367) Clinical Imaging & Med Physics,MEDICARE INSOURCING SERVICES LTD,id:15203197   ,1526.25
Department of Health,Guys and St Thomas NHS Foundation Trust,13/05/2022,(81500) X Ray Equipment Purchase,(id:42367) Clinical Imaging & Med Physics,MEDICARE INSOURCING SERVICES LTD,id:15203143   ,2330.66
Department of Health,Guys and St Thomas NHS Foundation Trust,19/05/2022,(81500) X Ray Equipment Purchase,(id:42367) Clinical Imaging & Med Physics,MEDICARE INSOURCING SERVICES LTD,id:15248014   ,1155.02
Department of Health,Guys and St Thomas NHS Foundation Trust,13/05/2022,(82600) Uniforms & Clothing,(id:42366) Clinical Imaging & Med Physics,NHS SUPPLY CHAIN (MAIDSTONE),id:15122381  , 600.95
Department of Health,Guys and St Thomas NHS Foundation Trust,06/05/2022,(80010) Drug Costs,(id:42366) Clinical Imaging & Med Physics,COMPLEO HEALTH UK LTD,id:15172347   ,3960.00
Department of Health,Guys and St Thomas NHS Foundation Trust,06/05/2022,(80010) Drug Costs,(id:42366) Clinical Imaging & Med Physics,COMPLEO HEALTH UK LTD,id:15117859   ,4080.00
Department of Health,Guys and St Thomas NHS Foundation Trust,13/05/2022,(81100) Dressings,(id:42366) Clinical Imaging & Med Physics,NHS SUPPLY CHAIN (MAIDSTONE),id:15150034  ,  10.25
Department of Health,Guys and St Thomas NHS Foundation Trust,13/05/2022,(81200) Medical Surgical Supplies & Equipment,(id:42366) Clinical Imaging & Med Physics,NHS SUPPLY CHAIN (MAIDSTONE),id:15150034    ,1247.38
Department of Health,Guys and St Thomas NHS Foundation Trust,19/05/2022,(83400) Office Equipment,(id:42366) Clinical Imaging & Med Physics,NHS SUPPLY CHAIN (MAIDSTONE),id:15135827, 437.66
Department of Health,Guys and St Thomas NHS Foundation Trust,13/05/2022,(81500) X Ray Equipment Purchase,(id:42366) Clinical Imaging & Med Physics,BRACCO UK LTD,id:15135474  ,1320.00
Department of Health,Guys and St Thomas NHS Foundation Trust,20/05/2022,(83400) Office Equipment,(id:42372) Clinical Imaging & Med Physics,BAYER PLC,id:15266434    ,2112.00
Department of Health,Guys and St Thomas NHS Foundation Trust,06/05/2022,(83400) Office Equipment,(id:42372) Clinical Imaging & Med Physics,BAYER PLC,id:15170499    ,2112.00
Department of Health,Guys and St Thomas NHS Foundation Trust,20/05/2022,(84600) Establishment,(id:42372) Clinical Imaging & Med Physics,CLARITY TRAVEL MANAGEMENT,id:15271795 ,1200.42
Department of Health,Guys and St Thomas NHS Foundation Trust,13/05/2022,(84620) Establishment,(id:42372) Clinical Imaging & Med Physics,SODEXO MOTIVATION SOLUTIONS U.K. LTD,id:15155414,1732.64
Department of Health,Guys and St Thomas NHS Foundation Trust,12/05/2022,(54072) Technical Officers,(id:42372) Clinical Imaging & Med Physics,PRICEWATERHOUSECOOPERS LLP,id:15214081,1458.64
Department of Health,Guys and St Thomas NHS Foundation Trust,13/05/2022,(81200) Medical Surgical Supplies & Equipment,(id:42372) Clinical Imaging & Med Physics,NHS SUPPLY CHAIN (MAIDSTONE),id:15122381    , 233.71
Department of Health,Guys and St Thomas NHS Foundation Trust,06/05/2022,(81275) Medical Surgical Supplies & Equipment,(id:42372) Clinical Imaging & Med Physics,GE HEALTHCARE (50652318),id:15129874   , 756.00
Department of Health,Guys and St Thomas NHS Foundation Trust,19/05/2022,(81275) Medical Surgical Supplies & Equipment,(id:42372) Clinical Imaging & Med Physics,GE HEALTHCARE (50652318),id:15258014   ,1240.80
Department of Health,Guys and St Thomas NHS Foundation Trust,06/05/2022,(81500) X Ray Equipment Purchase,(id:42372) Clinical Imaging & Med Physics,GE HEALTHCARE (50652318),id:15087553 , 588.00
Department of Health,Guys and St Thomas NHS Foundation Trust,19/05/2022,(81500) X Ray Equipment Purchase,(id:42372) Clinical Imaging & Med Physics,CURIUM PHARMA UK LTD,id:15243117,1875.60
Department of Health,Guys and St Thomas NHS Foundation Trust,19/05/2022,(81500) X Ray Equipment Purchase,(id:42372) Clinical Imaging & Med Physics,GE HEALTHCARE (50652318),id:15256057 , 516.00
Department of Health,Guys and St Thomas NHS Foundation Trust,19/05/2022,(81500) X Ray Equipment Purchase,(id:42372) Clinical Imaging & Med Physics,GE HEALTHCARE (50652318),id:15256042 ,-588.00
Department of Health,Guys and St Thomas NHS Foundation Trust,19/05/2022,(81500) X Ray Equipment Purchase,(id:42372) Clinical Imaging & Med Physics,GE HEALTHCARE (50652318),id:15243984 ,-588.00
Department of Health,Guys and St Thomas NHS Foundation Trust,19/05/2022,(81400) Medical Surgical Supplies & Equipment,(id:42379) Clinical Imaging & Med Physics,ZOLL MEDICAL UK LTD,id:14343809   ,1202.63
Department of Health,Guys and St Thomas NHS Foundation Trust,19/05/2022,(81400) Medical Surgical Supplies & Equipment,(id:42379) Clinical Imaging & Med Physics,DRAEGER MEDICAL UK LTD,id:15236169,2610.00
Department of Health,Guys and St Thomas NHS Foundation Trust,20/05/2022,(84600) Establishment,(id:42379) Clinical Imaging & Med Physics,CLARITY TRAVEL MANAGEMENT,id:15271794 , 139.76
Department of Health,Guys and St Thomas NHS Foundation Trust,19/05/2022,(81200) Medical Surgical Supplies & Equipment,(id:42379) Clinical Imaging & Med Physics,ZOLL MEDICAL UK LTD,id:15018005   ,3039.72
Department of Health,Guys and St Thomas NHS Foundation Trust,13/05/2022,(81200) Medical Surgical Supplies & Equipment,(id:42379) Clinical Imaging & Med Physics,SPACELABS HEALTHCARE LTD,id:15083443   ,1582.14
Department of Health,Guys and St Thomas NHS Foundation Trust,19/05/2022,(81200) Medical Surgical Supplies & Equipment,(id:42379) Clinical Imaging & Med Physics,B.BRAUN MEDICAL LTD,id:14957943   , 594.00
Department of Health,Guys and St Thomas NHS Foundation Trust,19/05/2022,(81200) Medical Surgical Supplies & Equipment,(id:42379) Clinical Imaging & Med Physics,HUNTLEIGH HEALTHCARE (LUTON) LTD,id:15256648,1603.20
Department of Health,Guys and St Thomas NHS Foundation Trust,19/05/2022,(81200) Medical Surgical Supplies & Equipment,(id:42379) Clinical Imaging & Med Physics,SPACELABS HEALTHCARE LTD,id:15239654   , 770.10
Department of Health,Guys and St Thomas NHS Foundation Trust,19/05/2022,(81700) Lab Equipment Purchase,(id:42378) Clinical Imaging & Med Physics,KINGSFIELD COMPUTER PRODUCTS LTD,id:15248754, 847.32
Department of Health,Guys and St Thomas NHS Foundation Trust,19/05/2022,(83400) Office Equipment,(id:42374) Clinical Imaging & Med Physics,MATERIALISE UK LTD,id:15256678,3434.40
Department of Health,Guys and St Thomas NHS Foundation Trust,20/05/2022,(84600) Establishment,(id:42374) Clinical Imaging & Med Physics,CLARITY TRAVEL MANAGEMENT,id:15271794 , 162.11
Department of Health,Guys and St Thomas NHS Foundation Trust,19/05/2022,(81250) Medical Surgical Supplies & Equipment,(id:1348419) Clinical Imaging & Med Physics,AQUILANT LTD,id:15217495   ,1044.00
Department of Health,Guys and St Thomas NHS Foundation Trust,13/05/2022,(81200) Medical Surgical Supplies & Equipment,(id:1348419) Clinical Imaging & Med Physics,NHS SUPPLY CHAIN (MAIDSTONE),id:15106779  ,  53.50
Department of Health,Guys and St Thomas NHS Foundation Trust,19/05/2022,(81200) Medical Surgical Supplies & Equipment,(id:1348419) Clinical Imaging & Med Physics,BENTLEY INNOMED GMBH,id:14928952,1020.00
Department of Health,Guys and St Thomas NHS Foundation Trust,19/05/2022,(81230) Medical Surgical Supplies & Equipment,(id:1348419) Clinical Imaging & Med Physics,COOK UK LTD,id:15193696    , 540.00
Department of Health,Guys and St Thomas NHS Foundation Trust,13/05/2022,(82600) Uniforms & Clothing,(id:1348419) Clinical Imaging & Med Physics,NHS SUPPLY CHAIN (MAIDSTONE),id:15122381, 106.20
Department of Health,Guys and St Thomas NHS Foundation Trust,19/05/2022,(83400) Office Equipment,(id:1348419) Clinical Imaging & Med Physics,NHS SUPPLY CHAIN (MAIDSTONE),id:15166815   , 185.31
Department of Health,Guys and St Thomas NHS Foundation Trust,13/05/2022,(83400) Office Equipment,(id:42255) Integrated Local Services,NHS SUPPLY CHAIN (MAIDSTONE),id:15150034,   1.97
Department of Health,Guys and St Thomas NHS Foundation Trust,20/05/2022,(89270) Establishment,(id:42255) Integrated Local Services,RICHARD KNIGHT,id:15223858  ,1920.00
Department of Health,Guys and St Thomas NHS Foundation Trust,19/05/2022,(82000) Provisions & Kitchens,(id:590595) Integrated Local Services,NHS SUPPLY CHAIN (MAIDSTONE),id:15256770    ,  29.16
Department of Health,Guys and St Thomas NHS Foundation Trust,19/05/2022,(83500) Furniture & Fittings,(id:590595) Integrated Local Services,TECHNIBLINDS LTD,id:15197097  , 826.54
Department of Health,Guys and St Thomas NHS Foundation Trust,19/05/2022,(82800) Bedding & Linen,(id:590469) Integrated Local Services,NHS SUPPLY CHAIN (MAIDSTONE),id:15166815, 171.44
Department of Health,Guys and St Thomas NHS Foundation Trust,19/05/2022,(82000) Provisions & Kitchens,(id:590466) Integrated Local Services,NHS SUPPLY CHAIN (MAIDSTONE),id:15256770    ,  12.40
Department of Health,Guys and St Thomas NHS Foundation Trust,19/05/2022,(83500) Furniture & Fittings,(id:590427) Integrated Local Services,NHS SUPPLY CHAIN (MAIDSTONE),id:15166815,  97.73
Department of Health,Guys and St Thomas NHS Foundation Trust,13/05/2022,(81200) Medical Surgical Supplies & Equipment,(id:590574) Integrated Local Services,NHS SUPPLY CHAIN (MAIDSTONE),id:15122381   ,  31.44
Department of Health,Guys and St Thomas NHS Foundation Trust,13/05/2022,(81700) Lab Equipment Purchase,(id:590579) Integrated Local Services,NHS SUPPLY CHAIN (MAIDSTONE),id:15150034   , 104.76
Department of Health,Guys and St Thomas NHS Foundation Trust,13/05/2022,(83400) Office Equipment,(id:590494) Integrated Local Services,COMPUTACENTER UK LTD,id:15184174  ,2729.41
Department of Health,Guys and St Thomas NHS Foundation Trust,13/05/2022,(50572) Qualified Nursing Staff,(id:699422) Integrated Local Services,MSI GROUP LTD,id:15219048  ,1177.43
Department of Health,Guys and St Thomas NHS Foundation Trust,19/05/2022,(50562) Qualified Nursing Staff,(id:590523) Integrated Local Services,MSI GROUP LTD,id:15264819  ,1106.16
Department of Health,Guys and St Thomas NHS Foundation Trust,19/05/2022,(50200) Consultants,(id:590492) Integrated Local Services,KING'S COLLEGE HOSPITAL NHS FOUNDATION TRUST,id:12357071   ,3004.53
Department of Health,Guys and St Thomas NHS Foundation Trust,19/05/2022,(81225) Medical Surgical Supplies & Equipment,(id:684420) Integrated Local Services,ATTAINABILITY UK LTD,id:15081054 ,1512.00
Department of Health,Guys and St Thomas NHS Foundation Trust,13/05/2022,(81225) Medical Surgical Supplies & Equipment,(id:684420) Integrated Local Services,NHS SUPPLY CHAIN (MAIDSTONE),id:15106779   ,  14.04
Department of Health,Guys and St Thomas NHS Foundation Trust,19/05/2022,(81200) Medical Surgical Supplies & Equipment,(id:684419) Integrated Local Services,NHS SUPPLY CHAIN (MAIDSTONE),id:15135827   ,  83.40
Department of Health,Guys and St Thomas NHS Foundation Trust,12/05/2022,(51452) Occupational Therapists,(id:684419) Integrated Local Services,PRICEWATERHOUSECOOPERS LLP,id:15214081    ,1027.38
Department of Health,Guys and St Thomas NHS Foundation Trust,12/05/2022,(51842) Physiotherapists,(id:684419) Integrated Local Services,PRICEWATERHOUSECOOPERS LLP,id:15214081 , 740.62
Department of Health,Guys and St Thomas NHS Foundation Trust,12/05/2022,(51872) Physiotherapists,(id:684419) Integrated Local Services,PRICEWATERHOUSECOOPERS LLP,id:15214130 , 878.40
Department of Health,Guys and St Thomas NHS Foundation Trust,20/05/2022,(81200) Medical Surgical Supplies & Equipment,(id:590522) Integrated Local Services,NHS SUPPLY CHAIN (MAIDSTONE),id:15220737   , 140.60
Department of Health,Guys and St Thomas NHS Foundation Trust,13/05/2022,(50552) Qualified Nursing Staff,(id:590522) Integrated Local Services,NURSING 2000 LTD,id:15155512    , 647.76
Department of Health,Guys and St Thomas NHS Foundation Trust,20/05/2022,(82600) Uniforms & Clothing,(id:590522) Integrated Local Services,NHS SUPPLY CHAIN (MAIDSTONE),id:15220737 ,  27.00
Department of Health,Guys and St Thomas NHS Foundation Trust,19/05/2022,(82800) Bedding & Linen,(id:590522) Integrated Local Services,NHS SUPPLY CHAIN (MAIDSTONE),id:15166815,  14.06
Department of Health,Guys and St Thomas NHS Foundation Trust,13/05/2022,(81100) Dressings,(id:590521) Integrated Local Services,JOHNSON & JOHNSON MEDICAL LTD,id:15154163, 694.70
Department of Health,Guys and St Thomas NHS Foundation Trust,19/05/2022,(81200) Medical Surgical Supplies & Equipment,(id:590520) Integrated Local Services,NHS SUPPLY CHAIN (MAIDSTONE),id:15166815   , 735.82
Department of Health,Guys and St Thomas NHS Foundation Trust,13/05/2022,(81200) Medical Surgical Supplies & Equipment,(id:590520) Integrated Local Services,NHS SUPPLY CHAIN (MAIDSTONE),id:15150034   , 283.91
Department of Health,Guys and St Thomas NHS Foundation Trust,19/05/2022,(81100) Dressings,(id:590520) Integrated Local Services,NHS SUPPLY CHAIN (MAIDSTONE),id:15166815 ,  84.10
Department of Health,Guys and St Thomas NHS Foundation Trust,06/05/2022,(50552) Qualified Nursing Staff,(id:590520) Integrated Local Services,NURSING 2000 LTD,id:15179928    , 556.25
Department of Health,Guys and St Thomas NHS Foundation Trust,19/05/2022,(83400) Office Equipment,(id:590473) Integrated Local Services,NHS SUPPLY CHAIN (MAIDSTONE),id:15135827    ,  62.48
Department of Health,Guys and St Thomas NHS Foundation Trust,13/05/2022,(81200) Medical Surgical Supplies & Equipment,(id:590473) Integrated Local Services,NHS SUPPLY CHAIN (MAIDSTONE),id:15122381   ,1418.98
Department of Health,Guys and St Thomas NHS Foundation Trust,19/05/2022,(82000) Provisions & Kitchens,(id:590473) Integrated Local Services,NHS SUPPLY CHAIN (MAIDSTONE),id:15256770    ,  25.34
Department of Health,Guys and St Thomas NHS Foundation Trust,19/05/2022,(82800) Bedding & Linen,(id:590471) Integrated Local Services,NHS SUPPLY CHAIN (MAIDSTONE),id:15256770,  10.55
Department of Health,Guys and St Thomas NHS Foundation Trust,19/05/2022,(86300) Healthcare from non-NHS bodies,(id:590477) Integrated Local Services,NHS SUPPLY CHAIN (MAIDSTONE),id:15245154, 621.92
Department of Health,Guys and St Thomas NHS Foundation Trust,06/05/2022,(86300) Healthcare from non-NHS bodies,(id:590477) Integrated Local Services,NHS SUPPLY CHAIN (MAIDSTONE),id:15106820, 519.05
Department of Health,Guys and St Thomas NHS Foundation Trust,06/05/2022,(86300) Healthcare from non-NHS bodies,(id:590477) Integrated Local Services,NHS SUPPLY CHAIN (MAIDSTONE),id:15106827, 545.24
Department of Health,Guys and St Thomas NHS Foundation Trust,06/05/2022,(86300) Healthcare from non-NHS bodies,(id:590477) Integrated Local Services,NHS SUPPLY CHAIN (MAIDSTONE),id:15106826,    10100.41
Department of Health,Guys and St Thomas NHS Foundation Trust,19/05/2022,(86300) Healthcare from non-NHS bodies,(id:590477) Integrated Local Services,NHS SUPPLY CHAIN (MAIDSTONE),id:15244794,8777.58
Department of Health,Guys and St Thomas NHS Foundation Trust,19/05/2022,(81200) Medical Surgical Supplies & Equipment,(id:590463) Integrated Local Services,NHS SUPPLY CHAIN (MAIDSTONE),id:15166815   , 125.81
Department of Health,Guys and St Thomas NHS Foundation Trust,19/05/2022,(50562) Qualified Nursing Staff,(id:590463) Integrated Local Services,COYLE PERSONNEL PLC,id:15218861 ,1750.00
Department of Health,Guys and St Thomas NHS Foundation Trust,19/05/2022,(50562) Qualified Nursing Staff,(id:590463) Integrated Local Services,COYLE PERSONNEL PLC,id:15218991 ,1400.00
Department of Health,Guys and St Thomas NHS Foundation Trust,19/05/2022,(50562) Qualified Nursing Staff,(id:590463) Integrated Local Services,COYLE PERSONNEL PLC,id:15218994 ,1750.00
Department of Health,Guys and St Thomas NHS Foundation Trust,06/05/2022,(50562) Qualified Nursing Staff,(id:590463) Integrated Local Services,COYLE PERSONNEL PLC,id:15161596 ,1750.00
Department of Health,Guys and St Thomas NHS Foundation Trust,13/05/2022,(83400) Office Equipment,(id:590527) Integrated Local Services,NHS SUPPLY CHAIN (MAIDSTONE),id:15150034    , 344.84
Department of Health,Guys and St Thomas NHS Foundation Trust,19/05/2022,(83400) Office Equipment,(id:590527) Integrated Local Services,NHS SUPPLY CHAIN (MAIDSTONE),id:15166815    ,  58.29
Department of Health,Guys and St Thomas NHS Foundation Trust,13/05/2022,(82700) Uniforms & Clothing,(id:590527) Integrated Local Services,NHS SUPPLY CHAIN (MAIDSTONE),id:15150034 , 189.50
Department of Health,Guys and St Thomas NHS Foundation Trust,13/05/2022,(82700) Uniforms & Clothing,(id:590527) Integrated Local Services,NHS SUPPLY CHAIN (MAIDSTONE),id:15122381 ,  55.37
Department of Health,Guys and St Thomas NHS Foundation Trust,13/05/2022,(81100) Dressings,(id:590527) Integrated Local Services,NHS SUPPLY CHAIN (MAIDSTONE),id:15150034 , 177.44
Department of Health,Guys and St Thomas NHS Foundation Trust,19/05/2022,(81100) Dressings,(id:590527) Integrated Local Services,NHS SUPPLY CHAIN (MAIDSTONE),id:15166815 , 483.53
Department of Health,Guys and St Thomas NHS Foundation Trust,19/05/2022,(81100) Dressings,(id:590527) Integrated Local Services,NHS SUPPLY CHAIN (MAIDSTONE),id:15135827 , 175.56
Department of Health,Guys and St Thomas NHS Foundation Trust,13/05/2022,(50532) Unqualified Nursing Staff,(id:699421) Integrated Local Services,MSI GROUP LTD,id:15219168, 653.77
Department of Health,Guys and St Thomas NHS Foundation Trust,13/05/2022,(50532) Unqualified Nursing Staff,(id:699421) Integrated Local Services,MSI GROUP LTD,id:15218976,1009.27
Department of Health,Guys and St Thomas NHS Foundation Trust,19/05/2022,(50532) Unqualified Nursing Staff,(id:699421) Integrated Local Services,MSI GROUP LTD,id:15264621, 334.50
Department of Health,Guys and St Thomas NHS Foundation Trust,12/05/2022,(51832) Physiotherapists,(id:699421) Integrated Local Services,PRICEWATERHOUSECOOPERS LLP,id:15214081 ,1413.06
Department of Health,Guys and St Thomas NHS Foundation Trust,12/05/2022,(51832) Physiotherapists,(id:699421) Integrated Local Services,PRICEWATERHOUSECOOPERS LLP,id:15214130 ,1201.48
Department of Health,Guys and St Thomas NHS Foundation Trust,17/05/2022,(51832) Physiotherapists,(id:699421) Integrated Local Services,PRICEWATERHOUSECOOPERS LLP,id:15250624 ,1195.59
Department of Health,Guys and St Thomas NHS Foundation Trust,19/05/2022,(81100) Dressings,(id:41972) Integrated Local Services,NHS SUPPLY CHAIN (MAIDSTONE),id:15256770  , 955.86
Department of Health,Guys and St Thomas NHS Foundation Trust,06/05/2022,(83400) Office Equipment,(id:41972) Integrated Local Services,OFFICE FURNITURE ONLINE,id:15054298, 930.00
Department of Health,Guys and St Thomas NHS Foundation Trust,13/05/2022,(50552) Qualified Nursing Staff,(id:4479420) Integrated Local Services,NURSING 2000 LTD,id:15155567   ,1106.29
Department of Health,Guys and St Thomas NHS Foundation Trust,13/05/2022,(50552) Qualified Nursing Staff,(id:4479420) Integrated Local Services,NURSING 2000 LTD,id:15155587   ,1106.29
Department of Health,Guys and St Thomas NHS Foundation Trust,06/05/2022,(50552) Qualified Nursing Staff,(id:4263423) Integrated Local Services,NURSING 2000 LTD,id:15180237   ,1203.63
Department of Health,Guys and St Thomas NHS Foundation Trust,19/05/2022,(50552) Qualified Nursing Staff,(id:4263423) Integrated Local Services,MEDICARE HEALTH PROFESSIONALS LTD,id:15264784 , 791.94
Department of Health,Guys and St Thomas NHS Foundation Trust,20/05/2022,(82000) Provisions & Kitchens,(id:42518) Evelina Womens Services,NHS SUPPLY CHAIN (MAIDSTONE),id:15220737  ,  11.81
Department of Health,Guys and St Thomas NHS Foundation Trust,19/05/2022,(83400) Office Equipment,(id:42518) Evelina Womens Services,NHS SUPPLY CHAIN (MAIDSTONE),id:15135827  ,  15.55
Department of Health,Guys and St Thomas NHS Foundation Trust,19/05/2022,(83400) Office Equipment,(id:42518) Evelina Womens Services,NHS SUPPLY CHAIN (MAIDSTONE),id:15166815  ,  29.50
Department of Health,Guys and St Thomas NHS Foundation Trust,13/05/2022,(50522) Unqualified Nursing Staff,(id:42518) Evelina Womens Services,CARE PROVIDERS HEALTHCARE,id:15221224 , 317.60
Department of Health,Guys and St Thomas NHS Foundation Trust,19/05/2022,(81200) Medical Surgical Supplies & Equipment,(id:42518) Evelina Womens Services,NHS SUPPLY CHAIN (MAIDSTONE),id:15166815 ,  22.99
Department of Health,Guys and St Thomas NHS Foundation Trust,13/05/2022,(81700) Lab Equipment Purchase,(id:42518) Evelina Womens Services,NHS SUPPLY CHAIN (MAIDSTONE),id:15150034 ,  19.40
Department of Health,Guys and St Thomas NHS Foundation Trust,19/05/2022,(80010) Drug Costs,(id:42517) Evelina Womens Services,FUJIFILM UK LTD,id:15265156 ,1956.41
Department of Health,Guys and St Thomas NHS Foundation Trust,06/05/2022,(81100) Dressings,(id:42517) Evelina Womens Services,ELIS UK LIMITED,id:15180714  , 565.00
Department of Health,Guys and St Thomas NHS Foundation Trust,20/05/2022,(81255) Medical Surgical Supplies & Equipment,(id:42517) Evelina Womens Services,NHS SUPPLY CHAIN (MAIDSTONE),id:15220737 , 432.00
Department of Health,Guys and St Thomas NHS Foundation Trust,06/05/2022,(84657) Establishment,(id:42517) Evelina Womens Services,IRON MOUNTAIN (UK) LTD,id:15160870 , 664.22
Department of Health,Guys and St Thomas NHS Foundation Trust,13/05/2022,(81200) Medical Surgical Supplies & Equipment,(id:42517) Evelina Womens Services,PRESSURE VACUUM LEVEL LTD,id:15203104    ,  18.00
Department of Health,Guys and St Thomas NHS Foundation Trust,13/05/2022,(81200) Medical Surgical Supplies & Equipment,(id:42517) Evelina Womens Services,COOK UK LTD,id:15137604   ,3420.00
Department of Health,Guys and St Thomas NHS Foundation Trust,19/05/2022,(81200) Medical Surgical Supplies & Equipment,(id:42517) Evelina Womens Services,VITROLIFE LTD,id:15261715 , 885.84
Department of Health,Guys and St Thomas NHS Foundation Trust,06/05/2022,(81200) Medical Surgical Supplies & Equipment,(id:42517) Evelina Womens Services,MERMAID MEDICAL LIMITED,id:15160418 ,8178.00
Department of Health,Guys and St Thomas NHS Foundation Trust,19/05/2022,(81225) Medical Surgical Supplies & Equipment,(id:42517) Evelina Womens Services,NHS SUPPLY CHAIN (MAIDSTONE),id:15166815 , 455.49
Department of Health,Guys and St Thomas NHS Foundation Trust,20/05/2022,(83420) Office Equipment,(id:42514) Evelina Womens Services,OCURA HEALTHCARE FURNITURE,id:15267754    ,1098.00
Department of Health,Guys and St Thomas NHS Foundation Trust,19/05/2022,(81100) Dressings,(id:42513) Evelina Womens Services,NHS SUPPLY CHAIN (MAIDSTONE),id:15256770    , 187.51
Department of Health,Guys and St Thomas NHS Foundation Trust,13/05/2022,(81100) Dressings,(id:42513) Evelina Womens Services,NHS SUPPLY CHAIN (MAIDSTONE),id:15150034    ,  60.58
Department of Health,Guys and St Thomas NHS Foundation Trust,13/05/2022,(82800) Bedding & Linen,(id:42513) Evelina Womens Services,NHS SUPPLY CHAIN (MAIDSTONE),id:15150034   ,  88.53
Department of Health,Guys and St Thomas NHS Foundation Trust,13/05/2022,(82800) Bedding & Linen,(id:42513) Evelina Womens Services,NHS SUPPLY CHAIN (MAIDSTONE),id:15122381   ,  43.12
Department of Health,Guys and St Thomas NHS Foundation Trust,20/05/2022,(81200) Medical Surgical Supplies & Equipment,(id:42511) Evelina Womens Services,STRYKER UK LTD,id:15267120,2693.40
Department of Health,Guys and St Thomas NHS Foundation Trust,13/05/2022,(81200) Medical Surgical Supplies & Equipment,(id:42511) Evelina Womens Services,NHS SUPPLY CHAIN (MAIDSTONE),id:15122381 ,1408.80
Department of Health,Guys and St Thomas NHS Foundation Trust,13/05/2022,(81200) Medical Surgical Supplies & Equipment,(id:42511) Evelina Womens Services,NHS SUPPLY CHAIN (MAIDSTONE),id:15150034 , 587.88
Department of Health,Guys and St Thomas NHS Foundation Trust,19/05/2022,(83400) Office Equipment,(id:42510) Evelina Womens Services,NHS SUPPLY CHAIN (MAIDSTONE),id:15166815  ,  14.66
Department of Health,Guys and St Thomas NHS Foundation Trust,13/05/2022,(83400) Office Equipment,(id:42510) Evelina Womens Services,NHS SUPPLY CHAIN (MAIDSTONE),id:15106779  ,    .76
Department of Health,Guys and St Thomas NHS Foundation Trust,19/05/2022,(81100) Dressings,(id:42510) Evelina Womens Services,NHS SUPPLY CHAIN (MAIDSTONE),id:15135827    ,   1.58
Department of Health,Guys and St Thomas NHS Foundation Trust,19/05/2022,(81200) Medical Surgical Supplies & Equipment,(id:42510) Evelina Womens Services,NHS SUPPLY CHAIN (MAIDSTONE),id:15256770 ,  68.95
Department of Health,Guys and St Thomas NHS Foundation Trust,19/05/2022,(81200) Medical Surgical Supplies & Equipment,(id:42510) Evelina Womens Services,NHS SUPPLY CHAIN (MAIDSTONE),id:15166815 ,  35.65
Department of Health,Guys and St Thomas NHS Foundation Trust,13/05/2022,(81200) Medical Surgical Supplies & Equipment,(id:42510) Evelina Womens Services,NHS SUPPLY CHAIN (MAIDSTONE),id:15122381 ,  99.22
Department of Health,Guys and St Thomas NHS Foundation Trust,19/05/2022,(81275) Medical Surgical Supplies & Equipment,(id:42510) Evelina Womens Services,NHS SUPPLY CHAIN (MAIDSTONE),id:15256770 ,  14.46
Department of Health,Guys and St Thomas NHS Foundation Trust,13/05/2022,(81700) Lab Equipment Purchase,(id:42510) Evelina Womens Services,NHS SUPPLY CHAIN (MAIDSTONE),id:15106779 ,   1.36
Department of Health,Guys and St Thomas NHS Foundation Trust,19/05/2022,(81700) Lab Equipment Purchase,(id:42510) Evelina Womens Services,NHS SUPPLY CHAIN (MAIDSTONE),id:15166815 ,   9.83
Department of Health,Guys and St Thomas NHS Foundation Trust,13/05/2022,(81225) Medical Surgical Supplies & Equipment,(id:42510) Evelina Womens Services,NHS SUPPLY CHAIN (MAIDSTONE),id:15150034 ,  30.37
Department of Health,Guys and St Thomas NHS Foundation Trust,13/05/2022,(81100) Dressings,(id:42509) Evelina Womens Services,NHS SUPPLY CHAIN (MAIDSTONE),id:15106779    ,  43.20
Department of Health,Guys and St Thomas NHS Foundation Trust,13/05/2022,(81200) Medical Surgical Supplies & Equipment,(id:42509) Evelina Womens Services,MEDTRONIC LTD,id:15154167 ,4305.60
Department of Health,Guys and St Thomas NHS Foundation Trust,19/05/2022,(81400) Medical Surgical Supplies & Equipment,(id:42506) Evelina Womens Services,NHS SUPPLY CHAIN ( CAPITAL FUND ONLY),id:15235814  ,2260.43
Department of Health,Guys and St Thomas NHS Foundation Trust,13/05/2022,(81200) Medical Surgical Supplies & Equipment,(id:42506) Evelina Womens Services,NHS SUPPLY CHAIN (MAIDSTONE),id:15106779 , 152.84
Department of Health,Guys and St Thomas NHS Foundation Trust,19/05/2022,(83400) Office Equipment,(id:42506) Evelina Womens Services,NHS SUPPLY CHAIN (MAIDSTONE),id:15166815  ,  46.42
Department of Health,Guys and St Thomas NHS Foundation Trust,20/05/2022,(83400) Office Equipment,(id:42506) Evelina Womens Services,NHS SUPPLY CHAIN (MAIDSTONE),id:15220737  ,  52.96
Department of Health,Guys and St Thomas NHS Foundation Trust,13/05/2022,(81700) Lab Equipment Purchase,(id:42506) Evelina Womens Services,NHS SUPPLY CHAIN (MAIDSTONE),id:15150034 ,   9.73
Department of Health,Guys and St Thomas NHS Foundation Trust,19/05/2022,(81275) Medical Surgical Supplies & Equipment,(id:42506) Evelina Womens Services,NHS SUPPLY CHAIN (MAIDSTONE),id:15256770 ,  21.36
Department of Health,Guys and St Thomas NHS Foundation Trust,19/05/2022,(81100) Dressings,(id:42486) Evelina Womens Services,NHS SUPPLY CHAIN (MAIDSTONE),id:15166815    ,   7.56
Department of Health,Guys and St Thomas NHS Foundation Trust,13/05/2022,(81200) Medical Surgical Supplies & Equipment,(id:42486) Evelina Womens Services,NHS SUPPLY CHAIN (MAIDSTONE),id:15150034 ,   4.14
Department of Health,Guys and St Thomas NHS Foundation Trust,19/05/2022,(81400) Medical Surgical Supplies & Equipment,(id:42486) Evelina Womens Services,NHS SUPPLY CHAIN ( CAPITAL FUND ONLY),id:15235774  ,    17330.37
Department of Health,Guys and St Thomas NHS Foundation Trust,19/05/2022,(83400) Office Equipment,(id:42486) Evelina Womens Services,NHS SUPPLY CHAIN (MAIDSTONE),id:15135827  ,  20.90
Department of Health,Guys and St Thomas NHS Foundation Trust,13/05/2022,(83400) Office Equipment,(id:42486) Evelina Womens Services,NHS SUPPLY CHAIN (MAIDSTONE),id:15106779  ,   4.39
Department of Health,Guys and St Thomas NHS Foundation Trust,19/05/2022,(81550) X Ray Equipment Purchase,(id:42486) Evelina Womens Services,NHS SUPPLY CHAIN (MAIDSTONE),id:15166815    ,  33.00
Department of Health,Guys and St Thomas NHS Foundation Trust,13/05/2022,(81225) Medical Surgical Supplies & Equipment,(id:42486) Evelina Womens Services,NHS SUPPLY CHAIN (MAIDSTONE),id:15150034 ,  36.66
Department of Health,Guys and St Thomas NHS Foundation Trust,13/05/2022,(82800) Bedding & Linen,(id:42488) Evelina Womens Services,NHS SUPPLY CHAIN (MAIDSTONE),id:15150034   ,  10.06
Department of Health,Guys and St Thomas NHS Foundation Trust,19/05/2022,(82800) Bedding & Linen,(id:42488) Evelina Womens Services,NHS SUPPLY CHAIN (MAIDSTONE),id:15256770   ,  68.27
Department of Health,Guys and St Thomas NHS Foundation Trust,19/05/2022,(81200) Medical Surgical Supplies & Equipment,(id:42488) Evelina Womens Services,NHS SUPPLY CHAIN (MAIDSTONE),id:15256770 , 434.58
Department of Health,Guys and St Thomas NHS Foundation Trust,19/05/2022,(81400) Medical Surgical Supplies & Equipment,(id:42497) Evelina Womens Services,NHS SUPPLY CHAIN ( CAPITAL FUND ONLY),id:15235754  ,3013.90
Department of Health,Guys and St Thomas NHS Foundation Trust,19/05/2022,(82000) Provisions & Kitchens,(id:42496) Evelina Womens Services,NHS SUPPLY CHAIN (MAIDSTONE),id:15135827  ,   3.32
Department of Health,Guys and St Thomas NHS Foundation Trust,20/05/2022,(82000) Provisions & Kitchens,(id:42496) Evelina Womens Services,NHS SUPPLY CHAIN (MAIDSTONE),id:15220737  ,  11.64
Department of Health,Guys and St Thomas NHS Foundation Trust,13/05/2022,(83400) Office Equipment,(id:42496) Evelina Womens Services,NHS SUPPLY CHAIN (MAIDSTONE),id:15150034  ,  31.40
Department of Health,Guys and St Thomas NHS Foundation Trust,19/05/2022,(81200) Medical Surgical Supplies & Equipment,(id:42496) Evelina Womens Services,NHS SUPPLY CHAIN (MAIDSTONE),id:15135827 ,  54.23
Department of Health,Guys and St Thomas NHS Foundation Trust,19/05/2022,(81700) Lab Equipment Purchase,(id:42496) Evelina Womens Services,NHS SUPPLY CHAIN (MAIDSTONE),id:15256770 ,  43.34
Department of Health,Guys and St Thomas NHS Foundation Trust,13/05/2022,(83400) Office Equipment,(id:42493) Evelina Womens Services,NHS SUPPLY CHAIN (MAIDSTONE),id:15122381  ,  69.79
Department of Health,Guys and St Thomas NHS Foundation Trust,13/05/2022,(82800) Bedding & Linen,(id:42493) Evelina Womens Services,NHS SUPPLY CHAIN (MAIDSTONE),id:15122381   , 107.59
Department of Health,Guys and St Thomas NHS Foundation Trust,20/05/2022,(81100) Dressings,(id:42493) Evelina Womens Services,NHS SUPPLY CHAIN (MAIDSTONE),id:15220737    ,  84.49
Department of Health,Guys and St Thomas NHS Foundation Trust,19/05/2022,(81100) Dressings,(id:42493) Evelina Womens Services,NHS SUPPLY CHAIN (MAIDSTONE),id:15256770    ,  56.28
Department of Health,Guys and St Thomas NHS Foundation Trust,19/05/2022,(81100) Dressings,(id:42493) Evelina Womens Services,NHS SUPPLY CHAIN (MAIDSTONE),id:15166815    , 112.66
Department of Health,Guys and St Thomas NHS Foundation Trust,13/05/2022,(81200) Medical Surgical Supplies & Equipment,(id:42493) Evelina Womens Services,NHS SUPPLY CHAIN (MAIDSTONE),id:15106779 , 103.53
Department of Health,Guys and St Thomas NHS Foundation Trust,13/05/2022,(81200) Medical Surgical Supplies & Equipment,(id:42493) Evelina Womens Services,NHS SUPPLY CHAIN (MAIDSTONE),id:15122381 , 547.39
Department of Health,Guys and St Thomas NHS Foundation Trust,13/05/2022,(81275) Medical Surgical Supplies & Equipment,(id:42493) Evelina Womens Services,NHS SUPPLY CHAIN (MAIDSTONE),id:15150034 ,  10.68
Department of Health,Guys and St Thomas NHS Foundation Trust,20/05/2022,(81275) Medical Surgical Supplies & Equipment,(id:42493) Evelina Womens Services,NHS SUPPLY CHAIN (MAIDSTONE),id:15220737 ,   5.34
Department of Health,Guys and St Thomas NHS Foundation Trust,19/05/2022,(81700) Lab Equipment Purchase,(id:42493) Evelina Womens Services,NHS SUPPLY CHAIN (MAIDSTONE),id:15135827 ,  12.39
Department of Health,Guys and St Thomas NHS Foundation Trust,06/05/2022,(82600) Uniforms & Clothing,(id:42492) Evelina Womens Services,CJ MEDICAL,id:15162493  , 948.00
Department of Health,Guys and St Thomas NHS Foundation Trust,19/05/2022,(82600) Uniforms & Clothing,(id:42492) Evelina Womens Services,NHS SUPPLY CHAIN (MAIDSTONE),id:15256770    , 104.69
Department of Health,Guys and St Thomas NHS Foundation Trust,13/05/2022,(82000) Provisions & Kitchens,(id:42492) Evelina Womens Services,NHS SUPPLY CHAIN (MAIDSTONE),id:15150034  , 202.36
Department of Health,Guys and St Thomas NHS Foundation Trust,13/05/2022,(83400) Office Equipment,(id:42492) Evelina Womens Services,NHS SUPPLY CHAIN (MAIDSTONE),id:15106779  , 236.04
Department of Health,Guys and St Thomas NHS Foundation Trust,19/05/2022,(81100) Dressings,(id:42492) Evelina Womens Services,NHS SUPPLY CHAIN (MAIDSTONE),id:15135827    ,1617.78
Department of Health,Guys and St Thomas NHS Foundation Trust,13/05/2022,(81200) Medical Surgical Supplies & Equipment,(id:42492) Evelina Womens Services,NHS SUPPLY CHAIN (MAIDSTONE),id:15122381 ,4710.34
Department of Health,Guys and St Thomas NHS Foundation Trust,20/05/2022,(82000) Provisions & Kitchens,(id:42491) Evelina Womens Services,NHS SUPPLY CHAIN (MAIDSTONE),id:15220737  ,  45.15
Department of Health,Guys and St Thomas NHS Foundation Trust,19/05/2022,(81100) Dressings,(id:42491) Evelina Womens Services,NHS SUPPLY CHAIN (MAIDSTONE),id:15135827    , 350.51
Department of Health,Guys and St Thomas NHS Foundation Trust,13/05/2022,(81100) Dressings,(id:42491) Evelina Womens Services,NHS SUPPLY CHAIN (MAIDSTONE),id:15150034    , 155.27
Department of Health,Guys and St Thomas NHS Foundation Trust,06/05/2022,(50532) Unqualified Nursing Staff,(id:42491) Evelina Womens Services,GLOBE LOCUMS LTD,id:15179916, 276.43
Department of Health,Guys and St Thomas NHS Foundation Trust,19/05/2022,(81200) Medical Surgical Supplies & Equipment,(id:42491) Evelina Womens Services,NHS SUPPLY CHAIN (MAIDSTONE),id:15135827 , 844.56
Department of Health,Guys and St Thomas NHS Foundation Trust,13/05/2022,(81225) Medical Surgical Supplies & Equipment,(id:42491) Evelina Womens Services,NHS SUPPLY CHAIN (MAIDSTONE),id:15122381 ,   7.68
Department of Health,Guys and St Thomas NHS Foundation Trust,13/05/2022,(82000) Provisions & Kitchens,(id:42348) Evelina Central,NHS SUPPLY CHAIN (MAIDSTONE),id:15122381,  97.01
Department of Health,Guys and St Thomas NHS Foundation Trust,13/05/2022,(82800) Bedding & Linen,(id:42348) Evelina Central,NHS SUPPLY CHAIN (MAIDSTONE),id:15122381 , 124.52
Department of Health,Guys and St Thomas NHS Foundation Trust,20/05/2022,(81100) Dressings,(id:42348) Evelina Central,NHS SUPPLY CHAIN (MAIDSTONE),id:15220737  ,  83.18
Department of Health,Guys and St Thomas NHS Foundation Trust,13/05/2022,(81100) Dressings,(id:42348) Evelina Central,NHS SUPPLY CHAIN (MAIDSTONE),id:15150034  , 241.21
Department of Health,Guys and St Thomas NHS Foundation Trust,19/05/2022,(81100) Dressings,(id:42348) Evelina Central,NXSTAGE MEDICAL UK LIMITED,id:14552805    , 600.00
Department of Health,Guys and St Thomas NHS Foundation Trust,19/05/2022,(81100) Dressings,(id:42348) Evelina Central,NXSTAGE MEDICAL UK LIMITED,id:15233535    , 600.00
Department of Health,Guys and St Thomas NHS Foundation Trust,20/05/2022,(81200) Medical Surgical Supplies & Equipment,(id:42348) Evelina Central,NHS SUPPLY CHAIN (MAIDSTONE),id:15220737    , 947.93
Department of Health,Guys and St Thomas NHS Foundation Trust,13/05/2022,(83400) Office Equipment,(id:42348) Evelina Central,NHS SUPPLY CHAIN (MAIDSTONE),id:15122381, 381.67
Department of Health,Guys and St Thomas NHS Foundation Trust,19/05/2022,(81275) Medical Surgical Supplies & Equipment,(id:42348) Evelina Central,NHS SUPPLY CHAIN (MAIDSTONE),id:15135827    ,  14.46
Department of Health,Guys and St Thomas NHS Foundation Trust,20/05/2022,(82700) Uniforms & Clothing,(id:42331) Evelina Central,NHS SUPPLY CHAIN (MAIDSTONE),id:15220737  ,  15.00
Department of Health,Guys and St Thomas NHS Foundation Trust,19/05/2022,(82800) Bedding & Linen,(id:42331) Evelina Central,NHS SUPPLY CHAIN (MAIDSTONE),id:15135827 , 231.53
Department of Health,Guys and St Thomas NHS Foundation Trust,19/05/2022,(81200) Medical Surgical Supplies & Equipment,(id:42331) Evelina Central,NHS SUPPLY CHAIN (MAIDSTONE),id:15256770    ,4161.24
Department of Health,Guys and St Thomas NHS Foundation Trust,19/05/2022,(83400) Office Equipment,(id:42331) Evelina Central,NHS SUPPLY CHAIN (MAIDSTONE),id:15166815, 586.16
Department of Health,Guys and St Thomas NHS Foundation Trust,20/05/2022,(80010) Drug Costs,(id:42331) Evelina Central,NHS SUPPLY CHAIN (MAIDSTONE),id:15220737 ,  11.11
Department of Health,Guys and St Thomas NHS Foundation Trust,19/05/2022,(81100) Dressings,(id:42331) Evelina Central,NHS SUPPLY CHAIN (MAIDSTONE),id:15135827  , 607.44
Department of Health,Guys and St Thomas NHS Foundation Trust,19/05/2022,(81225) Medical Surgical Supplies & Equipment,(id:590444) Evelina Children's Community Services,NHS SUPPLY CHAIN (MAIDSTONE),id:15166815 ,3293.02
Department of Health,Guys and St Thomas NHS Foundation Trust,13/05/2022,(83400) Office Equipment,(id:590444) Evelina Children's Community Services,NHS SUPPLY CHAIN (MAIDSTONE),id:15150034  ,   2.86
Department of Health,Guys and St Thomas NHS Foundation Trust,12/05/2022,(54052) Technical Officers,(id:590444) Evelina Children's Community Services,PRICEWATERHOUSECOOPERS LLP,id:15214130  ,1024.87
Department of Health,Guys and St Thomas NHS Foundation Trust,12/05/2022,(55062) Admin & Clerical,(id:706419) Evelina Children's Community Services,PRICEWATERHOUSECOOPERS LLP,id:15214130    ,1055.22
Department of Health,Guys and St Thomas NHS Foundation Trust,17/05/2022,(53062) Speech Therapists,(id:590451) Evelina Children's Community Services,PRICEWATERHOUSECOOPERS LLP,id:15250624   ,3679.57
Department of Health,Guys and St Thomas NHS Foundation Trust,20/05/2022,(83410) Office Equipment,(id:590451) Evelina Children's Community Services,RICOH UK LTD,id:15263976   ,  40.72
Department of Health,Guys and St Thomas NHS Foundation Trust,19/05/2022,(82000) Provisions & Kitchens,(id:1831419) Evelina Children's Community Services,NHS SUPPLY CHAIN (MAIDSTONE),id:15135827 ,1016.88
Department of Health,Guys and St Thomas NHS Foundation Trust,13/05/2022,(82000) Provisions & Kitchens,(id:590557) Evelina Children's Community Services,NHS SUPPLY CHAIN (MAIDSTONE),id:15122381  ,  67.74
Department of Health,Guys and St Thomas NHS Foundation Trust,19/05/2022,(83400) Office Equipment,(id:590446) Evelina Children's Community Services,NHS SUPPLY CHAIN (MAIDSTONE),id:15256770  ,  19.99
Department of Health,Guys and St Thomas NHS Foundation Trust,19/05/2022,(81200) Medical Surgical Supplies & Equipment,(id:590446) Evelina Children's Community Services,NHS SUPPLY CHAIN (MAIDSTONE),id:15256770 , 126.91
Department of Health,Guys and St Thomas NHS Foundation Trust,13/05/2022,(84657) Establishment,(id:590452) Evelina Children's Community Services,IRON MOUNTAIN (UK) LTD,id:14849638 , 973.49
Department of Health,Guys and St Thomas NHS Foundation Trust,06/05/2022,(84501) Establishment,(id:590552) Evelina Children's Community Services,CDP  PRINT MANAGEMENT,id:15160410  ,2325.00
Department of Health,Guys and St Thomas NHS Foundation Trust,19/05/2022,(89000) Other - Training courses and conferences,(id:590541) Evelina Children's Community Services,MILLPOND TRAINING LTD,id:15202014,2100.00
Department of Health,Guys and St Thomas NHS Foundation Trust,06/05/2022,(50562) Qualified Nursing Staff,(id:590539) Evelina Children's Community Services,MSI GROUP LTD,id:15180085,1140.00
Department of Health,Guys and St Thomas NHS Foundation Trust,19/05/2022,(50562) Qualified Nursing Staff,(id:590421) Evelina Children's Community Services,ARTHUR RAI MEDICAL SERVICES LTD,id:15264908  , 790.20
Department of Health,Guys and St Thomas NHS Foundation Trust,13/05/2022,(81100) Dressings,(id:2356419) Evelina Children's Medicine & Neonatology,NHS SUPPLY CHAIN (MAIDSTONE),id:15122381    ,  65.69
Department of Health,Guys and St Thomas NHS Foundation Trust,13/05/2022,(83640) IT Costs,(id:2356419) Evelina Children's Medicine & Neonatology,EMIS (EGTON MEDICAL INFORMATION SYSTEMS) LTD,id:15211595    ,7692.40
Department of Health,Guys and St Thomas NHS Foundation Trust,20/05/2022,(81230) Medical Surgical Supplies & Equipment,(id:2356419) Evelina Children's Medicine & Neonatology,NHS SUPPLY CHAIN (MAIDSTONE),id:15220737 , 383.68
Department of Health,Guys and St Thomas NHS Foundation Trust,13/05/2022,(81200) Medical Surgical Supplies & Equipment,(id:42350) Evelina Children's Medicine & Neonatology,NHS SUPPLY CHAIN (MAIDSTONE),id:15106779   , 113.40
Department of Health,Guys and St Thomas NHS Foundation Trust,19/05/2022,(81200) Medical Surgical Supplies & Equipment,(id:42350) Evelina Children's Medicine & Neonatology,NHS SUPPLY CHAIN (MAIDSTONE),id:15166815   ,2942.19
Department of Health,Guys and St Thomas NHS Foundation Trust,13/05/2022,(81200) Medical Surgical Supplies & Equipment,(id:42349) Evelina Children's Medicine & Neonatology,NHS SUPPLY CHAIN (MAIDSTONE),id:15122381   ,  92.46
Department of Health,Guys and St Thomas NHS Foundation Trust,19/05/2022,(81100) Dressings,(id:42349) Evelina Children's Medicine & Neonatology,NHS SUPPLY CHAIN (MAIDSTONE),id:15166815 , 295.58
Department of Health,Guys and St Thomas NHS Foundation Trust,19/05/2022,(81200) Medical Surgical Supplies & Equipment,(id:2497419) Evelina Children's Medicine & Neonatology,NHS SUPPLY CHAIN (MAIDSTONE),id:15256770 , 369.60
Department of Health,Guys and St Thomas NHS Foundation Trust,06/05/2022,(50200) Consultants,(id:42335) Evelina Children's Medicine & Neonatology,SOUTH LONDON AND MAUDSLEY NHS FOUNDATION TRUST,id:15084077 ,    21315.55
Department of Health,Guys and St Thomas NHS Foundation Trust,19/05/2022,(83400) Office Equipment,(id:42335) Evelina Children's Medicine & Neonatology,RENISHAW NEURO SOLUTIONS LTD,id:15245234    ,    40794.00
Department of Health,Guys and St Thomas NHS Foundation Trust,13/05/2022,(86300) Healthcare from non-NHS bodies,(id:42335) Evelina Children's Medicine & Neonatology,AMPLEXA GENETICS A/S,id:14861858   ,    21450.00
Department of Health,Guys and St Thomas NHS Foundation Trust,13/05/2022,(82800) Bedding & Linen,(id:42335) Evelina Children's Medicine & Neonatology,NHS SUPPLY CHAIN (MAIDSTONE),id:15150034,  43.13
Department of Health,Guys and St Thomas NHS Foundation Trust,19/05/2022,(83640) IT Costs,(id:42335) Evelina Children's Medicine & Neonatology,CONSULTANT CONNECT LIMITED,id:14180122    ,3000.00
Department of Health,Guys and St Thomas NHS Foundation Trust,19/05/2022,(81000) Surgical Appliances,(id:42335) Evelina Children's Medicine & Neonatology,JOHN FLORENCE LTD,id:15249434  , 912.85
Department of Health,Guys and St Thomas NHS Foundation Trust,19/05/2022,(82700) Uniforms & Clothing,(id:42327) Evelina Children's Medicine & Neonatology,NHS SUPPLY CHAIN (MAIDSTONE),id:15135827 ,  12.99
Department of Health,Guys and St Thomas NHS Foundation Trust,19/05/2022,(82000) Provisions & Kitchens,(id:42327) Evelina Children's Medicine & Neonatology,NHS SUPPLY CHAIN (MAIDSTONE),id:15256770    , 134.96
Department of Health,Guys and St Thomas NHS Foundation Trust,20/05/2022,(82000) Provisions & Kitchens,(id:42327) Evelina Children's Medicine & Neonatology,NHS SUPPLY CHAIN (MAIDSTONE),id:15220737    , 157.59
Department of Health,Guys and St Thomas NHS Foundation Trust,19/05/2022,(81100) Dressings,(id:42327) Evelina Children's Medicine & Neonatology,NHS SUPPLY CHAIN (MAIDSTONE),id:15166815 , 357.71
Department of Health,Guys and St Thomas NHS Foundation Trust,19/05/2022,(81200) Medical Surgical Supplies & Equipment,(id:42327) Evelina Children's Medicine & Neonatology,ARDO MEDICAL LTD,id:15229354, 629.26
Department of Health,Guys and St Thomas NHS Foundation Trust,19/05/2022,(83400) Office Equipment,(id:42327) Evelina Children's Medicine & Neonatology,NHS SUPPLY CHAIN (MAIDSTONE),id:15135827    , 251.49
Department of Health,Guys and St Thomas NHS Foundation Trust,13/05/2022,(81225) Medical Surgical Supplies & Equipment,(id:42327) Evelina Children's Medicine & Neonatology,NHS SUPPLY CHAIN (MAIDSTONE),id:15150034   , 477.55
Department of Health,Guys and St Thomas NHS Foundation Trust,13/05/2022,(81275) Medical Surgical Supplies & Equipment,(id:42327) Evelina Children's Medicine & Neonatology,NHS SUPPLY CHAIN (MAIDSTONE),id:15150034   ,  28.92
Department of Health,Guys and St Thomas NHS Foundation Trust,13/05/2022,(81700) Lab Equipment Purchase,(id:42327) Evelina Children's Medicine & Neonatology,NHS SUPPLY CHAIN (MAIDSTONE),id:15106779   ,  17.28
Department of Health,Guys and St Thomas NHS Foundation Trust,19/05/2022,(81700) Lab Equipment Purchase,(id:42327) Evelina Children's Medicine & Neonatology,NHS SUPPLY CHAIN (MAIDSTONE),id:15256770   ,  49.65
Department of Health,Guys and St Thomas NHS Foundation Trust,13/05/2022,(81200) Medical Surgical Supplies & Equipment,(id:1196420) Evelina Children's Medicine & Neonatology,DEXCOM INTERNATIONAL LTD,id:15160077, 600.00
Department of Health,Guys and St Thomas NHS Foundation Trust,13/05/2022,(81200) Medical Surgical Supplies & Equipment,(id:1196420) Evelina Children's Medicine & Neonatology,DEXCOM INTERNATIONAL LTD,id:15197734, 600.00
Department of Health,Guys and St Thomas NHS Foundation Trust,06/05/2022,(81200) Medical Surgical Supplies & Equipment,(id:1196420) Evelina Children's Medicine & Neonatology,INSULET INTERNATIONAL LTD,id:14622221    , 712.08
Department of Health,Guys and St Thomas NHS Foundation Trust,19/05/2022,(81200) Medical Surgical Supplies & Equipment,(id:1196420) Evelina Children's Medicine & Neonatology,MEDTRONIC LTD,id:15207452 ,1312.62
Department of Health,Guys and St Thomas NHS Foundation Trust,19/05/2022,(81200) Medical Surgical Supplies & Equipment,(id:1196420) Evelina Children's Medicine & Neonatology,SIEMENS HEALTHCARE DIAGNOSTICS LTD,id:15104994, 576.00
Department of Health,Guys and St Thomas NHS Foundation Trust,19/05/2022,(81200) Medical Surgical Supplies & Equipment,(id:1196420) Evelina Children's Medicine & Neonatology,DEXCOM INTERNATIONAL LTD,id:15226334, 600.00
Department of Health,Guys and St Thomas NHS Foundation Trust,19/05/2022,(81700) Lab Equipment Purchase,(id:3736419) Evelina Children's Medicine & Neonatology,NHS SUPPLY CHAIN (MAIDSTONE),id:15135827 ,  12.02
Department of Health,Guys and St Thomas NHS Foundation Trust,19/05/2022,(81200) Medical Surgical Supplies & Equipment,(id:1638419) Evelina Children's Medicine & Neonatology,NHS SUPPLY CHAIN (MAIDSTONE),id:15135827 ,  42.82
Department of Health,Guys and St Thomas NHS Foundation Trust,13/05/2022,(81200) Medical Surgical Supplies & Equipment,(id:41874) Evelina Children's Medicine & Neonatology,NHS SUPPLY CHAIN (MAIDSTONE),id:15150034   , 186.07
Department of Health,Guys and St Thomas NHS Foundation Trust,13/05/2022,(81100) Dressings,(id:41874) Evelina Children's Medicine & Neonatology,NHS SUPPLY CHAIN (MAIDSTONE),id:15122381 ,  41.45
Department of Health,Guys and St Thomas NHS Foundation Trust,19/05/2022,(81100) Dressings,(id:41874) Evelina Children's Medicine & Neonatology,NHS SUPPLY CHAIN (MAIDSTONE),id:15256770 ,  14.58
Department of Health,Guys and St Thomas NHS Foundation Trust,13/05/2022,(83400) Office Equipment,(id:41874) Evelina Children's Medicine & Neonatology,NHS SUPPLY CHAIN (MAIDSTONE),id:15106779    ,    .76
Department of Health,Guys and St Thomas NHS Foundation Trust,19/05/2022,(83400) Office Equipment,(id:41874) Evelina Children's Medicine & Neonatology,NHS SUPPLY CHAIN (MAIDSTONE),id:15256770    ,   3.45
Department of Health,Guys and St Thomas NHS Foundation Trust,13/05/2022,(83400) Office Equipment,(id:2495419) Evelina Children's Medicine & Neonatology,NHS SUPPLY CHAIN (MAIDSTONE),id:15106779  ,  73.38
Department of Health,Guys and St Thomas NHS Foundation Trust,19/05/2022,(81230) Medical Surgical Supplies & Equipment,(id:2495419) Evelina Children's Medicine & Neonatology,NHS SUPPLY CHAIN (MAIDSTONE),id:15135827 , 182.70
Department of Health,Guys and St Thomas NHS Foundation Trust,19/05/2022,(82600) Uniforms & Clothing,(id:2495419) Evelina Children's Medicine & Neonatology,NHS SUPPLY CHAIN (MAIDSTONE),id:15256770    , 115.20
Department of Health,Guys and St Thomas NHS Foundation Trust,19/05/2022,(82700) Uniforms & Clothing,(id:2495419) Evelina Children's Medicine & Neonatology,NHS SUPPLY CHAIN (MAIDSTONE),id:15135827    ,  14.38
Department of Health,Guys and St Thomas NHS Foundation Trust,13/05/2022,(50552) Qualified Nursing Staff,(id:2495419) Evelina Children's Medicine & Neonatology,CONTINENTAL NURSE LTD,id:15218987  , 872.05
Department of Health,Guys and St Thomas NHS Foundation Trust,20/05/2022,(81100) Dressings,(id:42315) Evelina Children's Medicine & Neonatology,NHS SUPPLY CHAIN (MAIDSTONE),id:15220737 ,  57.45
Department of Health,Guys and St Thomas NHS Foundation Trust,13/05/2022,(81100) Dressings,(id:42315) Evelina Children's Medicine & Neonatology,NHS SUPPLY CHAIN (MAIDSTONE),id:15150034 ,   5.68
Department of Health,Guys and St Thomas NHS Foundation Trust,19/05/2022,(81100) Dressings,(id:42315) Evelina Children's Medicine & Neonatology,NHS SUPPLY CHAIN (MAIDSTONE),id:15135827 , 270.12
Department of Health,Guys and St Thomas NHS Foundation Trust,19/05/2022,(81200) Medical Surgical Supplies & Equipment,(id:42059) Evelina Children's Medicine & Neonatology,NHS SUPPLY CHAIN (MAIDSTONE),id:15256770   , 188.86
Department of Health,Guys and St Thomas NHS Foundation Trust,06/05/2022,(50200) Consultants,(id:42058) Evelina Children's Medicine & Neonatology,KINGS COLLEGE LONDON:03529700,id:15074339   ,6435.74
Department of Health,Guys and St Thomas NHS Foundation Trust,19/05/2022,(83400) Office Equipment,(id:42351) Evelina Childrens Surgery Theatres and Anaesthesia (CSTA),NHS SUPPLY CHAIN (MAIDSTONE),id:15166815   , 193.94
Department of Health,Guys and St Thomas NHS Foundation Trust,13/05/2022,(81100) Dressings,(id:42351) Evelina Childrens Surgery Theatres and Anaesthesia (CSTA),NHS SUPPLY CHAIN (MAIDSTONE),id:15122381,   1.30
Department of Health,Guys and St Thomas NHS Foundation Trust,13/05/2022,(81100) Dressings,(id:42351) Evelina Childrens Surgery Theatres and Anaesthesia (CSTA),NHS SUPPLY CHAIN (MAIDSTONE),id:15150034,  44.71
Department of Health,Guys and St Thomas NHS Foundation Trust,13/05/2022,(81200) Medical Surgical Supplies & Equipment,(id:42351) Evelina Childrens Surgery Theatres and Anaesthesia (CSTA),NHS SUPPLY CHAIN (MAIDSTONE),id:15150034  , 340.58
Department of Health,Guys and St Thomas NHS Foundation Trust,13/05/2022,(53060) Speech Therapists,(id:42351) Evelina Childrens Surgery Theatres and Anaesthesia (CSTA),NORTH CUMBRIA INTEGRATED CARE NHS FOUNDATION TRUST,id:15152188,9417.84
Department of Health,Guys and St Thomas NHS Foundation Trust,13/05/2022,(82800) Bedding & Linen,(id:42351) Evelina Childrens Surgery Theatres and Anaesthesia (CSTA),NHS SUPPLY CHAIN (MAIDSTONE),id:15122381    , 129.38
Department of Health,Guys and St Thomas NHS Foundation Trust,19/05/2022,(82600) Uniforms & Clothing,(id:41914) Evelina Childrens Surgery Theatres and Anaesthesia (CSTA),NHS SUPPLY CHAIN (MAIDSTONE),id:15256770,  63.72
Department of Health,Guys and St Thomas NHS Foundation Trust,19/05/2022,(81200) Medical Surgical Supplies & Equipment,(id:41914) Evelina Childrens Surgery Theatres and Anaesthesia (CSTA),RENISHAW NEURO SOLUTIONS LTD,id:15256771  ,1200.00
Department of Health,Guys and St Thomas NHS Foundation Trust,13/05/2022,(50562) Qualified Nursing Staff,(id:41914) Evelina Childrens Surgery Theatres and Anaesthesia (CSTA),MEDICSPRO LTD,id:15219231 , 703.92
Department of Health,Guys and St Thomas NHS Foundation Trust,19/05/2022,(81100) Dressings,(id:41914) Evelina Childrens Surgery Theatres and Anaesthesia (CSTA),ELIS UK LIMITED,id:15247354   , 642.61
Department of Health,Guys and St Thomas NHS Foundation Trust,13/05/2022,(81200) Medical Surgical Supplies & Equipment,(id:41910) Evelina Childrens Surgery Theatres and Anaesthesia (CSTA),NHS SUPPLY CHAIN (MAIDSTONE),id:15106779  , 719.68
Department of Health,Guys and St Thomas NHS Foundation Trust,19/05/2022,(81200) Medical Surgical Supplies & Equipment,(id:41910) Evelina Childrens Surgery Theatres and Anaesthesia (CSTA),PENTLAND MEDICAL LTD,id:15167516,1814.40
Department of Health,Guys and St Thomas NHS Foundation Trust,13/05/2022,(81100) Dressings,(id:41910) Evelina Childrens Surgery Theatres and Anaesthesia (CSTA),NHS SUPPLY CHAIN (MAIDSTONE),id:15122381, 205.31
Department of Health,Guys and St Thomas NHS Foundation Trust,06/05/2022,(81200) Medical Surgical Supplies & Equipment,(id:1196421) Evelina Childrens Surgery Theatres and Anaesthesia (CSTA),NUVASIVE UK LTD,id:15178604   ,7639.02
Department of Health,Guys and St Thomas NHS Foundation Trust,06/05/2022,(81200) Medical Surgical Supplies & Equipment,(id:1196421) Evelina Childrens Surgery Theatres and Anaesthesia (CSTA),NUVASIVE UK LTD,id:15166034   ,6249.60
Department of Health,Guys and St Thomas NHS Foundation Trust,13/05/2022,(81200) Medical Surgical Supplies & Equipment,(id:1196421) Evelina Childrens Surgery Theatres and Anaesthesia (CSTA),NUVASIVE UK LTD,id:15203156   ,2380.80
Department of Health,Guys and St Thomas NHS Foundation Trust,13/05/2022,(81200) Medical Surgical Supplies & Equipment,(id:1196421) Evelina Childrens Surgery Theatres and Anaesthesia (CSTA),NUVASIVE UK LTD,id:15111228   , 572.16
Department of Health,Guys and St Thomas NHS Foundation Trust,13/05/2022,(81200) Medical Surgical Supplies & Equipment,(id:1196421) Evelina Childrens Surgery Theatres and Anaesthesia (CSTA),NUVASIVE UK LTD,id:15174575   ,    10578.00
Department of Health,Guys and St Thomas NHS Foundation Trust,13/05/2022,(81200) Medical Surgical Supplies & Equipment,(id:1196421) Evelina Childrens Surgery Theatres and Anaesthesia (CSTA),NUVASIVE UK LTD,id:15119154   ,1785.60
Department of Health,Guys and St Thomas NHS Foundation Trust,13/05/2022,(81200) Medical Surgical Supplies & Equipment,(id:1196421) Evelina Childrens Surgery Theatres and Anaesthesia (CSTA),NUVASIVE UK LTD,id:15203234   ,-572.16
Department of Health,Guys and St Thomas NHS Foundation Trust,20/05/2022,(82800) Bedding & Linen,(id:1196421) Evelina Childrens Surgery Theatres and Anaesthesia (CSTA),NHS SUPPLY CHAIN (MAIDSTONE),id:15220737  ,1290.84
Department of Health,Guys and St Thomas NHS Foundation Trust,19/05/2022,(81300) Medical Surgical Supplies & Equipment,(id:431409) Evelina Childrens Surgery Theatres and Anaesthesia (CSTA),ORTHOPEDIATRICS EU LIMITED,id:15087981   ,    12025.20
Department of Health,Guys and St Thomas NHS Foundation Trust,19/05/2022,(81200) Medical Surgical Supplies & Equipment,(id:431409) Evelina Childrens Surgery Theatres and Anaesthesia (CSTA),LAVENDER MEDICAL LTD,id:14824035    ,1842.00
Department of Health,Guys and St Thomas NHS Foundation Trust,19/05/2022,(81200) Medical Surgical Supplies & Equipment,(id:431409) Evelina Childrens Surgery Theatres and Anaesthesia (CSTA),STRYKER UK LTD,id:14570074,1944.00
Department of Health,Guys and St Thomas NHS Foundation Trust,19/05/2022,(81000) Surgical Appliances,(id:431409) Evelina Childrens Surgery Theatres and Anaesthesia (CSTA),JOHN FLORENCE LTD,id:15249396, 917.86
Department of Health,Guys and St Thomas NHS Foundation Trust,13/05/2022,(81000) Surgical Appliances,(id:431409) Evelina Childrens Surgery Theatres and Anaesthesia (CSTA),JOHN FLORENCE LTD,id:15204400,1161.53
Department of Health,Guys and St Thomas NHS Foundation Trust,13/05/2022,(81000) Surgical Appliances,(id:431409) Evelina Childrens Surgery Theatres and Anaesthesia (CSTA),JOHN FLORENCE LTD,id:15204395, 548.94
Department of Health,Guys and St Thomas NHS Foundation Trust,13/05/2022,(81000) Surgical Appliances,(id:431409) Evelina Childrens Surgery Theatres and Anaesthesia (CSTA),JOHN FLORENCE LTD,id:15204286, 806.11
Department of Health,Guys and St Thomas NHS Foundation Trust,13/05/2022,(81000) Surgical Appliances,(id:431409) Evelina Childrens Surgery Theatres and Anaesthesia (CSTA),JOHN FLORENCE LTD,id:15204300, 823.56
Department of Health,Guys and St Thomas NHS Foundation Trust,13/05/2022,(81000) Surgical Appliances,(id:431409) Evelina Childrens Surgery Theatres and Anaesthesia (CSTA),JOHN FLORENCE LTD,id:15204299, 823.56
Department of Health,Guys and St Thomas NHS Foundation Trust,13/05/2022,(81000) Surgical Appliances,(id:431409) Evelina Childrens Surgery Theatres and Anaesthesia (CSTA),JOHN FLORENCE LTD,id:15204302, 838.96
Department of Health,Guys and St Thomas NHS Foundation Trust,19/05/2022,(81000) Surgical Appliances,(id:431409) Evelina Childrens Surgery Theatres and Anaesthesia (CSTA),JOHN FLORENCE LTD,id:15249477, 843.79
Department of Health,Guys and St Thomas NHS Foundation Trust,19/05/2022,(81000) Surgical Appliances,(id:431409) Evelina Childrens Surgery Theatres and Anaesthesia (CSTA),JOHN FLORENCE LTD,id:15249483, 846.17
